Body Name,Service Area,Expenses Type,Invoice Payment Date,Transaction Number,Net Amount,Supplier Name
Manchester City Council,Manchester Leisure,Grant Payments,02.11.2015,5100823242,"5,835.50",Manchester Craft and Design Ltd
Manchester City Council,Hospitality + Trading Services,Building Materials for direct delivery,02.11.2015,5100823316,"3,280.00",Marshalls Mono Ltd
Manchester City Council,Hospitality + Trading Services,Building Materials for direct delivery,02.11.2015,5100823323,822.72,Marshalls Mono Ltd
Manchester City Council,Hospitality + Trading Services,Purchase of stores for re-distribution,02.11.2015,5100823323,"1,782.48",Marshalls Mono Ltd
Manchester City Council,Environment and Operations,Travel,02.11.2015,1904844408,866.55,Redacted Personal Information
Manchester City Council,Adult Social Care,Home Care ,02.11.2015,5100823330,570.00,Building Blocks Nursery
Manchester City Council,Adult Social Care,Payments for services,02.11.2015,5100823274,"23,854.88",David Lewis Organisation
Manchester City Council,Adult Social Care,Payments for services,02.11.2015,5100823280,"22,483.57",David Lewis Organisation
Manchester City Council,Adult Social Care,Payments for services,02.11.2015,5100823249,"20,366.03",The Together Trust
Manchester City Council,Adult Social Care,Payments for services,02.11.2015,5100823256,"18,502.40",David Lewis Organisation
Manchester City Council,Adult Social Care,Payments for services,02.11.2015,5100823259,"18,222.90",David Lewis Organisation
Manchester City Council,Adult Social Care,Payments for services,02.11.2015,5100823284,"18,093.43",David Lewis Organisation
Manchester City Council,Adult Social Care,Payments for services,02.11.2015,5100823262,"17,756.39",David Lewis Organisation
Manchester City Council,Adult Social Care,Payments for services,02.11.2015,5100823251,"17,637.98",David Lewis Organisation
Manchester City Council,Adult Social Care,Payments for services,02.11.2015,5100823252,"17,003.18",David Lewis Organisation
Manchester City Council,Adult Social Care,Payments for services,02.11.2015,5100823264,"16,892.38",David Lewis Organisation
Manchester City Council,Adult Social Care,Payments for services,02.11.2015,5100823270,"16,773.76",David Lewis Organisation
Manchester City Council,Adult Social Care,Payments for services,02.11.2015,5100823268,"13,716.19",David Lewis Organisation
Manchester City Council,Adult Social Care,Payments for services,02.11.2015,5100823246,"4,631.76",The Together Trust
Manchester City Council,Adult Social Care,Payments for services,02.11.2015,5100823248,"4,117.12",The Together Trust
Manchester City Council,Adult Social Care,Payments for services,02.11.2015,5100823245,"1,286.60",The Together Trust
Manchester City Council,Adult Social Care,Payments for services,02.11.2015,5100823247,"1,157.94",The Together Trust
Manchester City Council,Chief Executives,Mobilephone Charges,02.11.2015,1904852002,"11,843.73",EE/T-Mobile
Manchester City Council,Manchester Leisure,Grant and subscriptions awarded,03.11.2015,5100816586,"357,500.00",Greenwich Leisure Limited
Manchester City Council,Manchester Leisure,Grant Payments,03.11.2015,5100823469,"2,500.00",Castlefield Gallery Limited
Manchester City Council,Manchester Leisure,Hire of Equipment,03.11.2015,5100823518,"5,650.00",Star Events Group Ltd
Manchester City Council,Manchester Leisure,Hire of Equipment,03.11.2015,5100823519,"-5,650.00",Star Events Group Ltd
Manchester City Council,Manchester Leisure,Variation Orders,03.11.2015,5100823489,795.00,Willfab Ltd
Manchester City Council,Manchester Leisure,Variation Orders,03.11.2015,5100823499,580.00,Willfab Ltd
Manchester City Council,Hospitality + Trading Services,Building Materials for direct delivery,03.11.2015,5100823599,890.70,Wolseley Util Ltd T/A Burdens
Manchester City Council,Hospitality + Trading Services,Building Materials for direct delivery,03.11.2015,1904856531,745.00,Ecomix Concrete Ltd
Manchester City Council,Hospitality + Trading Services,Building Materials for direct delivery,03.11.2015,1904856533,646.40,Ecomix Concrete Ltd
Manchester City Council,Hospitality + Trading Services,Building Materials for direct delivery,03.11.2015,1904856525,596.00,Ecomix Concrete Ltd
Manchester City Council,Hospitality + Trading Services,Building Materials for direct delivery,03.11.2015,1904856527,521.50,Ecomix Concrete Ltd
Manchester City Council,Hospitality + Trading Services,Catering Provisions,03.11.2015,1904856472,840.43,BRAKES (ASHFORD)
Manchester City Council,Hospitality + Trading Services,Catering Provisions,03.11.2015,1904856473,577.23,BRAKES (ASHFORD)
Manchester City Council,Hospitality + Trading Services,Catering Provisions,03.11.2015,1904856474,527.61,Brake Bros Foodservice Ltd
Manchester City Council,Hospitality + Trading Services,Electricity,03.11.2015,5100823502,"15,390.00",FTS Event Power Ltd
Manchester City Council,Hospitality + Trading Services,Hire of Machinery,03.11.2015,5100823705,768.60,Mastacab LLP
Manchester City Council,Hospitality + Trading Services,Preventative Maintenance Work,03.11.2015,5100823358,"10,441.17",Manchester Working Ltd
Manchester City Council,Hospitality + Trading Services,Preventative Maintenance Work,03.11.2015,5100823352,"8,607.79",Manchester Working Ltd
Manchester City Council,Hospitality + Trading Services,Preventative Maintenance Work,03.11.2015,5100823355,"5,499.98",Manchester Working Ltd
Manchester City Council,Environment and Operations,Compensation Payments,03.11.2015,1904842524,"5,500.00",Scott Rees & Co
Manchester City Council,Environment and Operations,Compensation Payments,03.11.2015,1904845977,"3,250.00",Redacted Personal Information
Manchester City Council,Environment and Operations,Compensation Payments,03.11.2015,1904845971,"2,000.00",Redacted Personal Information
Manchester City Council,Environment and Operations,Subsistence and Conference Expenses,03.11.2015,5100823505,520.00,Chartered Institute of Housing
Manchester City Council,Environment and Operations,Subsistence and Conference Expenses,03.11.2015,5100823506,520.00,Chartered Institute of Housing
Manchester City Council,Environment and Operations,Surplus property Fees,03.11.2015,1904836057,"1,100.00",Bentley Higgs LLP
Manchester City Council,Environment and Operations,Compensation Payments,03.11.2015,1904845829,627.00,Department For Work & Pensions
Manchester City Council,Adult Social Care,Agency staff provision,03.11.2015,5100823514,"1,263.38",LAW Absolute
Manchester City Council,Adult Social Care,Cleaning Equipment and Materials,03.11.2015,5100823405,"2,087.82",Initial Medical Services
Manchester City Council,Adult Social Care,Cleaning Equipment and Materials,03.11.2015,5100823407,"1,207.07",Initial Medical Services
Manchester City Council,Adult Social Care,Home Care ,03.11.2015,5100823503,"1,093.91",Anson Cabin Project
Manchester City Council,Adult Social Care,Intermediate Care,03.11.2015,5100823452,"14,132.00",University Hospital of South Mcr
Manchester City Council,Adult Social Care,Internal Repairs and Maintenance for buildings,03.11.2015,1904852841,500.00,Redacted Personal Information
Manchester City Council,Adult Social Care,Payments for services,03.11.2015,5100823467,"105,450.25",Central Manchester University Hosp
Manchester City Council,Adult Social Care,Payments for services,03.11.2015,5100823465,"105,314.25",Central Manchester University Hosp
Manchester City Council,Adult Social Care,Payments for services,03.11.2015,5100823397,"26,665.43",Care Concepts Ltd
Manchester City Council,Adult Social Care,Payments for services,03.11.2015,5100823419,"24,564.00",Greater Manchester West
Manchester City Council,Adult Social Care,Payments for services,03.11.2015,5100823379,"4,631.76",The Together Trust
Manchester City Council,Adult Social Care,Payments for services,03.11.2015,5100823380,"4,631.76",The Together Trust
Manchester City Council,Adult Social Care,Payments for services,03.11.2015,5100823517,"-26,665.43",Care Concepts Ltd
Manchester City Council,Adult Social Care,Rates,03.11.2015,5100823529,514.31,Superkids Levenshulme Ltd
Manchester City Council,Adult Social Care,Storage Costs,03.11.2015,5100823494,"2,948.57",PHS Records Management
Manchester City Council,Adult Social Care,Supporting People Payments,03.11.2015,5100823416,851.13,The Edward Mayes Trust
Manchester City Council,Adult Social Care,Supporting People Payments,03.11.2015,5100823337,791.09,Parkway Green Housing Trust
Manchester City Council,Adult Social Care,Supporting People Payments,03.11.2015,5100823437,758.33,Albert Kennedy Trust
Manchester City Council,Adult Social Care,Third party payments relating to Voluntary Organisations,03.11.2015,5100823463,"15,875.00",George House Trust
Manchester City Council,Adult Social Care,Third party payments relating to Voluntary Organisations,03.11.2015,5100823277,"6,091.50",Saheli
Manchester City Council,Adult Social Care,Third party payments relating to Voluntary Organisations,03.11.2015,5100823338,"1,898.25",Willow Park Housing Trust
Manchester City Council,Adult Social Care,Third party payments relating to Voluntary Organisations,03.11.2015,5100823474,"1,234.14",The Stroke Association
Manchester City Council,Adult Social Care,Third party payments relating to Voluntary Organisations,03.11.2015,5100823472,"1,079.87",The Stroke Association
Manchester City Council,Adult Social Care,Third party payments to Health Authority,03.11.2015,5100823450,"61,106.00",Manchester Mental Health & Social C
Manchester City Council,Adult Social Care,Third party payments to other Local Authorities,03.11.2015,5100823421,"73,650.00",Refugee Action
Manchester City Council,Adult Social Care,Third party payments to other Local Authorities,03.11.2015,5100823413,"11,736.00",Refugee Action
Manchester City Council,Adult Social Care,Third party payments to other Local Authorities,03.11.2015,5100823410,"2,105.00",Wellington School
Manchester City Council,Adult Social Care,Transport Coach Hire,03.11.2015,5100823369,"2,578.00",Nelson Transport
Manchester City Council,Adult Social Care,Legal Fees,03.11.2015,1904855672,500.00,Redacted Personal Information
Manchester City Council,Housing General Fund,Works and associated costs for Land and Buildings,03.11.2015,1904856463,"88,740.00",WTB Solicitors
Manchester City Council,Chief Executives,Advertising,03.11.2015,5100823411,"1,000.00",GAYDIO Community Interest Company
Manchester City Council,Chief Executives,Agency staff provision,03.11.2015,5100823417,988.26,Bennett Staff Bureau
Manchester City Council,Regeneration Finance,Grant Payments,03.11.2015,5100823508,"5,275.00",Higher Blackley Comm.Assoc.
Manchester City Council,Regeneration Finance,Grant Payments,03.11.2015,1904853632,"3,241.00",Community Minded Ltd
Manchester City Council,Regeneration Finance,Grant Payments,03.11.2015,1904853633,"2,280.00",Gorton Horticultural Society
Manchester City Council,Regeneration Finance,Grant Payments,03.11.2015,1904853625,"2,113.00",The Factory Youth Zone
Manchester City Council,Regeneration Finance,Grant Payments,03.11.2015,1904853633,"2,080.00",Gorton Horticultural Society
Manchester City Council,Regeneration Finance,Grant Payments,03.11.2015,1904855694,"1,900.00",Healthy Me Healthy Communities
Manchester City Council,Regeneration Finance,Grant Payments,03.11.2015,1904852006,600.00,Clayton Luncheon Club
Manchester City Council,Regeneration Finance,Internal Repairs and Maintenance for buildings,03.11.2015,5100823350,"7,500.00",Manchester Working Ltd
Manchester City Council,Regeneration Finance,Professional fees,03.11.2015,5100823481,"11,680.00",Amion Consulting Ltd
Manchester City Council,Regeneration Finance,Professional fees,03.11.2015,5100823398,"2,000.00",Heritage Architecture Ltd
Manchester City Council,Regeneration Finance,Storage Costs,03.11.2015,5100823479,742.90,Data Space Limited
Manchester City Council,Manchester Leisure,Payments to Sub-Contractors,04.11.2015,5100823747,"1,750.00",Massey & Harris (Engrg) Ltd
Manchester City Council,Manchester Leisure,Payments to Sub-Contractors,04.11.2015,5100823714,"1,425.00",Clean-Up UK Limited
Manchester City Council,Manchester Leisure,Payments to Sub-Contractors,04.11.2015,5100823713,570.00,Clean-Up UK Limited
Manchester City Council,Manchester Leisure,Payments to Sub-Contractors,04.11.2015,5100823850,520.00,Clean-Up UK Limited
Manchester City Council,Manchester Leisure,Payments to Sub-Contractors,04.11.2015,5100823738,"-1,750.00",Massey & Harris (Engrg) Ltd
Manchester City Council,Manchester Leisure,Special Event,04.11.2015,5100823646,"12,000.00",Manchester Pride Ltd
Manchester City Council,Manchester Leisure,Variation Orders,04.11.2015,5100823838,795.00,Willfab Ltd
Manchester City Council,Manchester Leisure,Variation Orders,04.11.2015,5100823835,-795.00,Willfab Ltd
Manchester City Council,Hospitality + Trading Services,Building Materials for direct delivery,04.11.2015,1904860558,565.60,Ecomix Concrete Ltd
Manchester City Council,Hospitality + Trading Services,Catering Provisions,04.11.2015,1904860550,919.34,Brake Bros Foodservice Ltd
Manchester City Council,Hospitality + Trading Services,Catering Provisions,04.11.2015,1904860534,854.07,Brake Bros Foodservice Ltd
Manchester City Council,Hospitality + Trading Services,Catering Provisions,04.11.2015,1904860554,828.48,Brake Bros Foodservice Ltd
Manchester City Council,Hospitality + Trading Services,Catering Provisions,04.11.2015,1904860525,733.12,Brake Bros Foodservice Ltd
Manchester City Council,Hospitality + Trading Services,Catering Provisions,04.11.2015,1904860546,538.05,Brake Bros Foodservice Ltd
Manchester City Council,Hospitality + Trading Services,Catering Provisions,04.11.2015,1904860548,527.61,Brake Bros Foodservice Ltd
Manchester City Council,Hospitality + Trading Services,ClothsUniformLaundry,04.11.2015,5100823847,"2,154.98",Arco Group Ltd
Manchester City Council,Hospitality + Trading Services,Contract Cleaning External,04.11.2015,5100823470,"21,133.10",Ocean Integrated Services Ltd
Manchester City Council,Hospitality + Trading Services,Machinery and equipment repairs,04.11.2015,5100823827,"1,034.96",Gibsons Garden Machinery Limited
Manchester City Council,Hospitality + Trading Services,Machinery and equipment repairs,04.11.2015,5100823745,"1,025.78",Gibsons Garden Machinery Limited
Manchester City Council,Hospitality + Trading Services,Machinery and equipment repairs,04.11.2015,5100823819,731.66,Gibsons Garden Machinery Limited
Manchester City Council,Hospitality + Trading Services,Machinery and equipment repairs,04.11.2015,5100823716,648.65,Gibsons Garden Machinery Limited
Manchester City Council,Hospitality + Trading Services,Machinery and equipment repairs,04.11.2015,5100823737,604.01,Gibsons Garden Machinery Limited
Manchester City Council,Hospitality + Trading Services,Payments to Sub-Contractors,04.11.2015,5100823893,"9,444.00",Clearway Drainage Systems Ltd
Manchester City Council,Hospitality + Trading Services,Payments to Sub-Contractors,04.11.2015,5100823914,"4,207.25",Clearway Drainage Systems Ltd
Manchester City Council,Hospitality + Trading Services,Payments to Sub-Contractors,04.11.2015,5100823923,"2,170.50",Clearway Drainage Systems Ltd
Manchester City Council,Hospitality + Trading Services,Payments to Sub-Contractors,04.11.2015,5100823924,"2,102.00",Clearway Drainage Systems Ltd
Manchester City Council,Hospitality + Trading Services,Payments to Sub-Contractors,04.11.2015,5100823609,"1,795.00",Rosgal Ltd
Manchester City Council,Hospitality + Trading Services,Vehicle Hire Costs,04.11.2015,5100823754,"49,553.82",Manchester Van Hire Ltd
Manchester City Council,Hospitality + Trading Services,Vehicle Hire Costs,04.11.2015,5100823572,"6,441.60",Specialist Vehicle rental
Manchester City Council,Environment and Operations,Grounds Maintenance,04.11.2015,5100823596,"2,750.00",Clean-Up UK Limited
Manchester City Council,Environment and Operations,Refuse Collection,04.11.2015,5100823310,"1,750.00",The Helping Hand Company Ltd
Manchester City Council,Environment and Operations,Refuse Collection,04.11.2015,5100823308,991.50,The Helping Hand Company Ltd
Manchester City Council,Environment and Operations,Refuse Collection,04.11.2015,5100823309,661.00,The Helping Hand Company Ltd
Manchester City Council,Adult Social Care,Agency staff provision,04.11.2015,5100823617,"1,204.00",Ashberry Recruitment Ltd
Manchester City Council,Adult Social Care,Agency staff provision,04.11.2015,5100823625,"1,011.50",Ashberry Recruitment Ltd
Manchester City Council,Adult Social Care,Agency staff provision,04.11.2015,5100823611,876.90,SRA Cover Staff Ltd
Manchester City Council,Adult Social Care,Agency staff provision,04.11.2015,5100823617,833.58,Ashberry Recruitment Ltd
Manchester City Council,Adult Social Care,Agency staff provision,04.11.2015,5100823617,813.75,Ashberry Recruitment Ltd
Manchester City Council,Adult Social Care,Agency staff provision,04.11.2015,5100823625,813.75,Ashberry Recruitment Ltd
Manchester City Council,Adult Social Care,Agency staff provision,04.11.2015,5100823611,692.00,SRA Cover Staff Ltd
Manchester City Council,Adult Social Care,Agency staff provision,04.11.2015,5100823625,614.23,Ashberry Recruitment Ltd
Manchester City Council,Adult Social Care,Agency staff provision,04.11.2015,5100823617,569.94,Ashberry Recruitment Ltd
Manchester City Council,Adult Social Care,Agency staff provision,04.11.2015,5100823611,537.12,SRA Cover Staff Ltd
Manchester City Council,Adult Social Care,Agency staff provision,04.11.2015,5100823617,505.75,Ashberry Recruitment Ltd
Manchester City Council,Adult Social Care,Agency staff provision,04.11.2015,5100823625,505.75,Ashberry Recruitment Ltd
Manchester City Council,Adult Social Care,Contract Cleaning External,04.11.2015,5100823627,"1,488.00",Barnardo's North West
Manchester City Council,Adult Social Care,Extra Care Sheltd HP,04.11.2015,5100823675,"19,423.92",Homecare Support
Manchester City Council,Adult Social Care,Furniture,04.11.2015,5100823969,"6,455.10",The Furnishing Service Ltd
Manchester City Council,Adult Social Care,Furniture,04.11.2015,5100823971,"1,075.77",The Furnishing Service Ltd
Manchester City Council,Adult Social Care,Furniture,04.11.2015,5100823973,901.11,The Furnishing Service Ltd
Manchester City Council,Adult Social Care,Furniture,04.11.2015,5100823974,885.84,The Furnishing Service Ltd
Manchester City Council,Adult Social Care,Furniture,04.11.2015,5100823975,792.51,The Furnishing Service Ltd
Manchester City Council,Adult Social Care,Furniture,04.11.2015,5100823976,770.51,The Furnishing Service Ltd
Manchester City Council,Adult Social Care,Furniture,04.11.2015,5100823979,758.34,The Furnishing Service Ltd
Manchester City Council,Adult Social Care,Furniture,04.11.2015,5100823984,689.13,The Furnishing Service Ltd
Manchester City Council,Adult Social Care,Furniture,04.11.2015,5100823986,689.13,The Furnishing Service Ltd
Manchester City Council,Adult Social Care,Furniture,04.11.2015,5100823988,689.13,The Furnishing Service Ltd
Manchester City Council,Adult Social Care,Furniture,04.11.2015,5100823993,619.43,The Furnishing Service Ltd
Manchester City Council,Adult Social Care,Furniture,04.11.2015,5100824000,601.34,The Furnishing Service Ltd
Manchester City Council,Adult Social Care,Furniture,04.11.2015,5100824005,595.33,The Furnishing Service Ltd
Manchester City Council,Adult Social Care,Furniture,04.11.2015,5100824007,572.89,The Furnishing Service Ltd
Manchester City Council,Adult Social Care,Furniture,04.11.2015,5100824008,572.89,The Furnishing Service Ltd
Manchester City Council,Adult Social Care,Furniture,04.11.2015,5100824011,560.03,The Furnishing Service Ltd
Manchester City Council,Adult Social Care,Furniture,04.11.2015,5100824013,560.03,The Furnishing Service Ltd
Manchester City Council,Adult Social Care,Furniture,04.11.2015,5100824015,531.25,The Furnishing Service Ltd
Manchester City Council,Adult Social Care,Home Care ,04.11.2015,5100823570,837.00,Skittles Childcare Ltd
Manchester City Council,Adult Social Care,Payments for services,04.11.2015,5100823533,"26,665.43",Care Concepts Ltd
Manchester City Council,Adult Social Care,Payments for services,04.11.2015,5100823880,"2,300.80",The Together Trust
Manchester City Council,Adult Social Care,Payments for services,04.11.2015,5100823678,"1,848.00",Oasis Recovery Communities Ltd
Manchester City Council,Adult Social Care,Payments for services,04.11.2015,5100823878,"1,392.36",The Together Trust
Manchester City Council,Adult Social Care,Personal needs of client,04.11.2015,5100823977,767.48,The Furnishing Service Ltd
Manchester City Council,Adult Social Care,Personal needs of client,04.11.2015,5100823982,723.10,The Furnishing Service Ltd
Manchester City Council,Adult Social Care,Personal needs of client,04.11.2015,5100823989,645.28,The Furnishing Service Ltd
Manchester City Council,Adult Social Care,Personal needs of client,04.11.2015,5100823995,617.12,The Furnishing Service Ltd
Manchester City Council,Adult Social Care,Professional fees,04.11.2015,5100823888,"10,500.00",Caritas Recruitment
Manchester City Council,Adult Social Care,Professional fees,04.11.2015,5100823894,"8,400.00",Caritas Recruitment
Manchester City Council,Adult Social Care,Professional fees,04.11.2015,5100823889,"4,310.04",Jump Space Ltd
Manchester City Council,Adult Social Care,Professional fees,04.11.2015,5100823916,"4,200.00",Caritas Recruitment
Manchester City Council,Adult Social Care,Professional fees,04.11.2015,5100823917,"3,850.00",Caritas Recruitment
Manchester City Council,Adult Social Care,Professional fees,04.11.2015,5100823919,"2,800.00",Caritas Recruitment
Manchester City Council,Adult Social Care,Professional fees,04.11.2015,5100823922,"2,450.00",Caritas Recruitment
Manchester City Council,Adult Social Care,Professional fees,04.11.2015,5100823691,"1,400.00",Action First iPeople Ltd
Manchester City Council,Adult Social Care,Professional fees,04.11.2015,5100823690,700.00,Action First iPeople Ltd
Manchester City Council,Adult Social Care,Third party payments relating to Voluntary Organisations,04.11.2015,5100823795,"37,971.25",Gaddum Centre
Manchester City Council,Adult Social Care,Third party payments relating to Voluntary Organisations,04.11.2015,5100814571,"15,140.00",One Education Ltd
Manchester City Council,Adult Social Care,Third party payments relating to Voluntary Organisations,04.11.2015,5100823632,"9,898.33",Family Action
Manchester City Council,Adult Social Care,Third party payments relating to Voluntary Organisations,04.11.2015,5100823910,"6,540.00",One Education Ltd
Manchester City Council,Adult Social Care,Third party payments relating to Voluntary Organisations,04.11.2015,5100823723,"1,062.08",MCCR
Manchester City Council,Adult Social Care,Third party payments relating to Voluntary Organisations,04.11.2015,5100823790,947.00,MCCR
Manchester City Council,Adult Social Care,Third party payments to Health Authority,04.11.2015,1904856406,"7,421.31",Stockport NHS Foundation Trust
Manchester City Council,Adult Social Care,Third party payments to Health Authority,04.11.2015,1904856448,"1,423.92",East Cheshire NHS Trust
Manchester City Council,Adult Social Care,Third party payments to Health Authority,04.11.2015,1904856432,932.84,East Cheshire NHS Trust
Manchester City Council,Childrens Services,Works and associated costs for Land and Buildings,04.11.2015,5100823774,"172,603.00",Herbert T Forrest Ltd
Manchester City Council,Corporate Services,Furniture,04.11.2015,5100823744,724.00,Back Care Solutions Ltd
Manchester City Council,Corporate Services,Furniture,04.11.2015,5100823746,625.00,Back Care Solutions Ltd
Manchester City Council,Corporate Services,Works and associated costs for Land and Buildings,04.11.2015,5100823736,750.00,Tube Uk Ltd
Manchester City Council,Housing Revenue Account,CAMC/Not assigned,04.11.2015,5100823837,"1,848.60",IG Doors Ltd
Manchester City Council,Housing Revenue Account,CAMC/Not assigned,04.11.2015,5100823833,"1,479.82",IG Doors Ltd
Manchester City Council,Housing Revenue Account,Council Dwelling Adaptations,04.11.2015,5100823684,"196,573.64",B.A.A.S. Construction Ltd
Manchester City Council,Housing Revenue Account,Council Dwelling Adaptations,04.11.2015,5100823664,"104,574.44",B.A.A.S. Construction Ltd
Manchester City Council,Housing Revenue Account,Council Dwelling Adaptations,04.11.2015,5100823715,"78,217.07",B.A.A.S. Construction Ltd
Manchester City Council,Housing Revenue Account,Council Dwelling Adaptations,04.11.2015,5100823661,"16,171.36",B.A.A.S. Construction Ltd
Manchester City Council,Housing Revenue Account,Council Dwelling Adaptations,04.11.2015,5100823921,"4,545.90",IG Doors Ltd
Manchester City Council,Housing Revenue Account,Council Dwelling Adaptations,04.11.2015,5100823915,639.91,IG Doors Ltd
Manchester City Council,Housing Revenue Account,Professional fees,04.11.2015,5100823753,"9,317.52",Northwards Housing Limited
Manchester City Council,Housing Revenue Account,Professional fees,04.11.2015,5100823612,-621.81,Mpulse Ltd
Manchester City Council,Chief Executives,Advertising,04.11.2015,5100823864,"6,148.07",Trinity Mirror NW2 Ltd
Manchester City Council,Chief Executives,Advertising,04.11.2015,5100823815,"5,973.80",Trinity Mirror NW2 Ltd
Manchester City Council,Chief Executives,Advertising,04.11.2015,5100823706,"3,072.60",TES Global Ltd
Manchester City Council,Chief Executives,Advertising,04.11.2015,5100823815,"2,595.29",Trinity Mirror NW2 Ltd
Manchester City Council,Chief Executives,Advertising,04.11.2015,5100823864,"1,876.18",Trinity Mirror NW2 Ltd
Manchester City Council,Chief Executives,Advertising,04.11.2015,5100823708,787.50,TES Global Ltd
Manchester City Council,Chief Executives,Agency staff provision,04.11.2015,5100823617,"3,642.31",Ashberry Recruitment Ltd
Manchester City Council,Chief Executives,Agency staff provision,04.11.2015,5100823918,"3,619.34",Hays Personnel
Manchester City Council,Chief Executives,Agency staff provision,04.11.2015,5100823422,"3,029.40",Hudson Global Resources Ltd
Manchester City Council,Chief Executives,Agency staff provision,04.11.2015,5100823422,"2,723.00",Hudson Global Resources Ltd
Manchester City Council,Chief Executives,Hire of Premises,04.11.2015,5100823783,630.00,Manchester Central
Manchester City Council,Chief Executives,Infrastructure Fees,04.11.2015,5100823896,"6,900.00",Hays Personnel
Manchester City Council,Chief Executives,Mobilephone Charges,04.11.2015,1904837384,"1,303.43",EE/T-Mobile
Manchester City Council,Chief Executives,Postage,04.11.2015,5100823877,"50,000.00",Neopost Ltd (Credifon)
Manchester City Council,Chief Executives,Signers/Interpreters,04.11.2015,1904855692,732.05,Long Term Exclusive
Manchester City Council,Chief Executives,Signers/Interpreters,04.11.2015,1904856380,691.10,China Talks Translation Ltd
Manchester City Council,Chief Executives,Legal Fees,04.11.2015,5100823863,"1,500.00",Cornerstone Barristers
Manchester City Council,Regeneration Finance,Grant and subscriptions awarded,04.11.2015,5100823460,"10,565.00",Bury College
Manchester City Council,Regeneration Finance,Grant and subscriptions awarded,04.11.2015,5100823455,"-10,565.00",Bury College
Manchester City Council,Regeneration Finance,Grant Payments,04.11.2015,1904855689,"2,000.00",Northenden Royal British Legion
Manchester City Council,Regeneration Finance,Grant Payments,04.11.2015,1904855688,"1,972.67",Chorlton Carp Anglers
Manchester City Council,Regeneration Finance,Grant Payments,04.11.2015,5100823853,"1,938.00",Tree Of Life Centre Wythenshawe
Manchester City Council,Regeneration Finance,Grant Payments,04.11.2015,1904855685,"1,659.00",Friends of Herristone Park
Manchester City Council,Regeneration Finance,Grant Payments,04.11.2015,1904855684,"1,200.00",The Factory Youth Zone
Manchester City Council,Regeneration Finance,Grant Payments,04.11.2015,1904855691,"1,000.00",Newton Heath Eco Youth
Manchester City Council,Regeneration Finance,Grant Payments,04.11.2015,1904855682,"1,000.00",Northenden Royal British Legion
Manchester City Council,Regeneration Finance,Grant Payments,04.11.2015,1904855687,"1,000.00",Northenden Royal British Legion
Manchester City Council,Regeneration Finance,Grant Payments,04.11.2015,1904855686,750.00,East Didsbury Methodist Church
Manchester City Council,Regeneration Finance,Grant Payments,04.11.2015,5100823455,"-5,283.00",Bury College
Manchester City Council,Regeneration Finance,Preventative Maintenance Work,04.11.2015,5100823700,"62,372.00",Manchester Working Ltd
Manchester City Council,Regeneration Finance,Professional fees,04.11.2015,5100808917,"27,700.00",Turner & Townsend Project
Manchester City Council,Regeneration Finance,Professional fees,04.11.2015,5100817766,"11,200.00",Turner & Townsend Project
Manchester City Council,Regeneration Finance,Storage Costs,04.11.2015,5100823639,747.78,Data Space Limited
Manchester City Council,Regeneration Finance,Storage Costs,04.11.2015,5100823630,512.93,Data Space Limited
Manchester City Council,Regeneration Finance,Compensation Payments,04.11.2015,5100823856,"36,435.50",Slater & Gordon (UK) LLP
Manchester City Council,GMIST (Greater Mcr Integrated),Third party payments to other Local Authorities,04.11.2015,5100823645,"334,905.00",Oldham Borough Council
Manchester City Council,Manchester Leisure,Building Materials for direct delivery,05.11.2015,5100823823,"1,121.00",Arboricultural Services Treework
Manchester City Council,Manchester Leisure,Car Parking Expenses,05.11.2015,1904862756,"1,250.00",RCP PARKING LTD
Manchester City Council,Manchester Leisure,Electricity,05.11.2015,1904862322,"3,762.94",British Gas Plc
Manchester City Council,Manchester Leisure,Furniture,05.11.2015,1904862625,518.74,PAYPAL
Manchester City Council,Manchester Leisure,Grounds Maintenance,05.11.2015,5100823822,"12,500.00",Arboricultural Services Treework
Manchester City Council,Manchester Leisure,Grounds Maintenance,05.11.2015,5100823825,"7,500.00",Arboricultural Services Treework
Manchester City Council,Manchester Leisure,Grounds Maintenance,05.11.2015,5100823884,"1,900.00",Arboricultural Services Treework
Manchester City Council,Manchester Leisure,Grounds Maintenance,05.11.2015,5100823826,"1,500.00",Arboricultural Services Treework
Manchester City Council,Manchester Leisure,Library Materials Acquisition,05.11.2015,1904855612,539.86,Askews and Holts
Manchester City Council,Manchester Leisure,Payments to Sub-Contractors,05.11.2015,5100823842,"1,946.00",Arboricultural Services Treework
Manchester City Council,Manchester Leisure,Payments to Sub-Contractors,05.11.2015,5100823829,"1,900.00",Arboricultural Services Treework
Manchester City Council,Manchester Leisure,Payments to Sub-Contractors,05.11.2015,5100823830,"1,723.00",Arboricultural Services Treework
Manchester City Council,Manchester Leisure,Payments to Sub-Contractors,05.11.2015,5100823857,"1,500.00",Arboricultural Services Treework
Manchester City Council,Manchester Leisure,Payments to Sub-Contractors,05.11.2015,5100823845,"1,477.00",Arboricultural Services Treework
Manchester City Council,Manchester Leisure,Payments to Sub-Contractors,05.11.2015,5100823846,854.00,Arboricultural Services Treework
Manchester City Council,Manchester Leisure,Rents,05.11.2015,5100824034,"49,197.50",Wythenshawe Forum Trust Ltd
Manchester City Council,Manchester Leisure,Rents,05.11.2015,5100824040,"49,197.50",Wythenshawe Forum Trust Ltd
Manchester City Council,Manchester Leisure,Rents,05.11.2015,5100824046,"18,362.50",Wythenshawe Forum Trust Ltd
Manchester City Council,Manchester Leisure,Rents,05.11.2015,5100824049,"18,362.50",Wythenshawe Forum Trust Ltd
Manchester City Council,Manchester Leisure,Rents,05.11.2015,5100824055,"4,717.65",Wythenshawe Forum Trust Ltd
Manchester City Council,Manchester Leisure,Rents,05.11.2015,5100824056,"2,271.32",Wythenshawe Forum Trust Ltd
Manchester City Council,Manchester Leisure,Rents,05.11.2015,5100824090,755.84,Wythenshawe Forum Trust Ltd
Manchester City Council,Manchester Leisure,Subsistence and Conference Expenses,05.11.2015,1904862627,596.83,ROOMZZZ MANCHESTER CIT
Manchester City Council,Libraries and Theatres,Subsistence and Conference Expenses,05.11.2015,5100823381,700.00,RICS
Manchester City Council,Hospitality + Trading Services,Catering Provisions,05.11.2015,1904862292,"57,878.66",Ralph Livesey Ltd
Manchester City Council,Hospitality + Trading Services,Catering Provisions,05.11.2015,1904862493,"1,415.96",Brake Bros Foodservice Ltd
Manchester City Council,Hospitality + Trading Services,Catering Provisions,05.11.2015,1904862491,863.61,Brake Bros Foodservice Ltd
Manchester City Council,Hospitality + Trading Services,Catering Provisions,05.11.2015,1904862138,766.90,Pasta King (Uk) Ltd
Manchester City Council,Hospitality + Trading Services,Catering Provisions,05.11.2015,1904862525,752.44,Wilds of Oldham
Manchester City Council,Hospitality + Trading Services,Catering Provisions,05.11.2015,1904862495,744.01,Brake Bros Foodservice Ltd
Manchester City Council,Hospitality + Trading Services,Catering Provisions,05.11.2015,1904862489,696.40,Brake Bros Foodservice Ltd
Manchester City Council,Hospitality + Trading Services,Catering Provisions,05.11.2015,1904862492,624.23,Brake Bros Foodservice Ltd
Manchester City Council,Hospitality + Trading Services,Catering Provisions,05.11.2015,1904862153,603.59,Brake Bros Foodservice Ltd
Manchester City Council,Hospitality + Trading Services,Catering Provisions,05.11.2015,1904862107,601.83,Brake Bros Foodservice Ltd
Manchester City Council,Hospitality + Trading Services,Catering Provisions,05.11.2015,1904862103,565.87,Brake Bros Foodservice Ltd
Manchester City Council,Hospitality + Trading Services,Catering Provisions,05.11.2015,1904862067,559.61,Brake Bros Foodservice Ltd
Manchester City Council,Hospitality + Trading Services,Catering Provisions,05.11.2015,1904861990,533.22,Brake Bros Foodservice Ltd
Manchester City Council,Hospitality + Trading Services,Catering Provisions,05.11.2015,1904862112,508.86,Brake Bros Foodservice Ltd
Manchester City Council,Hospitality + Trading Services,Catering Provisions,05.11.2015,1904861964,508.38,Brake Bros Foodservice Ltd
Manchester City Council,Hospitality + Trading Services,Catering Provisions,05.11.2015,1904862507,501.78,DJ Drink Solutions Ltd
Manchester City Council,Hospitality + Trading Services,Compensation Payments,05.11.2015,1904856465,"7,500.00",Silverbeck Rymer Solicitors
Manchester City Council,Hospitality + Trading Services,Compensation Payments,05.11.2015,1904856455,"4,000.00",Michael Lewin Solicitors
Manchester City Council,Hospitality + Trading Services,Electricity,05.11.2015,1904862309,"27,445.34",British Gas Plc
Manchester City Council,Hospitality + Trading Services,Electricity,05.11.2015,1904862302,"12,965.80",British Gas Plc
Manchester City Council,Hospitality + Trading Services,Electricity,05.11.2015,1904862323,"5,721.35",British Gas Plc
Manchester City Council,Hospitality + Trading Services,Electricity,05.11.2015,1904862303,"3,383.76",British Gas Plc
Manchester City Council,Hospitality + Trading Services,Electricity,05.11.2015,1904862310,"1,992.91",British Gas Plc
Manchester City Council,Hospitality + Trading Services,Electricity,05.11.2015,1904862312,"1,484.02",British Gas Plc
Manchester City Council,Hospitality + Trading Services,Electricity,05.11.2015,1904862329,"1,010.57",British Gas Plc
Manchester City Council,Hospitality + Trading Services,Equipment,05.11.2015,1904862538,"1,446.00",AUDEN FUNERAL SUPPLIES
Manchester City Council,Hospitality + Trading Services,Equipment,05.11.2015,5100823755,906.10,Sico Europe Ltd
Manchester City Council,Hospitality + Trading Services,Insurance,05.11.2015,1904860804,"6,256.28",Zurich Municipal
Manchester City Council,Hospitality + Trading Services,Vehicle Hire Costs,05.11.2015,5100823987,"2,750.00",Gullivers Truck Hire Ltd
Manchester City Council,Hospitality + Trading Services,Vehicle Hire Costs,05.11.2015,5100823965,"-2,750.00",Gullivers Truck Hire Ltd
Manchester City Council,Hospitality + Trading Services,Compensation Payments,05.11.2015,1904853937,"13,919.00",Department For Work & Pensions
Manchester City Council,Hospitality + Trading Services,Compensation Payments,05.11.2015,1904856466,"1,810.00",Silverbeck Rymer Solicitors
Manchester City Council,Environment and Operations,Cleaning Equipment and Materials,05.11.2015,5100823591,680.00,Clean-Up UK Limited
Manchester City Council,Environment and Operations,Compensation Payments,05.11.2015,1904856375,"6,500.00",Redacted Personal Information
Manchester City Council,Environment and Operations,Compensation Payments,05.11.2015,1904862156,"3,529.43",Paul Rooney Partnership
Manchester City Council,Environment and Operations,Compensation Payments,05.11.2015,1904856450,"1,000.00",JMW Solicitors
Manchester City Council,Environment and Operations,Electricity,05.11.2015,1904862304,"2,583.52",British Gas Plc
Manchester City Council,Environment and Operations,Electricity,05.11.2015,1904862328,"2,577.30",British Gas Plc
Manchester City Council,Environment and Operations,Grant Payments,05.11.2015,1904855681,"1,500.00",OASIS
Manchester City Council,Environment and Operations,Payments to Sub-Contractors,05.11.2015,5100823849,"16,700.00",Arboricultural Services Treework
Manchester City Council,Environment and Operations,Payments to Sub-Contractors,05.11.2015,5100824424,"1,908.00",Winter Service Solutions Ltd
Manchester City Council,Environment and Operations,Payments to Sub-Contractors,05.11.2015,5100823948,585.00,The Arboricultural Association
Manchester City Council,Environment and Operations,Professional fees,05.11.2015,5100824447,770.00,Charles Beresford + Co Ltd
Manchester City Council,Environment and Operations,Training and Development,05.11.2015,5100824284,"1,000.00",University Of Manchester
Manchester City Council,Environment and Operations,Training and Development,05.11.2015,5100824291,"1,000.00",University Of Manchester
Manchester City Council,Environment and Operations,Training and Development,05.11.2015,5100824285,580.00,University Of Manchester
Manchester City Council,Environment and Operations,Legal Fees,05.11.2015,1904860816,"3,000.00",Redacted Personal Information
Manchester City Council,Environment and Operations,Compensation Payments,05.11.2015,1904862156,"2,369.00",Paul Rooney Partnership
Manchester City Council,Adult Social Care,Adult Placements,05.11.2015,1904856519,"1,221.67",Redacted Personal Information
Manchester City Council,Adult Social Care,Bed & Breakfast Acc,05.11.2015,5100823362,"31,746.29",Accommodation Links Ltd
Manchester City Council,Adult Social Care,Bed & Breakfast Acc,05.11.2015,5100823949,"6,890.00",Redacted Personal Information
Manchester City Council,Adult Social Care,Bed & Breakfast Acc,05.11.2015,5100824476,"4,905.71",M & Q Properties Management Ltd
Manchester City Council,Adult Social Care,Bed & Breakfast Acc,05.11.2015,5100824204,700.00,Kaye Mackenzie Property Management
Manchester City Council,Adult Social Care,Equipment,05.11.2015,1904862576,"1,618.85",COUSINS FURNITURE
Manchester City Council,Adult Social Care,Payments for services,05.11.2015,5100823962,"21,801.73",H.G. Care Services Ltd
Manchester City Council,Adult Social Care,Payments for services,05.11.2015,5100824022,"4,088.23",Scope
Manchester City Council,Adult Social Care,Payments for services,05.11.2015,5100823956,"2,625.28",Progress Care & Education Ltd
Manchester City Council,Adult Social Care,Payments for services,05.11.2015,5100824084,500.00,Central Manchester University Hosp
Manchester City Council,Adult Social Care,Professional fees,05.11.2015,5100823958,"5,182.88",H.G. Care Services Ltd
Manchester City Council,Adult Social Care,Rents,05.11.2015,5100824029,"15,963.21",M & Q Properties Management Ltd
Manchester City Council,Adult Social Care,Rents,05.11.2015,5100823970,"2,718.24",Mosscare Housing Ltd
Manchester City Council,Adult Social Care,Rents,05.11.2015,5100824502,"2,654.12",Mosscare Housing Ltd
Manchester City Council,Adult Social Care,Stationery,05.11.2015,5100824562,"2,198.80",Northgate Public Services (UK) Ltd
Manchester City Council,Adult Social Care,Stationery,05.11.2015,5100824563,"-2,198.80",Northgate Public Services (UK) Ltd
Manchester City Council,Adult Social Care,Supporting People Payments,05.11.2015,5100824057,"1,392.05",Parkway Green Housing Trust
Manchester City Council,Adult Social Care,Supporting People Payments,05.11.2015,5100824152,"-1,392.05",Parkway Green Housing Trust
Manchester City Council,Adult Social Care,Third party payments relating to Voluntary Organisations,05.11.2015,5100824386,"106,468.50",Barnardo's North West
Manchester City Council,Adult Social Care,Third party payments relating to Voluntary Organisations,05.11.2015,5100823643,"88,750.00",Man. Citizens Advice Bureaux
Manchester City Council,Adult Social Care,Third party payments relating to Voluntary Organisations,05.11.2015,5100823384,"8,158.00",Greater Manchester Immigration Aid
Manchester City Council,Adult Social Care,Third party payments relating to Voluntary Organisations,05.11.2015,5100824455,"6,737.00",Great Places Housing Association
Manchester City Council,Adult Social Care,Third party payments relating to Voluntary Organisations,05.11.2015,5100823651,"6,666.00",Man. Citizens Advice Bureaux
Manchester City Council,Adult Social Care,Third party payments relating to Voluntary Organisations,05.11.2015,5100824426,"5,312.50",Pure Innovations Ltd
Manchester City Council,Adult Social Care,Third party payments relating to Voluntary Organisations,05.11.2015,5100824430,"5,312.50",Pure Innovations Ltd
Manchester City Council,Adult Social Care,Third party payments relating to Voluntary Organisations,05.11.2015,5100824012,"2,096.30",Scope
Manchester City Council,Adult Social Care,Third party payments relating to Voluntary Organisations,05.11.2015,5100824401,574.00,Longsight (Aisha) Nursery
Manchester City Council,Adult Social Care,Third party payments relating to Voluntary Organisations,05.11.2015,5100824276,536.25,The Big Life Company
Manchester City Council,Adult Social Care,Third party payments relating to Voluntary Organisations,05.11.2015,5100824278,503.25,The Big Life Company
Manchester City Council,Adult Social Care,Transport Coach Hire,05.11.2015,5100819382,"65,241.00",Westfield Minibuses
Manchester City Council,Adult Social Care,Legal Fees,05.11.2015,1904862764,"6,380.00",HMCTS (Manchester County Court)
Manchester City Council,Adult Social Care,Legal Fees,05.11.2015,1904862764,"2,055.00",HMCTS (Manchester County Court)
Manchester City Council,Adult Social Care,Legal Fees,05.11.2015,1904837405,950.00,Redacted Personal Information
Manchester City Council,Adult Social Care,Compensation Payments,05.11.2015,1904862764,"8,435.00",HMCTS (Manchester County Court)
Manchester City Council,Adult Social Care,Compensation Payments,05.11.2015,1904860796,"5,650.00",Michael Lewin Solicitors
Manchester City Council,Corporate Services,Grant and subscriptions awarded,05.11.2015,5100824427,"3,095.00",Utilitywise Corporate Division
Manchester City Council,Corporate Services,Landline Telephone,05.11.2015,1904844847,"1,116.96",Vodafone (Ex C&W)
Manchester City Council,Corporate Services,Professional fees,05.11.2015,1904862676,552.00,THE LEARN CENTRE
Manchester City Council,Corporate Services,Works and associated costs for Land and Buildings,05.11.2015,5100824258,"15,415.00",Manchester Working Ltd
Manchester City Council,Corporate Services,Works and associated costs for Land and Buildings,05.11.2015,5100823981,"14,060.00",G & J Seddon Ltd
Manchester City Council,Corporate Services,Works and associated costs for Land and Buildings,05.11.2015,5100824255,"1,789.69",Manchester Working Ltd
Manchester City Council,Corporate Services,Legal Fees,05.11.2015,1904862639,"2,718.00",HMCTS (Manchester)
Manchester City Council,Corporate Services,Legal Fees,05.11.2015,1904862640,"2,535.00",HMCTS (Manchester)
Manchester City Council,Corporate Services,Legal Fees,05.11.2015,1904862641,"2,406.00",HMCTS (Manchester)
Manchester City Council,Corporate Services,Legal Fees,05.11.2015,1904862638,"1,110.00",HMCTS (Manchester)
Manchester City Council,Housing General Fund,Surplus property Fees,05.11.2015,1904853641,"12,570.00",Aspin and Company Ltd
Manchester City Council,Housing General Fund,Surplus property Fees,05.11.2015,1904853621,"2,145.00",Plan:8 Town Planning Ltd
Manchester City Council,Housing General Fund,Works and associated costs for Land and Buildings,05.11.2015,5100824454,"11,000.00",Colliers International
Manchester City Council,Housing Revenue Account,Council Dwelling Adaptations,05.11.2015,5100823942,"1,133.20",SIG Roofing Supplies
Manchester City Council,Housing Revenue Account,Electricity,05.11.2015,1904862330,"1,245.50",British Gas Plc
Manchester City Council,Housing Revenue Account,Gas,05.11.2015,1904862339,"1,275.53",Scottish & Southern Energy Plc
Manchester City Council,Housing Revenue Account,Gas,05.11.2015,1904862357,"1,045.29",Scottish & Southern Energy Plc
Manchester City Council,Housing Revenue Account,Gas,05.11.2015,1904862363,816.32,Scottish & Southern Energy Plc
Manchester City Council,Housing Revenue Account,Gas,05.11.2015,1904862382,782.81,Scottish & Southern Energy Plc
Manchester City Council,Housing Revenue Account,Gas,05.11.2015,1904862335,781.53,Scottish & Southern Energy Plc
Manchester City Council,Housing Revenue Account,Gas,05.11.2015,1904862353,732.20,Scottish & Southern Energy Plc
Manchester City Council,Housing Revenue Account,Gas,05.11.2015,1904862348,675.90,Scottish & Southern Energy Plc
Manchester City Council,Housing Revenue Account,Gas,05.11.2015,1904862389,630.39,Scottish & Southern Energy Plc
Manchester City Council,Housing Revenue Account,Gas,05.11.2015,1904862370,504.49,Scottish & Southern Energy Plc
Manchester City Council,Housing Revenue Account,Gas,05.11.2015,1700059158,-509.40,Scottish & Southern Energy Plc
Manchester City Council,Housing Revenue Account,Gas,05.11.2015,1700059159,-544.38,Scottish & Southern Energy Plc
Manchester City Council,Housing Revenue Account,Gas,05.11.2015,1700059155,-561.87,Scottish & Southern Energy Plc
Manchester City Council,Housing Revenue Account,Gas,05.11.2015,1700059163,-561.87,Scottish & Southern Energy Plc
Manchester City Council,Chief Executives,Advertising,05.11.2015,1904856376,700.00,I Love Mcr Ltd
Manchester City Council,Chief Executives,Advertising,05.11.2015,1904862650,619.33,Facebook (CARD ONLY)
Manchester City Council,Chief Executives,Advertising,05.11.2015,1904862653,601.17,Facebook (CARD ONLY)
Manchester City Council,Chief Executives,Advertising,05.11.2015,1904862652,600.45,Facebook (CARD ONLY)
Manchester City Council,Chief Executives,Advertising,05.11.2015,1904862649,600.41,Facebook (CARD ONLY)
Manchester City Council,Chief Executives,Advertising,05.11.2015,1904862647,600.17,Facebook (CARD ONLY)
Manchester City Council,Chief Executives,Advertising,05.11.2015,1904862646,600.14,Facebook (CARD ONLY)
Manchester City Council,Chief Executives,Agency staff provision,05.11.2015,5100824592,"1,610.00",Hays Personnel
Manchester City Council,Chief Executives,Agency staff provision,05.11.2015,5100824588,"1,209.60",Hays Personnel
Manchester City Council,Chief Executives,Agency staff provision,05.11.2015,5100824590,"1,045.45",Hays Personnel
Manchester City Council,Chief Executives,Agency staff provision,05.11.2015,5100824589,900.00,Hays Personnel
Manchester City Council,Chief Executives,Electricity,05.11.2015,1904862301,"1,080.72",British Gas Plc
Manchester City Council,Chief Executives,Landline Telephone,05.11.2015,1904853967,"2,235.03",Vodafone (Ex C&W)
Manchester City Council,Chief Executives,Licences Purchase,05.11.2015,5100822960,"21,177.45",The Copyright Licensing Agency Ltd
Manchester City Council,Chief Executives,Professional fees,05.11.2015,1904862654,"3,273.49",MAILCHIMP
Manchester City Council,Chief Executives,Publications,05.11.2015,5100823951,585.69,Thompson Reuters
Manchester City Council,Chief Executives,Publicity,05.11.2015,5100824023,"1,250.00",Show Racism The Red Card
Manchester City Council,Chief Executives,Subsistence and Conference Expenses,05.11.2015,1904860814,549.00,Global Insight Conferences Ltd
Manchester City Council,Chief Executives,Travel,05.11.2015,5100824342,"30,250.00",Cresta World Travel t/a Uniglobe
Manchester City Council,Chief Executives,Vehicle Hire Costs,05.11.2015,5100824435,502.00,Premier Chauffeur Services
Manchester City Council,Chief Executives,Legal Fees,05.11.2015,5100823967,"4,950.00",Blackstone Chambers
Manchester City Council,Chief Executives,Legal Fees,05.11.2015,1904862293,615.00,HMCTS (Manchester County Court)
Manchester City Council,Chief Executives,Compensation Payments,05.11.2015,1904862764,"8,590.00",HMCTS (Manchester County Court)
Manchester City Council,Regeneration Finance,Agency staff provision,05.11.2015,5100824591,"1,246.98",Hays Personnel
Manchester City Council,Regeneration Finance,Electricity,05.11.2015,1904862306,"23,515.57",British Gas Plc
Manchester City Council,Regeneration Finance,Electricity,05.11.2015,1904862305,"19,885.68",British Gas Plc
Manchester City Council,Regeneration Finance,Electricity,05.11.2015,1904862320,"15,437.11",British Gas Plc
Manchester City Council,Regeneration Finance,Electricity,05.11.2015,1904862327,"13,000.68",British Gas Plc
Manchester City Council,Regeneration Finance,Electricity,05.11.2015,1904862296,"12,688.58",British Gas Plc
Manchester City Council,Regeneration Finance,Electricity,05.11.2015,1904862318,"12,510.06",British Gas Plc
Manchester City Council,Regeneration Finance,Electricity,05.11.2015,1904862315,"11,836.61",British Gas Plc
Manchester City Council,Regeneration Finance,Electricity,05.11.2015,1904862297,"10,422.42",British Gas Plc
Manchester City Council,Regeneration Finance,Electricity,05.11.2015,1904862316,"5,387.83",British Gas Plc
Manchester City Council,Regeneration Finance,Electricity,05.11.2015,1904862319,"4,532.90",British Gas Plc
Manchester City Council,Regeneration Finance,Electricity,05.11.2015,1904862299,"3,969.92",British Gas Plc
Manchester City Council,Regeneration Finance,Electricity,05.11.2015,1904862325,"2,738.98",British Gas Plc
Manchester City Council,Regeneration Finance,Electricity,05.11.2015,1904862298,"2,675.67",British Gas Plc
Manchester City Council,Regeneration Finance,Electricity,05.11.2015,1904862311,"2,528.31",British Gas Plc
Manchester City Council,Regeneration Finance,Electricity,05.11.2015,1904862307,"1,468.06",British Gas Plc
Manchester City Council,Regeneration Finance,Electricity,05.11.2015,1904862324,"1,382.75",British Gas Plc
Manchester City Council,Regeneration Finance,Electricity,05.11.2015,1904862300,"1,365.54",British Gas Plc
Manchester City Council,Regeneration Finance,Electricity,05.11.2015,1904862313,"1,237.64",British Gas Plc
Manchester City Council,Regeneration Finance,Electricity,05.11.2015,1904862314,"1,115.09",British Gas Plc
Manchester City Council,Regeneration Finance,Electricity,05.11.2015,1904862317,736.34,British Gas Plc
Manchester City Council,Regeneration Finance,Professional fees,05.11.2015,5100823935,"14,632.50",Commission for the New Economy
Manchester City Council,Regeneration Finance,Professional fees,05.11.2015,5100824259,"4,350.00",Colliers International
Manchester City Council,Regeneration Finance,Professional fees,05.11.2015,5100824257,"2,000.00",Roger Hannah & Co
Manchester City Council,Insurance Fund,Insurance,05.11.2015,1904845963,"14,750.00",Royal Berkshire NHS FT
Manchester City Council,Insurance Fund,Insurance,05.11.2015,1904844577,"6,000.00",Abney Garsden Mcdonald
Manchester City Council,Insurance Fund,Insurance,05.11.2015,1904856456,"3,540.00",KWLC (UK) Ltd
Manchester City Council,Insurance Fund,Insurance,05.11.2015,1904856399,"3,225.00",Michael Lewin Solicitors
Manchester City Council,Insurance Fund,Insurance,05.11.2015,1904846905,"3,000.00",Accountant General of the Senior
Manchester City Council,Insurance Fund,Insurance,05.11.2015,1904852007,"1,510.00",Department For Work & Pensions
Manchester City Council,Insurance Fund,Insurance,05.11.2015,1904847029,"1,205.00",CB Conditioning
Manchester City Council,Insurance Fund,Insurance,05.11.2015,1904853559,"1,000.00",BGR Bloomer Solicitors
Manchester City Council,Insurance Fund,Insurance,05.11.2015,5100824042,550.00,Redacted Personal Information
Manchester City Council,GMIST (Greater Mcr Integrated),Professional fees,05.11.2015,5100824486,"25,000.00",Price Waterhouse Coopers LLP
Manchester City Council,Manchester Leisure,External repairs and maintenance for buildings,06.11.2015,5100824622,"1,416.30",RA & J Hinchcliffe Ltd
Manchester City Council,Manchester Leisure,Hire of Equipment,06.11.2015,5100823522,"5,650.00",Star Events Group Ltd
Manchester City Council,Manchester Leisure,Hire of Equipment,06.11.2015,5100823466,"1,343.60",DBN Lighting
Manchester City Council,Manchester Leisure,Hire of Equipment,06.11.2015,5100823436,722.00,Tube Uk Ltd
Manchester City Council,Manchester Leisure,Payments for services,06.11.2015,1904860847,871.00,Jenny Meadows Sport
Manchester City Council,Manchester Leisure,Professional fees,06.11.2015,5100823488,"5,652.69",RMD Kwikform Ltd
Manchester City Council,Hospitality + Trading Services,Catering Provisions,06.11.2015,1904863316,"1,790.86",Brake Bros Foodservice Ltd
Manchester City Council,Hospitality + Trading Services,Catering Provisions,06.11.2015,1904863318,928.49,Brake Bros Foodservice Ltd
Manchester City Council,Hospitality + Trading Services,Catering Provisions,06.11.2015,1904863321,709.99,Brake Bros Foodservice Ltd
Manchester City Council,Hospitality + Trading Services,Catering Provisions,06.11.2015,1904863290,644.33,Brake Bros Foodservice Ltd
Manchester City Council,Hospitality + Trading Services,Catering Provisions,06.11.2015,1904863319,616.30,Brake Bros Foodservice Ltd
Manchester City Council,Hospitality + Trading Services,Catering Provisions,06.11.2015,1904863314,613.43,Brake Bros Foodservice Ltd
Manchester City Council,Hospitality + Trading Services,Catering Provisions,06.11.2015,1904863322,612.85,Brake Bros Foodservice Ltd
Manchester City Council,Hospitality + Trading Services,Catering Provisions,06.11.2015,1904863305,584.12,Brake Bros Foodservice Ltd
Manchester City Council,Hospitality + Trading Services,Catering Provisions,06.11.2015,1904863273,521.88,Brake Bros Foodservice Ltd
Manchester City Council,Hospitality + Trading Services,Catering Provisions,06.11.2015,1904863277,504.76,Brake Bros Foodservice Ltd
Manchester City Council,Hospitality + Trading Services,Funeral and coroner related services,06.11.2015,5100824734,"1,016.50",ECE Consultancy
Manchester City Council,Hospitality + Trading Services,Funeral and coroner related services,06.11.2015,5100824741,586.00,ECE Consultancy
Manchester City Council,Hospitality + Trading Services,Hire of Equipment,06.11.2015,1904862483,"1,250.00",T/A McDonalds
Manchester City Council,Hospitality + Trading Services,Hire of Machinery,06.11.2015,5100823622,660.00,GHL Liftrucks Ltd
Manchester City Council,Hospitality + Trading Services,Internal Repairs and Maintenance for buildings,06.11.2015,5100824478,"40,750.58",Manchester Working Ltd
Manchester City Council,Environment and Operations,Agency staff provision,06.11.2015,5100824525,"1,516.26",Reed Employment Plc
Manchester City Council,Environment and Operations,Agency staff provision,06.11.2015,5100824528,"1,441.13",Reed Employment Plc
Manchester City Council,Environment and Operations,Agency staff provision,06.11.2015,5100824710,"1,427.47",Reed Employment Plc
Manchester City Council,Environment and Operations,Compensation Payments,06.11.2015,1904852009,"1,228.20",Thompsons Solicitors
Manchester City Council,Environment and Operations,Vehicle Fuel Costs,06.11.2015,5100824501,606.10,Carlton Fuels Ltd
Manchester City Council,Environment and Operations,Compensation Payments,06.11.2015,1904852009,990.00,Thompsons Solicitors
Manchester City Council,Adult Social Care,Agency staff provision,06.11.2015,5100824525,759.50,Reed Employment Plc
Manchester City Council,Adult Social Care,Agency staff provision,06.11.2015,5100824528,759.50,Reed Employment Plc
Manchester City Council,Adult Social Care,Agency staff provision,06.11.2015,5100824710,759.50,Reed Employment Plc
Manchester City Council,Adult Social Care,Agency staff provision,06.11.2015,5100824536,618.45,Network Ventures Ltd T/A Topcare
Manchester City Council,Adult Social Care,Agency staff provision,06.11.2015,5100824710,579.25,Reed Employment Plc
Manchester City Council,Adult Social Care,Agency staff provision,06.11.2015,5100824528,567.35,Reed Employment Plc
Manchester City Council,Adult Social Care,Agency staff provision,06.11.2015,5100824525,530.88,Reed Employment Plc
Manchester City Council,Adult Social Care,Equipment,06.11.2015,5100823865,"2,293.00",Morris & Alexander Ltd
Manchester City Council,Adult Social Care,Grant and subscriptions awarded,06.11.2015,5100824227,"2,677.02",Partners Of Prisoners & Families
Manchester City Council,Adult Social Care,Grant and subscriptions awarded,06.11.2015,5100824286,"2,677.02",Partners Of Prisoners & Families
Manchester City Council,Adult Social Care,Grant and subscriptions awarded,06.11.2015,5100824727,"1,468.73",Youth on Solid Ground
Manchester City Council,Adult Social Care,Grant and subscriptions awarded,06.11.2015,5100823496,"1,452.95",Anson Cabin Project
Manchester City Council,Adult Social Care,Grant and subscriptions awarded,06.11.2015,5100823497,"1,364.33",Anson Cabin Project
Manchester City Council,Adult Social Care,Payments for services,06.11.2015,5100824612,"46,399.00",After Adoption
Manchester City Council,Adult Social Care,Payments for services,06.11.2015,5100824730,"14,804.98",The Together Trust
Manchester City Council,Adult Social Care,Payments for services,06.11.2015,5100824735,"13,137.61",The Together Trust
Manchester City Council,Adult Social Care,Payments for services,06.11.2015,5100824732,"3,096.25",The Together Trust
Manchester City Council,Adult Social Care,Rents,06.11.2015,5100824500,"8,378.35",Great Places Housing Association
Manchester City Council,Adult Social Care,Supporting People Payments,06.11.2015,5100824404,"13,749.25",Creative Support Ltd
Manchester City Council,Adult Social Care,Supporting People Payments,06.11.2015,5100824404,"8,657.10",Creative Support Ltd
Manchester City Council,Adult Social Care,Supporting People Payments,06.11.2015,5100823950,"6,219.92",Turning Point Services
Manchester City Council,Adult Social Care,Supporting People Payments,06.11.2015,5100824404,"5,012.92",Creative Support Ltd
Manchester City Council,Adult Social Care,Supporting People Payments,06.11.2015,5100823867,"4,200.75",Praxis Care Group
Manchester City Council,Adult Social Care,Supporting People Payments,06.11.2015,5100824459,"3,315.11",Future Directions CIC
Manchester City Council,Adult Social Care,Supporting People Payments,06.11.2015,5100824459,"3,288.65",Future Directions CIC
Manchester City Council,Adult Social Care,Supporting People Payments,06.11.2015,5100824459,"3,034.06",Future Directions CIC
Manchester City Council,Adult Social Care,Supporting People Payments,06.11.2015,5100824459,"2,455.23",Future Directions CIC
Manchester City Council,Adult Social Care,Supporting People Payments,06.11.2015,5100824459,"2,276.38",Future Directions CIC
Manchester City Council,Adult Social Care,Supporting People Payments,06.11.2015,5100824459,"1,784.85",Future Directions CIC
Manchester City Council,Adult Social Care,Supporting People Payments,06.11.2015,5100824459,"1,770.25",Future Directions CIC
Manchester City Council,Adult Social Care,Supporting People Payments,06.11.2015,5100824459,"1,584.10",Future Directions CIC
Manchester City Council,Adult Social Care,Supporting People Payments,06.11.2015,5100824459,"1,484.33",Future Directions CIC
Manchester City Council,Adult Social Care,Third party payments relating to Voluntary Organisations,06.11.2015,5100824693,"2,416.66",Barnardo's North West
Manchester City Council,Adult Social Care,Third party payments relating to Voluntary Organisations,06.11.2015,5100824617,"2,186.00",Neesa Well Women Drop-In Project
Manchester City Council,Adult Social Care,Third party payments relating to Voluntary Organisations,06.11.2015,5100823464,"1,500.00",George House Trust
Manchester City Council,Adult Social Care,Third party payments relating to Voluntary Organisations,06.11.2015,5100823542,525.00,Henshaws Society For Blind People
Manchester City Council,Adult Social Care,Transport Coach Hire,06.11.2015,5100824411,"19,795.00",Mantax Radio Taxis Ltd
Manchester City Council,Corporate Services,Construction Works,06.11.2015,5100824527,770.44,GMCA
Manchester City Council,Corporate Services,I T Provision,06.11.2015,5100823749,"1,875.51",Northgate Public Services (UK) Ltd
Manchester City Council,Corporate Services,Transport Taxis,06.11.2015,1904863424,"10,012.30",Mantax Radio Taxis Ltd
Manchester City Council,Housing General Fund,Professional fees,06.11.2015,5100824708,"13,000.00",Manchester Care & Repair Ltd
Manchester City Council,Housing General Fund,Surplus property Acquisitions,06.11.2015,1904863421,"39,775.16",Bevan Brittan LLP
Manchester City Council,Housing General Fund,Surplus property Acquisitions,06.11.2015,1904860559,"5,000.00",Stanley Horne & Kathleen Horne
Manchester City Council,Housing General Fund,Surplus property Acquisitions,06.11.2015,1904853932,"3,000.00",Redacted Personal Information
Manchester City Council,Housing General Fund,Surplus property Fees,06.11.2015,1904853829,"11,580.00",M T Architectural Consultants Ltd
Manchester City Council,Housing Revenue Account,Private Finance and Public Private partnership initiatives,06.11.2015,5100824438,"34,720.56",Manchester Energy Company Limited
Manchester City Council,Chief Executives,Agency staff provision,06.11.2015,5100824525,"3,229.15",Reed Employment Plc
Manchester City Council,Chief Executives,Agency staff provision,06.11.2015,5100824528,"2,893.11",Reed Employment Plc
Manchester City Council,Chief Executives,Agency staff provision,06.11.2015,5100824525,"2,352.90",Reed Employment Plc
Manchester City Council,Chief Executives,Agency staff provision,06.11.2015,5100824710,"2,220.64",Reed Employment Plc
Manchester City Council,Chief Executives,Agency staff provision,06.11.2015,5100824812,"2,012.50",Hays Personnel
Manchester City Council,Chief Executives,Agency staff provision,06.11.2015,5100824807,"1,500.00",Hays Personnel
Manchester City Council,Chief Executives,Agency staff provision,06.11.2015,5100824531,"1,064.28",Bs Project Services Ltd T/A
Manchester City Council,Chief Executives,Agency staff provision,06.11.2015,5100824805,851.90,Hays Personnel
Manchester City Council,Chief Executives,Agency staff provision,06.11.2015,5100824531,711.13,Bs Project Services Ltd T/A
Manchester City Council,Chief Executives,Agency staff provision,06.11.2015,5100824810,680.44,Hays Personnel
Manchester City Council,Chief Executives,Funeral and coroner related services,06.11.2015,5100824636,"1,233.00",The Pennine Acute Hospital Nhs Trus
Manchester City Council,Chief Executives,Funeral and coroner related services,06.11.2015,5100824626,871.20,Redacted Personal Information
Manchester City Council,Chief Executives,Funeral and coroner related services,06.11.2015,5100824554,677.60,Redacted Personal Information
Manchester City Council,Chief Executives,Funeral and coroner related services,06.11.2015,5100824633,553.80,Redacted Personal Information
Manchester City Council,Chief Executives,Infrastructure Fees,06.11.2015,5100824525,"2,647.05",Reed Employment Plc
Manchester City Council,Chief Executives,Infrastructure Fees,06.11.2015,5100824528,"2,647.05",Reed Employment Plc
Manchester City Council,Chief Executives,Infrastructure Fees,06.11.2015,5100824710,"2,647.05",Reed Employment Plc
Manchester City Council,Chief Executives,Infrastructure Fees,06.11.2015,5100824525,"2,587.50",Reed Employment Plc
Manchester City Council,Chief Executives,Infrastructure Fees,06.11.2015,5100824528,"2,587.50",Reed Employment Plc
Manchester City Council,Chief Executives,Infrastructure Fees,06.11.2015,5100824710,"2,587.50",Reed Employment Plc
Manchester City Council,Chief Executives,Infrastructure Fees,06.11.2015,5100824806,"2,025.00",Hays Personnel
Manchester City Council,Chief Executives,Infrastructure Fees,06.11.2015,5100824808,"1,437.50",Hays Personnel
Manchester City Council,Chief Executives,Printing,06.11.2015,5100823598,"1,110.00",Astra Signs
Manchester City Council,Chief Executives,Professional fees,06.11.2015,5100824522,"6,322.63",Trafford M B C
Manchester City Council,Chief Executives,Third party payments to Health Authority,06.11.2015,5100824634,"3,085.00",ROAR Forensics Ltd
Manchester City Council,Regeneration Finance,Agency staff provision,06.11.2015,5100824811,"1,249.78",Hays Personnel
Manchester City Council,Regeneration Finance,Agency staff provision,06.11.2015,5100824531,916.30,Bs Project Services Ltd T/A
Manchester City Council,Regeneration Finance,Grant and subscriptions awarded,06.11.2015,5100824514,"6,250.00",DeHavilland Information Services
Manchester City Council,Regeneration Finance,Grant and subscriptions awarded,06.11.2015,5100824543,750.00,Community Minded Ltd
Manchester City Council,Regeneration Finance,Internal Repairs and Maintenance for buildings,06.11.2015,5100824487,"3,021.58",Manchester Working Ltd
Manchester City Council,Regeneration Finance,Professional fees,06.11.2015,5100824748,"2,114.00",DTZ Debenham Tie Leung Ltd
Manchester City Council,Regeneration Finance,Rents,06.11.2015,5100824489,"32,366.25",CEK Chariable Trust
Manchester City Council,Insurance Fund,Insurance,06.11.2015,1904860795,"2,620.48",Weightmans LLP Solicitors
Manchester City Council,Manchester Leisure,External repairs and maintenance for buildings,09.11.2015,5100823631,"9,833.00",A C Electrical (North) Limited
Manchester City Council,Manchester Leisure,External repairs and maintenance for buildings,09.11.2015,5100823629,"1,550.00",A C Electrical (North) Limited
Manchester City Council,Manchester Leisure,Goods purchased for resale in Council outlets,09.11.2015,5100824827,"1,040.00",Art Angels Publishing Ltd
Manchester City Council,Manchester Leisure,Grounds Maintenance,09.11.2015,5100823516,"2,357.25",Iss Facility Services Limited
Manchester City Council,Manchester Leisure,Grounds Maintenance,09.11.2015,5100824855,"2,215.60",Bancroft Amenities Ltd
Manchester City Council,Manchester Leisure,Hire of Equipment,09.11.2015,5100824089,"1,776.12",Fencelines Ltd
Manchester City Council,Manchester Leisure,Hire of Equipment,09.11.2015,5100823434,"1,344.00",Tube Uk Ltd
Manchester City Council,Manchester Leisure,Hire of Equipment,09.11.2015,5100823434,"1,010.00",Tube Uk Ltd
Manchester City Council,Manchester Leisure,I T Provision,09.11.2015,5100824850,"4,046.00",Axiell ALM Ltd
Manchester City Council,Manchester Leisure,Library Materials Acquisition,09.11.2015,1904855642,"7,500.00",Creditsafe Business Solutions Ltd
Manchester City Council,Manchester Leisure,Library Materials Acquisition,09.11.2015,1904855661,"1,425.00",Backpages Limited
Manchester City Council,Manchester Leisure,Library Materials Acquisition,09.11.2015,1904855643,"1,417.67",Martin Lavell Limited
Manchester City Council,Manchester Leisure,Library Materials Acquisition,09.11.2015,1904855648,773.00,Select Music & Video
Manchester City Council,Manchester Leisure,Payments to Sub-Contractors,09.11.2015,5100823396,"1,905.00",Groundwork Landscapes Ltd
Manchester City Council,Manchester Leisure,Professional fees,09.11.2015,5100823471,"5,000.00",International Sport Group Limited
Manchester City Council,Manchester Leisure,Travel,09.11.2015,5100824743,"1,666.70",Cresta World Travel t/a Uniglobe
Manchester City Council,Hospitality + Trading Services,Agency staff provision,09.11.2015,5100823430,589.05,Search Consultancy Ltd
Manchester City Council,Hospitality + Trading Services,Building Materials for direct delivery,09.11.2015,5100824917,"2,608.00",Marshalls Mono Ltd
Manchester City Council,Hospitality + Trading Services,Building Materials for direct delivery,09.11.2015,5100824931,"2,080.00",Marshalls Mono Ltd
Manchester City Council,Hospitality + Trading Services,Building Materials for direct delivery,09.11.2015,5100824144,"1,380.41",TARMAC
Manchester City Council,Hospitality + Trading Services,Catering Provisions,09.11.2015,1904864352,877.50,Brake Bros Foodservice Ltd
Manchester City Council,Hospitality + Trading Services,Catering Provisions,09.11.2015,1904864323,823.39,Brake Bros Foodservice Ltd
Manchester City Council,Hospitality + Trading Services,Catering Provisions,09.11.2015,1904864376,757.58,Brake Bros Foodservice Ltd
Manchester City Council,Hospitality + Trading Services,Catering Provisions,09.11.2015,1904864387,637.75,Brake Bros Foodservice Ltd
Manchester City Council,Hospitality + Trading Services,Catering Provisions,09.11.2015,1904864379,596.65,Brake Bros Foodservice Ltd
Manchester City Council,Hospitality + Trading Services,Catering Provisions,09.11.2015,1904864374,561.70,Brake Bros Foodservice Ltd
Manchester City Council,Hospitality + Trading Services,Catering Provisions,09.11.2015,1904864329,536.61,Brake Bros Foodservice Ltd
Manchester City Council,Hospitality + Trading Services,Catering Provisions,09.11.2015,1904864372,525.99,Brake Bros Foodservice Ltd
Manchester City Council,Hospitality + Trading Services,Catering Provisions,09.11.2015,1904864361,507.99,Brake Bros Foodservice Ltd
Manchester City Council,Hospitality + Trading Services,Data Registration,09.11.2015,1904863416,"9,100.00",HMCS Traffic EC
Manchester City Council,Hospitality + Trading Services,Equipment,09.11.2015,5100824712,713.66,W.V.Howe Ltd
Manchester City Council,Hospitality + Trading Services,Funeral and coroner related services,09.11.2015,5100824809,681.39,Furnace Construction Cremators Ltd
Manchester City Council,Hospitality + Trading Services,Hire of Machinery,09.11.2015,5100824423,"31,944.00",Gibsons Garden Machinery Limited
Manchester City Council,Hospitality + Trading Services,Hire of Machinery,09.11.2015,5100824737,"12,041.68",F.R.Sharrock Ltd
Manchester City Council,Hospitality + Trading Services,Hire of Machinery,09.11.2015,5100824383,"8,851.25",Gibsons Garden Machinery Limited
Manchester City Council,Hospitality + Trading Services,Hire of Machinery,09.11.2015,5100824392,"5,335.44",Gibsons Garden Machinery Limited
Manchester City Council,Hospitality + Trading Services,Hire of Machinery,09.11.2015,5100824425,"3,762.10",Gibsons Garden Machinery Limited
Manchester City Council,Hospitality + Trading Services,Hire of Machinery,09.11.2015,5100824428,"2,997.37",Gibsons Garden Machinery Limited
Manchester City Council,Hospitality + Trading Services,Hire of Machinery,09.11.2015,5100824393,"2,622.40",Gibsons Garden Machinery Limited
Manchester City Council,Hospitality + Trading Services,Hire of Machinery,09.11.2015,5100824389,"1,452.00",Gibsons Garden Machinery Limited
Manchester City Council,Hospitality + Trading Services,Hire of Machinery,09.11.2015,5100824402,"1,342.00",Gibsons Garden Machinery Limited
Manchester City Council,Hospitality + Trading Services,Hire of Machinery,09.11.2015,5100824403,"1,166.00",Gibsons Garden Machinery Limited
Manchester City Council,Hospitality + Trading Services,Hire of Machinery,09.11.2015,5100824413,976.80,Gibsons Garden Machinery Limited
Manchester City Council,Hospitality + Trading Services,Hire of Machinery,09.11.2015,5100824416,976.80,Gibsons Garden Machinery Limited
Manchester City Council,Hospitality + Trading Services,Hire of Machinery,09.11.2015,5100824415,844.80,Gibsons Garden Machinery Limited
Manchester City Council,Hospitality + Trading Services,Hire of Machinery,09.11.2015,5100824387,726.00,Gibsons Garden Machinery Limited
Manchester City Council,Hospitality + Trading Services,Hire of Machinery,09.11.2015,5100824390,562.80,Gibsons Garden Machinery Limited
Manchester City Council,Hospitality + Trading Services,Machinery and equipment repairs,09.11.2015,5100824264,"1,868.72",F.R.Sharrock Ltd
Manchester City Council,Hospitality + Trading Services,Payments to Sub-Contractors,09.11.2015,5100824857,"17,475.00",Traffic Direct Ltd
Manchester City Council,Hospitality + Trading Services,Payments to Sub-Contractors,09.11.2015,5100823686,"15,619.50",Kenny Bros (Civil Eng) Ltd
Manchester City Council,Hospitality + Trading Services,Payments to Sub-Contractors,09.11.2015,5100824803,"1,120.00",Clearway Drainage Systems Ltd
Manchester City Council,Hospitality + Trading Services,Payments to Sub-Contractors,09.11.2015,5100824777,"1,104.50",Clearway Drainage Systems Ltd
Manchester City Council,Hospitality + Trading Services,Purchase of stores for re-distribution,09.11.2015,5100824957,622.62,Arco Group Ltd
Manchester City Council,Hospitality + Trading Services,Transport Coach Hire,09.11.2015,5100824960,"5,600.00",APTSL
Manchester City Council,Hospitality + Trading Services,Vehicle Hire Costs,09.11.2015,5100824778,"2,750.00",Gullivers Truck Hire Ltd
Manchester City Council,Hospitality + Trading Services,Vehicle Hire Costs,09.11.2015,5100824614,"1,700.00",Peter Douglass Platforms
Manchester City Council,Hospitality + Trading Services,Vehicle Hire Costs,09.11.2015,5100824615,"1,320.00",Peter Douglass Platforms
Manchester City Council,Hospitality + Trading Services,Vehicle Hire Costs,09.11.2015,5100824616,"1,320.00",Peter Douglass Platforms
Manchester City Council,Hospitality + Trading Services,Vehicle Hire Costs,09.11.2015,5100824819,"-2,750.00",Gullivers Truck Hire Ltd
Manchester City Council,Environment and Operations,Building Materials for direct delivery,09.11.2015,5100824711,849.00,Sowing Success
Manchester City Council,Environment and Operations,Grounds Maintenance,09.11.2015,5100824818,"1,532.70",Bpi Recycled Products Plc
Manchester City Council,Environment and Operations,Payments to Sub-Contractors,09.11.2015,5100824916,"52,906.29",Carillion Civil Engineering
Manchester City Council,Environment and Operations,Legal Fees,09.11.2015,5100824787,"1,070.00",Redacted Personal Information
Manchester City Council,Adult Social Care,Agency staff provision,09.11.2015,5100823430,"7,008.05",Search Consultancy Ltd
Manchester City Council,Adult Social Care,Agency staff provision,09.11.2015,5100824754,"2,138.13",SRA Cover Staff Ltd
Manchester City Council,Adult Social Care,Agency staff provision,09.11.2015,5100823430,"1,936.90",Search Consultancy Ltd
Manchester City Council,Adult Social Care,Agency staff provision,09.11.2015,5100823430,"1,619.20",Search Consultancy Ltd
Manchester City Council,Adult Social Care,Agency staff provision,09.11.2015,5100823446,"1,463.36",SRA Cover Staff Ltd
Manchester City Council,Adult Social Care,Agency staff provision,09.11.2015,5100823446,994.83,SRA Cover Staff Ltd
Manchester City Council,Adult Social Care,Agency staff provision,09.11.2015,5100824754,882.30,SRA Cover Staff Ltd
Manchester City Council,Adult Social Care,Agency staff provision,09.11.2015,5100824754,831.98,SRA Cover Staff Ltd
Manchester City Council,Adult Social Care,Agency staff provision,09.11.2015,5100823446,830.40,SRA Cover Staff Ltd
Manchester City Council,Adult Social Care,Agency staff provision,09.11.2015,5100824754,830.40,SRA Cover Staff Ltd
Manchester City Council,Adult Social Care,Agency staff provision,09.11.2015,5100823430,737.80,Search Consultancy Ltd
Manchester City Council,Adult Social Care,Agency staff provision,09.11.2015,5100824754,711.14,SRA Cover Staff Ltd
Manchester City Council,Adult Social Care,Agency staff provision,09.11.2015,5100823446,692.00,SRA Cover Staff Ltd
Manchester City Council,Adult Social Care,Agency staff provision,09.11.2015,5100824754,660.92,SRA Cover Staff Ltd
Manchester City Council,Adult Social Care,Agency staff provision,09.11.2015,5100823446,639.89,SRA Cover Staff Ltd
Manchester City Council,Adult Social Care,Agency staff provision,09.11.2015,5100823446,614.16,SRA Cover Staff Ltd
Manchester City Council,Adult Social Care,Agency staff provision,09.11.2015,5100823446,598.50,SRA Cover Staff Ltd
Manchester City Council,Adult Social Care,Agency staff provision,09.11.2015,5100823430,567.35,Search Consultancy Ltd
Manchester City Council,Adult Social Care,Agency staff provision,09.11.2015,5100823446,560.72,SRA Cover Staff Ltd
Manchester City Council,Adult Social Care,Agency staff provision,09.11.2015,5100824754,550.62,SRA Cover Staff Ltd
Manchester City Council,Adult Social Care,Agency staff provision,09.11.2015,5100823446,519.00,SRA Cover Staff Ltd
Manchester City Council,Adult Social Care,Bed & Breakfast Acc,09.11.2015,5100824838,"34,270.83",Park Crescent Hotel Ltd
Manchester City Council,Adult Social Care,Compensation Payments,09.11.2015,1904856464,"11,500.00",Slater & Gordon (UK) LLP
Manchester City Council,Adult Social Care,Compensation Payments,09.11.2015,1904856403,"4,850.00",Accountant General of the Senior
Manchester City Council,Adult Social Care,Compensation Payments,09.11.2015,1904852010,"2,750.00",Abney Garsden Mcdonald
Manchester City Council,Adult Social Care,Equipment,09.11.2015,5100823858,"3,243.22",Computeam Limited
Manchester City Council,Adult Social Care,Home Care ,09.11.2015,5100824826,"1,337.35",East Didsbury Pre School
Manchester City Council,Adult Social Care,Home Care ,09.11.2015,5100824760,516.99,Banana Moon Day Nursery
Manchester City Council,Adult Social Care,I T Provision,09.11.2015,5100823493,"1,170.00",Ezitracker Ltd
Manchester City Council,Adult Social Care,Payments for services,09.11.2015,5100824964,"231,243.18",Standwalk Ltd
Manchester City Council,Adult Social Care,Payments for services,09.11.2015,5100825012,"20,366.03",The Together Trust
Manchester City Council,Adult Social Care,Payments for services,09.11.2015,5100824516,"8,099.05",Embrace All Ltd
Manchester City Council,Adult Social Care,Payments for services,09.11.2015,5100825009,"4,297.02",Penarth Group School
Manchester City Council,Adult Social Care,Payments for services,09.11.2015,5100825011,"3,859.80",The Together Trust
Manchester City Council,Adult Social Care,Payments for services,09.11.2015,5100825015,"3,859.80",The Together Trust
Manchester City Council,Adult Social Care,Payments for services,09.11.2015,5100825014,"3,096.25",The Together Trust
Manchester City Council,Adult Social Care,Personal needs of client,09.11.2015,5100824593,"6,373.30",Prism Medical UK Carefree Division
Manchester City Council,Adult Social Care,Personal needs of client,09.11.2015,5100824570,"3,735.75",Prism Medical UK Carefree Division
Manchester City Council,Adult Social Care,Professional fees,09.11.2015,5100823483,"15,443.19",Manchester Young Lives
Manchester City Council,Adult Social Care,Public Transport,09.11.2015,1904853795,"1,350.00",A B C Taxis Runcorn
Manchester City Council,Adult Social Care,Rents,09.11.2015,5100824962,"1,249.43",Willow Park Housing Trust
Manchester City Council,Adult Social Care,Rents,09.11.2015,5100824962,"1,237.34",Willow Park Housing Trust
Manchester City Council,Adult Social Care,Subsistence and Conference Expenses,09.11.2015,5100824910,"2,500.00",Just Psychology
Manchester City Council,Adult Social Care,Supporting People Payments,09.11.2015,5100824474,942.74,Riverside ECHG
Manchester City Council,Adult Social Care,Supporting People Payments,09.11.2015,5100824474,912.43,Riverside ECHG
Manchester City Council,Adult Social Care,Supporting People Payments,09.11.2015,5100824474,790.60,Riverside ECHG
Manchester City Council,Adult Social Care,Supporting People Payments,09.11.2015,5100824474,547.74,Riverside ECHG
Manchester City Council,Adult Social Care,Third party payments relating to Voluntary Organisations,09.11.2015,5100824709,"25,000.00",Manchester Care & Repair Ltd
Manchester City Council,Adult Social Care,Third party payments relating to Voluntary Organisations,09.11.2015,5100824497,"5,737.50",Voluntary Youth Manchester
Manchester City Council,Adult Social Care,Third party payments relating to Voluntary Organisations,09.11.2015,5100824766,"5,181.00",Manchester Carers Centre
Manchester City Council,Adult Social Care,Third party payments relating to Voluntary Organisations,09.11.2015,5100824006,"3,250.00",Manchester Mind
Manchester City Council,Adult Social Care,Third party payments relating to Voluntary Organisations,09.11.2015,5100824792,"3,074.25",LMCP Care Link
Manchester City Council,Adult Social Care,Third party payments relating to Voluntary Organisations,09.11.2015,5100824893,"3,010.81",Talbot/Himmat Support Centre
Manchester City Council,Adult Social Care,Third party payments relating to Voluntary Organisations,09.11.2015,5100824851,"2,345.25",Manchester Bangladeshi Womens Organ
Manchester City Council,Adult Social Care,Third party payments relating to Voluntary Organisations,09.11.2015,5100823665,"2,340.00",Stockport Psychology Services
Manchester City Council,Adult Social Care,Third party payments relating to Voluntary Organisations,09.11.2015,5100824796,"2,281.00",LMCP Care Link
Manchester City Council,Adult Social Care,Third party payments relating to Voluntary Organisations,09.11.2015,5100824767,"1,654.00",Manchester Carers Centre
Manchester City Council,Adult Social Care,Third party payments relating to Voluntary Organisations,09.11.2015,5100824913,"1,583.00",Levenshulme Good Neighbours
Manchester City Council,Adult Social Care,Third party payments relating to Voluntary Organisations,09.11.2015,5100824915,"1,583.00",Levenshulme Good Neighbours
Manchester City Council,Adult Social Care,Third party payments relating to Voluntary Organisations,09.11.2015,5100824793,"1,430.00",LMCP Care Link
Manchester City Council,Adult Social Care,Third party payments relating to Voluntary Organisations,09.11.2015,5100823933,"1,059.00",Indian Senior Citizens Centre
Manchester City Council,Adult Social Care,Third party payments relating to Voluntary Organisations,09.11.2015,5100824714,625.00,African & Caribbean Mental Health
Manchester City Council,Adult Social Care,Training and Development,09.11.2015,5100824791,"53,000.00",One Education Ltd
Manchester City Council,Adult Social Care,Transport Coach Hire,09.11.2015,5100823457,"3,515.00",Redacted Personal Information
Manchester City Council,Adult Social Care,Transport Coach Hire,09.11.2015,5100823453,"3,330.00",Redacted Personal Information
Manchester City Council,Adult Social Care,Transport Coach Hire,09.11.2015,5100823459,"2,880.00",Redacted Personal Information
Manchester City Council,Adult Social Care,Transport Coach Hire,09.11.2015,5100823244,"1,530.00",APL Coachhire
Manchester City Council,Adult Social Care,Legal Fees,09.11.2015,5100824550,700.00,Redacted Personal Information
Manchester City Council,Adult Social Care,Legal Fees,09.11.2015,1904837168,575.00,AMD Medical Services
Manchester City Council,Adult Social Care,Legal Fees,09.11.2015,5100823615,500.00,Redacted Personal Information
Manchester City Council,Adult Social Care,Compensation Payments,09.11.2015,1904860556,"1,932.42",Weightmans LLP Solicitors
Manchester City Council,Childrens Services,Works and associated costs for Land and Buildings,09.11.2015,5100823408,"11,558.42",Capita IT Services (BSF) Limited
Manchester City Council,Corporate Services,Long Term Debtors,09.11.2015,5100823333,"635,769.50",LQ Developments Limited
Manchester City Council,Corporate Services,Vehicle Plant Furniture and Equipment,09.11.2015,5100823891,565.00,T.I.S. Limited
Manchester City Council,Housing General Fund,Works and associated costs for Land and Buildings,09.11.2015,5100824788,"1,600.00",Allied Roofing & Construction Ltd
Manchester City Council,Housing Revenue Account,Responsive Repairs Work,09.11.2015,5100824774,"1,086.73",Manchester Working Ltd
Manchester City Council,Housing Revenue Account,Responsive Repairs Work,09.11.2015,5100824776,"-1,086.73",Manchester Working Ltd
Manchester City Council,Chief Executives,Agency staff provision,09.11.2015,5100823446,"16,968.89",SRA Cover Staff Ltd
Manchester City Council,Chief Executives,Agency staff provision,09.11.2015,5100823430,"7,755.56",Search Consultancy Ltd
Manchester City Council,Chief Executives,Agency staff provision,09.11.2015,5100824512,"3,029.40",Hudson Global Resources Ltd
Manchester City Council,Chief Executives,Agency staff provision,09.11.2015,5100823874,653.31,Proactive Personnel Ltd
Manchester City Council,Chief Executives,Agency staff provision,09.11.2015,5100824754,536.08,SRA Cover Staff Ltd
Manchester City Council,Chief Executives,Funeral and coroner related services,09.11.2015,5100824630,532.00,Johnston Brothers Funeral Service
Manchester City Council,Chief Executives,Hire of Equipment,09.11.2015,5100824599,"4,081.00",Universal Live
Manchester City Council,Chief Executives,Hire of Equipment,09.11.2015,5100824600,759.60,Universal Live
Manchester City Council,Chief Executives,I T Provision,09.11.2015,5100824631,"2,850.00",Advanced Legal Solutions Ltd
Manchester City Council,Chief Executives,ICT Sup & Maintnance,09.11.2015,5100824553,"36,036.00",Ibm United Kingdom Financial Serv.L
Manchester City Council,Chief Executives,Printing,09.11.2015,5100823764,"1,142.00",Chapel Press Ltd
Manchester City Council,Chief Executives,Subsistence and Conference Expenses,09.11.2015,5100824309,698.00,Cresta World Travel t/a Uniglobe
Manchester City Council,Chief Executives,Subsistence and Conference Expenses,09.11.2015,5100824339,514.00,Cresta World Travel t/a Uniglobe
Manchester City Council,Chief Executives,Vehicle Hire Costs,09.11.2015,5100823571,750.75,Manchester Van Hire Ltd
Manchester City Council,Chief Executives,Legal Fees,09.11.2015,5100823613,"2,000.00",Redacted Personal Information
Manchester City Council,Chief Executives,Legal Fees,09.11.2015,5100824789,"1,850.00",Redacted Personal Information
Manchester City Council,Chief Executives,Compensation Payments,09.11.2015,5100824906,"1,000.00",Redacted Personal Information
Manchester City Council,Chief Executives,Compensation Payments,09.11.2015,1904863413,932.20,Acumension Ltd
Manchester City Council,Regeneration Finance,CRB Fees,09.11.2015,5100824995,"13,772.00",Disclosure & Barring Service
Manchester City Council,Regeneration Finance,Equipment,09.11.2015,5100823717,"1,900.00",Idox Software Ltd
Manchester City Council,Regeneration Finance,External repairs and maintenance for buildings,09.11.2015,5100824799,"6,390.65",Manchester Working Ltd
Manchester City Council,Regeneration Finance,Professional fees,09.11.2015,5100823425,"12,563.85",Turner & Townsend Cost
Manchester City Council,Regeneration Finance,Professional fees,09.11.2015,5100824695,"10,000.00",GVA Grimley Ltd
Manchester City Council,Regeneration Finance,Professional fees,09.11.2015,5100823427,"8,988.75",Turner & Townsend Cost
Manchester City Council,Regeneration Finance,Professional fees,09.11.2015,5100823424,"5,768.10",Turner & Townsend Project
Manchester City Council,Regeneration Finance,Professional fees,09.11.2015,5100823423,"4,770.03",Turner & Townsend Cost
Manchester City Council,Regeneration Finance,Professional fees,09.11.2015,5100824802,"3,456.00",The Manchester College
Manchester City Council,Regeneration Finance,Professional fees,09.11.2015,5100823672,"2,367.25",Planit
Manchester City Council,Regeneration Finance,Professional fees,09.11.2015,5100823426,"2,091.50",Turner & Townsend Cost
Manchester City Council,Regeneration Finance,Taxi Vehicle Materia,09.11.2015,5100824546,"2,398.30",New Auto Ltd T/A Mogo (Uk)
Manchester City Council,Regeneration Finance,Travel,09.11.2015,5100824338,"2,279.50",Cresta World Travel t/a Uniglobe
Manchester City Council,Regeneration Finance,Travel,09.11.2015,5100824311,522.52,Cresta World Travel t/a Uniglobe
Manchester City Council,Regeneration Finance,Legal Fees,09.11.2015,5100824839,"2,400.00",Redacted Personal Information
Manchester City Council,GMIST (Greater Mcr Integrated),Professional fees,09.11.2015,5100823637,"16,000.00",Kpmg Llp
Manchester City Council,GMIST (Greater Mcr Integrated),Professional fees,09.11.2015,5100823990,"7,200.00",Nexus Real Estate
Manchester City Council,Manchester Leisure,Agency staff provision,10.11.2015,5100825199,836.22,Resolve Personnel Ltd
Manchester City Council,Manchester Leisure,Catering,10.11.2015,5100825035,"1,891.53",Obson & Co Ltd
Manchester City Council,Manchester Leisure,I T Provision,10.11.2015,5100824250,"3,173.00",TalkingTech UK Ltd
Manchester City Council,Manchester Leisure,Professional fees,10.11.2015,5100825030,"10,000.00",City of Manchester Aquatics Swim Te
Manchester City Council,Manchester Leisure,Professional fees,10.11.2015,5100825037,"6,850.00",Gekay Carpets
Manchester City Council,Manchester Leisure,Professional fees,10.11.2015,5100825034,"2,590.00",The Emilia Group
Manchester City Council,Manchester Leisure,Professional fees,10.11.2015,5100825080,"1,498.11",Bauer Radio Ltd
Manchester City Council,Manchester Leisure,Special Event,10.11.2015,5100825069,"2,857.00",Spacecadets Air Design Ltd
Manchester City Council,Manchester Leisure,Stationery,10.11.2015,5100823800,640.00,Eve Trakway
Manchester City Council,Libraries and Theatres,Training and Development,10.11.2015,5100825237,"1,812.00",Treepartner
Manchester City Council,Hospitality + Trading Services,Agency staff provision,10.11.2015,5100825199,553.15,Resolve Personnel Ltd
Manchester City Council,Hospitality + Trading Services,Building Materials for direct delivery,10.11.2015,1904865840,"1,117.50",Ecomix Concrete Ltd
Manchester City Council,Hospitality + Trading Services,Catering Provisions,10.11.2015,1904865546,"1,420.18",Brake Bros Foodservice Ltd
Manchester City Council,Hospitality + Trading Services,Catering Provisions,10.11.2015,1904865533,656.77,Chicken Joes Limited
Manchester City Council,Hospitality + Trading Services,Catering Provisions,10.11.2015,1904865544,630.69,Chicken Joes Limited
Manchester City Council,Hospitality + Trading Services,Catering Provisions,10.11.2015,1904865509,616.12,Brake Bros Foodservice Ltd
Manchester City Council,Hospitality + Trading Services,Catering Provisions,10.11.2015,1904865555,608.22,Chicken Joes Limited
Manchester City Council,Hospitality + Trading Services,Contract Cleaning External,10.11.2015,5100823484,"1,621.01",M & M Cleaning Services Ltd
Manchester City Council,Hospitality + Trading Services,External repairs and maintenance for buildings,10.11.2015,5100824236,"3,550.00",A J Worrall Consulting Ltd
Manchester City Council,Hospitality + Trading Services,Hire of Machinery,10.11.2015,5100825193,"4,599.00",John Martin Devine Ltd
Manchester City Council,Hospitality + Trading Services,Security,10.11.2015,5100824892,"402,554.00",Group 4 Total Security Ltd T/A G4S
Manchester City Council,Hospitality + Trading Services,Security,10.11.2015,5100824436,"2,392.80",Showsec International Ltd
Manchester City Council,Hospitality + Trading Services,Tipping - Tonnage,10.11.2015,5100824598,713.12,J.Hopkins (Contractors) Ltd.
Manchester City Council,Hospitality + Trading Services,Vehicle Fuel Costs,10.11.2015,5100824398,"15,580.87",Carlton Fuels Ltd
Manchester City Council,Environment and Operations,Grant Payments,10.11.2015,5100825001,700.00,The Conservation Volunteers
Manchester City Council,Environment and Operations,Grounds Maintenance,10.11.2015,5100824190,"1,277.00",Weedfree Ltd
Manchester City Council,Environment and Operations,I T Provision,10.11.2015,5100824475,"2,624.70",Experian  Ltd
Manchester City Council,Adult Social Care,Agency staff provision,10.11.2015,5100825066,"1,548.40",Caritas Recruitment
Manchester City Council,Adult Social Care,Agency staff provision,10.11.2015,5100825067,"1,283.40",Eden Brown Synergy
Manchester City Council,Adult Social Care,Agency staff provision,10.11.2015,5100825079,967.75,Eden Brown Synergy
Manchester City Council,Adult Social Care,Agency staff provision,10.11.2015,5100825056,853.65,Eden Brown Synergy
Manchester City Council,Adult Social Care,Agency staff provision,10.11.2015,5100825075,853.65,Eden Brown Synergy
Manchester City Council,Adult Social Care,Agency staff provision,10.11.2015,5100825065,830.20,Eden Brown Synergy
Manchester City Council,Adult Social Care,Agency staff provision,10.11.2015,5100825058,723.10,Eden Brown Synergy
Manchester City Council,Adult Social Care,Agency staff provision,10.11.2015,5100825059,723.10,Eden Brown Synergy
Manchester City Council,Adult Social Care,Agency staff provision,10.11.2015,5100825070,632.40,Eden Brown Synergy
Manchester City Council,Adult Social Care,Agency staff provision,10.11.2015,5100825057,608.30,Eden Brown Synergy
Manchester City Council,Adult Social Care,Agency staff provision,10.11.2015,5100825072,538.30,Eden Brown Synergy
Manchester City Council,Adult Social Care,Agency staff provision,10.11.2015,5100825202,526.68,Network Ventures Ltd T/A Topcare
Manchester City Council,Adult Social Care,Equipment,10.11.2015,5100824795,"6,883.30",Independent Life Solutions
Manchester City Council,Adult Social Care,Equipment,10.11.2015,5100824800,"6,000.00",Independent Life Solutions
Manchester City Council,Adult Social Care,Equipment,10.11.2015,5100824797,"2,602.64",Independent Life Solutions
Manchester City Council,Adult Social Care,Equipment,10.11.2015,5100824790,"1,270.00",Independent Life Solutions
Manchester City Council,Adult Social Care,Payments for services,10.11.2015,5100825133,"13,175.00",Manchester People First
Manchester City Council,Adult Social Care,Payments for services,10.11.2015,5100825022,"5,462.96",The Together Trust
Manchester City Council,Adult Social Care,Payments for services,10.11.2015,5100825020,"3,859.80",The Together Trust
Manchester City Council,Adult Social Care,Payments for services,10.11.2015,5100825016,"3,216.50",The Together Trust
Manchester City Council,Adult Social Care,Payments for services,10.11.2015,5100825215,"3,087.84",The Together Trust
Manchester City Council,Adult Social Care,Payments for services,10.11.2015,5100825017,"1,543.92",The Together Trust
Manchester City Council,Adult Social Care,Payments for services,10.11.2015,5100825217,725.00,The Together Trust
Manchester City Council,Adult Social Care,Postage,10.11.2015,5100825172,518.37,Neopost Finance Ltd (Rental)
Manchester City Council,Adult Social Care,Professional fees,10.11.2015,5100825073,"1,050.00",Caritas Recruitment
Manchester City Council,Adult Social Care,Rents,10.11.2015,5100823388,"20,193.04",United Property Management Ltd
Manchester City Council,Adult Social Care,Stationery,10.11.2015,5100825078,529.60,Eden Brown Synergy
Manchester City Council,Adult Social Care,Subsistence and Conference Expenses,10.11.2015,5100825131,"2,590.00",Inclusive Choice
Manchester City Council,Adult Social Care,Third party payments relating to Voluntary Organisations,10.11.2015,5100825132,"11,703.25",Manchester People First
Manchester City Council,Adult Social Care,Third party payments relating to Voluntary Organisations,10.11.2015,5100825003,"8,586.04",Talbot House Support Centre
Manchester City Council,Adult Social Care,Third party payments to Health Authority,10.11.2015,5100825248,"91,844.33",University Hospital of South Mcr
Manchester City Council,Adult Social Care,Third party payments to Health Authority,10.11.2015,5100825251,"91,844.33",University Hospital of South Mcr
Manchester City Council,Adult Social Care,Third party payments to Health Authority,10.11.2015,5100825248,"20,429.08",University Hospital of South Mcr
Manchester City Council,Adult Social Care,Third party payments to Health Authority,10.11.2015,5100825251,"20,429.08",University Hospital of South Mcr
Manchester City Council,Adult Social Care,Third party payments to Health Authority,10.11.2015,5100825248,"10,674.67",University Hospital of South Mcr
Manchester City Council,Adult Social Care,Third party payments to Health Authority,10.11.2015,5100825251,"10,674.67",University Hospital of South Mcr
Manchester City Council,Adult Social Care,Third party payments to Health Authority,10.11.2015,5100825250,"-10,674.67",University Hospital of South Mcr
Manchester City Council,Adult Social Care,Third party payments to Health Authority,10.11.2015,5100825250,"-20,429.08",University Hospital of South Mcr
Manchester City Council,Adult Social Care,Third party payments to Health Authority,10.11.2015,5100825250,"-91,844.33",University Hospital of South Mcr
Manchester City Council,Adult Social Care,Training and Development,10.11.2015,5100824151,"1,030.00",Ncfe
Manchester City Council,Adult Social Care,Transport Coach Hire,10.11.2015,5100823545,"18,915.50",Youbus Ltd
Manchester City Council,Adult Social Care,Transport Coach Hire,10.11.2015,5100823243,"6,332.00",Redacted Personal Information
Manchester City Council,Adult Social Care,Transport Coach Hire,10.11.2015,5100825235,"3,949.35",Connect Cars Ltd
Manchester City Council,Adult Social Care,Transport Coach Hire,10.11.2015,5100825233,"-3,949.35",Connect Cars Ltd
Manchester City Council,Corporate Services,CRB Fees,10.11.2015,5100823711,"4,800.00",United Medicare Ltd
Manchester City Council,Corporate Services,I T Provision,10.11.2015,5100823794,"2,850.00",Northgate Public Services (UK) Ltd
Manchester City Council,Corporate Services,Tracing fees,10.11.2015,5100823772,"1,875.00",Experian Limited
Manchester City Council,Corporate Services,Travel Season TLS,10.11.2015,5100823530,"3,492.00",Northern Rail Ltd
Manchester City Council,Corporate Services,Travel Season TLS,10.11.2015,5100823530,"1,744.00",Northern Rail Ltd
Manchester City Council,Corporate Services,Travel Season TLS,10.11.2015,5100823530,"1,684.00",Northern Rail Ltd
Manchester City Council,Corporate Services,Travel Season TLS,10.11.2015,5100823530,"1,684.00",Northern Rail Ltd
Manchester City Council,Corporate Services,Travel Season TLS,10.11.2015,5100823530,"1,132.00",Northern Rail Ltd
Manchester City Council,Corporate Services,Travel Season TLS,10.11.2015,5100823530,928.60,Northern Rail Ltd
Manchester City Council,Corporate Services,Travel Season TLS,10.11.2015,5100823530,928.60,Northern Rail Ltd
Manchester City Council,Corporate Services,Travel Season TLS,10.11.2015,5100823530,928.60,Northern Rail Ltd
Manchester City Council,Corporate Services,Travel Season TLS,10.11.2015,5100823530,928.60,Northern Rail Ltd
Manchester City Council,Corporate Services,Travel Season TLS,10.11.2015,5100823530,928.60,Northern Rail Ltd
Manchester City Council,Corporate Services,Travel Season TLS,10.11.2015,5100823530,928.60,Northern Rail Ltd
Manchester City Council,Corporate Services,Travel Season TLS,10.11.2015,5100823530,928.60,Northern Rail Ltd
Manchester City Council,Corporate Services,Travel Season TLS,10.11.2015,5100823530,928.60,Northern Rail Ltd
Manchester City Council,Corporate Services,Travel Season TLS,10.11.2015,5100823530,928.60,Northern Rail Ltd
Manchester City Council,Corporate Services,Travel Season TLS,10.11.2015,5100823530,928.60,Northern Rail Ltd
Manchester City Council,Corporate Services,Travel Season TLS,10.11.2015,5100823530,928.60,Northern Rail Ltd
Manchester City Council,Corporate Services,Travel Season TLS,10.11.2015,5100823530,688.00,Northern Rail Ltd
Manchester City Council,Corporate Services,Works and associated costs for Land and Buildings,10.11.2015,1904860807,"2,440.00",Redacted Personal Information
Manchester City Council,Housing Revenue Account,Northwards Reps Fee,10.11.2015,5100823955,"1,784,120.67",Northwards Housing Limited
Manchester City Council,Housing Revenue Account,Professional fees,10.11.2015,5100825029,"100,000.00",Eastlands Homes Partnership Ltd
Manchester City Council,Housing Revenue Account,Professional fees,10.11.2015,5100825085,"3,860.00",Roger Hannah & Co
Manchester City Council,Housing Revenue Account,Professional fees,10.11.2015,5100823628,688.43,Mpulse Ltd
Manchester City Council,Housing Revenue Account,Works and associated costs for Land and Buildings,10.11.2015,5100824690,"4,275.00",Buttress
Manchester City Council,Chief Executives,Agency staff provision,10.11.2015,5100825050,"1,688.08",Eden Brown Synergy
Manchester City Council,Chief Executives,Agency staff provision,10.11.2015,5100825055,"1,204.00",Caritas Recruitment
Manchester City Council,Chief Executives,Agency staff provision,10.11.2015,5100825052,967.75,Eden Brown Synergy
Manchester City Council,Chief Executives,Agency staff provision,10.11.2015,5100825202,542.64,Network Ventures Ltd T/A Topcare
Manchester City Council,Chief Executives,Agency staff provision,10.11.2015,5100825061,-723.10,Eden Brown Synergy
Manchester City Council,Chief Executives,Agency staff provision,10.11.2015,5100825062,"-1,600.15",Eden Brown Synergy
Manchester City Council,Chief Executives,Agency staff provision,10.11.2015,5100825262,"-10,529.45",Eden Brown Synergy
Manchester City Council,Chief Executives,Funeral and coroner related services,10.11.2015,1904865471,594.63,Redacted Personal Information
Manchester City Council,Chief Executives,Landline Telephone,10.11.2015,1904860808,"9,292.45",Vodafone (Ex C&W)
Manchester City Council,Chief Executives,Printing,10.11.2015,5100824584,566.40,Service Point
Manchester City Council,Chief Executives,Training and Development,10.11.2015,5100825134,"3,471.25",Manchester Metropolitan University
Manchester City Council,Chief Executives,Vehicle Plant Furniture and Equipment,10.11.2015,5100824251,750.00,TalkingTech UK Ltd
Manchester City Council,Regeneration Finance,Agency staff provision,10.11.2015,5100825074,"1,152.00",Eden Brown Synergy
Manchester City Council,Regeneration Finance,Contract Cleaning External,10.11.2015,5100823485,807.52,M & M Cleaning Services Ltd
Manchester City Council,Regeneration Finance,External repairs and maintenance for buildings,10.11.2015,5100825196,570.00,Integrated Water Services Ltd
Manchester City Council,Regeneration Finance,Grant Payments,10.11.2015,1904862470,"7,000.00",Fallowfield Library & Comm Centre
Manchester City Council,Regeneration Finance,Grant Payments,10.11.2015,1904860800,"5,000.00",Wythenshawe Forum Trust Ltd
Manchester City Council,Regeneration Finance,Grant Payments,10.11.2015,1904860803,"3,499.00",Youth on Solid Ground
Manchester City Council,Regeneration Finance,Grant Payments,10.11.2015,1904865377,"3,000.00",Close Neighbours Residents Assoc
Manchester City Council,Regeneration Finance,Grant Payments,10.11.2015,1904860799,"1,400.00",Northwards Housing Limited
Manchester City Council,Regeneration Finance,Grant Payments,10.11.2015,1904856460,"1,242.00",City South Manchester Housing Trust
Manchester City Council,Regeneration Finance,Grant Payments,10.11.2015,1904865395,"1,240.00",Wright Robinson Sports College
Manchester City Council,Regeneration Finance,Grant Payments,10.11.2015,1904863418,"1,000.00",Christ Church Harpurhey PCC
Manchester City Council,Regeneration Finance,Grant Payments,10.11.2015,1904856460,855.00,City South Manchester Housing Trust
Manchester City Council,Regeneration Finance,Grant Payments,10.11.2015,1904860801,500.00,Hillside Tenants & Res Assoc
Manchester City Council,Regeneration Finance,Grant Payments,10.11.2015,1904862469,500.00,Manchester Girls FC
Manchester City Council,Regeneration Finance,Professional fees,10.11.2015,5100821626,"2,000.00",Ove Arup & Partners Ltd
Manchester City Council,Regeneration Finance,Removal and Storage of Furniture,10.11.2015,5100824637,"1,575.84",Master Moves Ltd
Manchester City Council,Regeneration Finance,Storage Costs,10.11.2015,5100824685,699.85,Data Space Limited
Manchester City Council,Insurance Fund,Insurance,10.11.2015,1904865391,"6,651.31",Department For Work & Pensions
Manchester City Council,Insurance Fund,Insurance,10.11.2015,1904865392,566.00,Department For Work & Pensions
Manchester City Council,GMIST (Greater Mcr Integrated),I T Provision,10.11.2015,5100823726,"1,900.00",Limehouse Software Ltd
Manchester City Council,GMIST (Greater Mcr Integrated),Professional fees,10.11.2015,5100825021,"30,000.00",University Of Salford
Manchester City Council,Manchester Leisure,Agency staff provision,11.11.2015,5100824869,"7,589.22",Rochdale MBC
Manchester City Council,Manchester Leisure,Equipment,11.11.2015,5100825296,525.00,Alba Service & Supply Ltd
Manchester City Council,Manchester Leisure,Goods purchased for resale in Council outlets,11.11.2015,1904865385,"1,349.88",Polite Company
Manchester City Council,Manchester Leisure,Hire of Premises,11.11.2015,5100823492,"1,156.00",Sale Harriers Manchester
Manchester City Council,Manchester Leisure,Payments for services,11.11.2015,5100825357,"1,609.37",Eastlands Trust Limited
Manchester City Council,Manchester Leisure,Professional fees,11.11.2015,5100825346,"19,021.30",Eastlands Trust Limited
Manchester City Council,Manchester Leisure,Professional fees,11.11.2015,5100825332,500.00,GM Business Support Ltd
Manchester City Council,Manchester Leisure,Refuse Collection,11.11.2015,5100825485,"1,451.00",Dickinson Environmental
Manchester City Council,Manchester Leisure,Refuse Collection,11.11.2015,5100825483,"1,419.00",Dickinson Environmental
Manchester City Council,Manchester Leisure,Training and Development,11.11.2015,5100825267,500.00,North West Regional Youth Work Unit
Manchester City Council,Hospitality + Trading Services,Catering Provisions,11.11.2015,1904870657,965.84,BRAMBLES FOODS LTD
Manchester City Council,Hospitality + Trading Services,Catering Provisions,11.11.2015,1904870675,732.64,Brake Bros Foodservice Ltd
Manchester City Council,Hospitality + Trading Services,Catering Provisions,11.11.2015,1904870643,681.82,Brake Bros Foodservice Ltd
Manchester City Council,Hospitality + Trading Services,Catering Provisions,11.11.2015,1904870671,664.97,Brake Bros Foodservice Ltd
Manchester City Council,Hospitality + Trading Services,Catering Provisions,11.11.2015,1904870553,540.33,Brake Bros Foodservice Ltd
Manchester City Council,Hospitality + Trading Services,Catering Provisions,11.11.2015,1904870519,522.80,BRAKES (ASHFORD)
Manchester City Council,Hospitality + Trading Services,Catering Provisions,11.11.2015,1904870518,522.79,BRAKES (ASHFORD)
Manchester City Council,Hospitality + Trading Services,Construction Works,11.11.2015,5100825491,774.93,Morrison Facilities Services Ltd
Manchester City Council,Hospitality + Trading Services,Electricity,11.11.2015,5100824273,"16,580.00",FTS Event Power Ltd
Manchester City Council,Hospitality + Trading Services,Electricity,11.11.2015,5100824272,"10,000.00",FTS Event Power Ltd
Manchester City Council,Hospitality + Trading Services,Hire of Machinery,11.11.2015,5100825293,"1,144.00",R & M Developments Ltd
Manchester City Council,Hospitality + Trading Services,Hire of Machinery,11.11.2015,5100825335,"1,038.50",R & M Developments Ltd
Manchester City Council,Hospitality + Trading Services,Hire of Machinery,11.11.2015,5100825287,"1,012.50",R & M Developments Ltd
Manchester City Council,Hospitality + Trading Services,Hire of Machinery,11.11.2015,5100825431,668.40,Mastacab LLP
Manchester City Council,Hospitality + Trading Services,Hire of Machinery,11.11.2015,5100825430,550.00,Kensite Services Ltd
Manchester City Council,Hospitality + Trading Services,Hire of Machinery,11.11.2015,5100825439,550.00,Kensite Services Ltd
Manchester City Council,Hospitality + Trading Services,Hire of Machinery,11.11.2015,5100825450,550.00,Kensite Services Ltd
Manchester City Council,Hospitality + Trading Services,I T Provision,11.11.2015,5100825461,"-2,499.99",Mouchel Limited
Manchester City Council,Hospitality + Trading Services,Payments to Sub-Contractors,11.11.2015,5100825232,"76,165.94",Transport for Greater Manchester
Manchester City Council,Hospitality + Trading Services,Payments to Sub-Contractors,11.11.2015,5100823952,"37,113.04",Kenny Bros (Civil Eng) Ltd
Manchester City Council,Hospitality + Trading Services,Payments to Sub-Contractors,11.11.2015,5100824740,"32,764.45",Kenny Bros (Civil Eng) Ltd
Manchester City Council,Hospitality + Trading Services,Payments to Sub-Contractors,11.11.2015,5100825238,"31,305.54",Kenny Bros (Civil Eng) Ltd
Manchester City Council,Hospitality + Trading Services,Payments to Sub-Contractors,11.11.2015,5100823954,"15,561.00",Kenny Bros (Civil Eng) Ltd
Manchester City Council,Hospitality + Trading Services,Payments to Sub-Contractors,11.11.2015,5100825418,"3,670.00",Groundwork Landscapes Ltd
Manchester City Council,Hospitality + Trading Services,Payments to Sub-Contractors,11.11.2015,5100825358,"-3,670.00",Groundwork Landscapes Ltd
Manchester City Council,Hospitality + Trading Services,Payments to Sub-Contractors,11.11.2015,5100825236,"-16,165.94",Transport for Greater Manchester
Manchester City Council,Hospitality + Trading Services,Purchase of stores for re-distribution,11.11.2015,5100825421,"3,560.00",Marshalls Mono Ltd
Manchester City Council,Hospitality + Trading Services,Vehicle Hire Costs,11.11.2015,5100823898,"5,225.64",Manchester Van Hire Ltd
Manchester City Council,Hospitality + Trading Services,Vehicle Hire Costs,11.11.2015,5100823912,"4,293.42",Manchester Van Hire Ltd
Manchester City Council,Hospitality + Trading Services,Vehicle Hire Costs,11.11.2015,5100825477,"3,500.00",John Martin Devine Ltd
Manchester City Council,Environment and Operations,Compensation Payments,11.11.2015,1904865487,"10,500.00",Redacted Personal Information
Manchester City Council,Environment and Operations,Compensation Payments,11.11.2015,1904866245,"10,000.00",Major Singh Solicitors
Manchester City Council,Environment and Operations,Compensation Payments,11.11.2015,1904862464,"2,353.78",Express Solicitors
Manchester City Council,Environment and Operations,Construction Works,11.11.2015,5100824535,"2,060.29",GMCA
Manchester City Council,Environment and Operations,Compensation Payments,11.11.2015,1904862295,"2,406.00",Express Solicitors
Manchester City Council,Environment and Operations,Compensation Payments,11.11.2015,1904865943,637.00,Department For Work & Pensions
Manchester City Council,Environment and Operations,Compensation Payments,11.11.2015,1904865393,627.00,Department For Work & Pensions
Manchester City Council,Environment and Operations,Compensation Payments,11.11.2015,1904866134,525.00,Thompsons Solicitors
Manchester City Council,Adult Social Care,Agency staff provision,11.11.2015,5100823869,"1,936.90",Entrust Social Care
Manchester City Council,Adult Social Care,Agency staff provision,11.11.2015,5100824515,853.65,Entrust Social Care
Manchester City Council,Adult Social Care,Bed & Breakfast Acc,11.11.2015,5100825336,"13,042.48",G & A Taylor Hotels Ltd
Manchester City Council,Adult Social Care,Bed & Breakfast Acc,11.11.2015,5100825482,"5,575.00",Weaste Hotel
Manchester City Council,Adult Social Care,Bed & Breakfast Acc,11.11.2015,5100824603,"1,103.08",Happy Homes Uk Ltd
Manchester City Council,Adult Social Care,Compensation Payments,11.11.2015,1904845964,"17,000.00",Linder Myers Solicitors
Manchester City Council,Adult Social Care,Equipment,11.11.2015,5100825268,"2,011.60",Drive Medical Limited
Manchester City Council,Adult Social Care,Equipment,11.11.2015,5100825465,"1,004.90",Tunstall Healthcare (UK) Ltd
Manchester City Council,Adult Social Care,I T Provision,11.11.2015,5100825051,"2,200.00",Capita Business Services Ltd
Manchester City Council,Adult Social Care,Payments for services,11.11.2015,5100825487,"30,135.75",Creative Support Ltd
Manchester City Council,Adult Social Care,Payments for services,11.11.2015,5100823432,"27,500.00",ABL Health Ltd
Manchester City Council,Adult Social Care,Professional fees,11.11.2015,5100824465,"3,494.00",AECOM Limited
Manchester City Council,Adult Social Care,Professional fees,11.11.2015,5100823946,"2,260.00",AECOM Limited
Manchester City Council,Adult Social Care,Professional fees,11.11.2015,5100825353,-959.08,Jazzy J Urban Dance
Manchester City Council,Adult Social Care,Rents,11.11.2015,5100825449,"18,665.64",Mosscare Housing Ltd
Manchester City Council,Adult Social Care,Rents,11.11.2015,5100825446,695.68,Mosscare Housing Ltd
Manchester City Council,Adult Social Care,Supporting People Payments,11.11.2015,5100825226,"3,611.11",Contact Hostel
Manchester City Council,Adult Social Care,Third party payments relating to Voluntary Organisations,11.11.2015,5100825338,"150,000.00",Brook
Manchester City Council,Adult Social Care,Third party payments relating to Voluntary Organisations,11.11.2015,5100825481,"17,071.00",Breakthrough Uk Ltd
Manchester City Council,Adult Social Care,Third party payments relating to Voluntary Organisations,11.11.2015,5100824998,"8,410.50",People First Housing Association
Manchester City Council,Adult Social Care,Third party payments relating to Voluntary Organisations,11.11.2015,5100825304,"-8,410.50",People First Housing Association
Manchester City Council,Adult Social Care,Training and Development,11.11.2015,5100824900,700.00,Quality for Learning & Skills Ltd
Manchester City Council,Adult Social Care,Transport Coach Hire,11.11.2015,5100823392,"56,373.50",Westfield Minibuses
Manchester City Council,Adult Social Care,Transport Coach Hire,11.11.2015,5100825356,"9,930.00",JCT Travel Ltd
Manchester City Council,Adult Social Care,Transport Coach Hire,11.11.2015,5100825361,"8,800.00",JCT Travel Ltd
Manchester City Council,Adult Social Care,Transport Coach Hire,11.11.2015,5100803463,"5,167.00",Cresta Car Hire
Manchester City Council,Adult Social Care,Transport Coach Hire,11.11.2015,5100823386,"4,025.00",Connect Cars Ltd
Manchester City Council,Adult Social Care,Compensation Payments,11.11.2015,1904856402,770.00,Department For Work & Pensions
Manchester City Council,Corporate Services,Printing,11.11.2015,5100825452,"1,145.00",Mail Solutions
Manchester City Council,Housing General Fund,Surplus property Acquisitions,11.11.2015,1904870848,"31,150.00",Redacted Personal Information
Manchester City Council,Housing General Fund,Surplus property Fees,11.11.2015,1904870848,"1,506.80",Redacted Personal Information
Manchester City Council,Housing Revenue Account,Council Dwelling Adaptations,11.11.2015,5100825486,"75,000.00",Manchester Working Ltd
Manchester City Council,Housing Revenue Account,Council Dwelling Adaptations,11.11.2015,5100825492,"74,840.85",Manchester Working Ltd
Manchester City Council,Housing Revenue Account,Council Dwelling Adaptations,11.11.2015,5100825464,"59,547.22",Manchester Working Ltd
Manchester City Council,Housing Revenue Account,Council Dwelling Adaptations,11.11.2015,5100825459,"28,727.50",Manchester Working Ltd
Manchester City Council,Housing Revenue Account,Council Dwelling Adaptations,11.11.2015,5100825385,"10,153.63",IG Doors Ltd
Manchester City Council,Housing Revenue Account,Council Dwelling Adaptations,11.11.2015,5100825412,"7,505.40",Canopies UK
Manchester City Council,Housing Revenue Account,Council Dwelling Adaptations,11.11.2015,5100825414,"3,104.49",IG Doors Ltd
Manchester City Council,Housing Revenue Account,Council Dwelling Adaptations,11.11.2015,5100825411,954.48,Canopies UK
Manchester City Council,Housing Revenue Account,Council Dwelling Adaptations,11.11.2015,5100825411,546.60,Canopies UK
Manchester City Council,Chief Executives,Agency staff provision,11.11.2015,5100823869,839.30,Entrust Social Care
Manchester City Council,Chief Executives,Funeral and coroner related services,11.11.2015,5100824627,857.70,Redacted Personal Information
Manchester City Council,Chief Executives,I T Provision,11.11.2015,1904860860,"3,066.98",Vodafone (Ex C&W)
Manchester City Council,Chief Executives,Postage,11.11.2015,5100825281,"6,583.01",Electoral Reform Services Ltd
Manchester City Council,Chief Executives,Postage,11.11.2015,5100825290,"1,476.22",Royal Mail Group Plc
Manchester City Council,Chief Executives,Postage,11.11.2015,5100825283,"1,397.65",Electoral Reform Services Ltd
Manchester City Council,Chief Executives,Postage,11.11.2015,5100825284,998.23,Electoral Reform Services Ltd
Manchester City Council,Chief Executives,Postage,11.11.2015,5100825273,695.76,Electoral Reform Services Ltd
Manchester City Council,Chief Executives,Printing,11.11.2015,5100825531,580.00,Astra Signs
Manchester City Council,Regeneration Finance,Printing,11.11.2015,5100825476,972.00,Cardentity Ltd
Manchester City Council,Regeneration Finance,Printing,11.11.2015,5100825484,512.00,Cardentity Ltd
Manchester City Council,Regeneration Finance,Professional fees,11.11.2015,5100825394,"4,910.00",Curtins Consulting Engineer
Manchester City Council,Regeneration Finance,Professional fees,11.11.2015,5100825396,"4,595.00",Curtins Consulting Engineer
Manchester City Council,Regeneration Finance,Professional fees,11.11.2015,5100825392,950.00,Curtins Consulting Engineer
Manchester City Council,Regeneration Finance,Professional fees,11.11.2015,5100825390,"-10,455.00",Curtins Consulting Engineer
Manchester City Council,Regeneration Finance,Rents,11.11.2015,1904870850,"10,500.00",Devonshires LLP
Manchester City Council,Regeneration Finance,Subsistence and Conference Expenses,11.11.2015,5100825416,"4,000.00",Marketing Manchester
Manchester City Council,General Fund,Levies,11.11.2015,1904582293,"3,697,100.00",GMCA
Manchester City Council,Manchester Leisure,Agency staff provision,12.11.2015,5100823640,587.44,Barker Ross Health & Social Care
Manchester City Council,Manchester Leisure,"Consumable items eg Toilet rolls, soap etc",12.11.2015,5100825827,"1,100.53",Fast Hire UK
Manchester City Council,Manchester Leisure,Electricity,12.11.2015,1904871659,"1,794.91",Scottish & Southern Energy Plc
Manchester City Council,Manchester Leisure,Electricity,12.11.2015,1904871767,"1,534.63",Scottish & Southern Energy Plc
Manchester City Council,Manchester Leisure,Electricity,12.11.2015,1904871775,"1,439.67",Scottish & Southern Energy Plc
Manchester City Council,Manchester Leisure,Electricity,12.11.2015,1904871774,"1,413.79",Scottish & Southern Energy Plc
Manchester City Council,Manchester Leisure,Electricity,12.11.2015,1904871778,"1,069.10",Scottish & Southern Energy Plc
Manchester City Council,Manchester Leisure,Electricity,12.11.2015,1904871771,"1,042.55",Scottish & Southern Energy Plc
Manchester City Council,Manchester Leisure,Electricity,12.11.2015,1904871739,712.42,Scottish & Southern Energy Plc
Manchester City Council,Manchester Leisure,Electricity,12.11.2015,1904871410,578.71,Scottish & Southern Energy Plc
Manchester City Council,Manchester Leisure,Grant Payments,12.11.2015,5100823468,"2,500.00",Castlefield Gallery Limited
Manchester City Council,Manchester Leisure,Grant Payments,12.11.2015,5100825506,"-5,000.00",Royal Exchange Theatre Co Ltd
Manchester City Council,Manchester Leisure,Library Materials Acquisition,12.11.2015,1904871356,"1,520.00",W L Coller Ltd
Manchester City Council,Manchester Leisure,Photocopying,12.11.2015,1904871276,554.40,IMAGE IT
Manchester City Council,Manchester Leisure,Professional fees,12.11.2015,5100824115,"1,049.75",W S Education
Manchester City Council,Manchester Leisure,Professional fees,12.11.2015,5100824154,"1,049.75",W S Education
Manchester City Council,Manchester Leisure,Professional fees,12.11.2015,5100825568,950.00,Science Boffins (Barnet) Ltd
Manchester City Council,Manchester Leisure,Professional fees,12.11.2015,5100823804,880.00,3StyleSports Limited
Manchester City Council,Manchester Leisure,Third party payments relating to Voluntary Organisations,12.11.2015,5100823395,"114,032.83",HOME
Manchester City Council,Libraries and Theatres,Professional fees,12.11.2015,5100823960,"4,080.58",Bolton Mbc
Manchester City Council,Hospitality + Trading Services,Agency staff provision,12.11.2015,5100823510,"1,407.46",Search Consultancy Ltd
Manchester City Council,Hospitality + Trading Services,Catering Provisions,12.11.2015,1904871793,"1,370.26",Brake Bros Foodservice Ltd
Manchester City Council,Hospitality + Trading Services,Catering Provisions,12.11.2015,1904871788,"1,000.00",BRAMBLES FOODS LTD
Manchester City Council,Hospitality + Trading Services,Catering Provisions,12.11.2015,1904871789,"1,000.00",BRAMBLES FOODS LTD
Manchester City Council,Hospitality + Trading Services,Catering Provisions,12.11.2015,1904871790,"1,000.00",BRAMBLES FOODS LTD
Manchester City Council,Hospitality + Trading Services,Catering Provisions,12.11.2015,1904871791,"1,000.00",BRAMBLES FOODS LTD
Manchester City Council,Hospitality + Trading Services,Catering Provisions,12.11.2015,1904871858,923.40,Pasta King (Uk) Ltd
Manchester City Council,Hospitality + Trading Services,Catering Provisions,12.11.2015,1904871327,734.63,Wilds of Oldham
Manchester City Council,Hospitality + Trading Services,Catering Provisions,12.11.2015,1904871848,681.85,Brake Bros Foodservice Ltd
Manchester City Council,Hospitality + Trading Services,Catering Provisions,12.11.2015,1904871864,662.20,Brake Bros Foodservice Ltd
Manchester City Council,Hospitality + Trading Services,Catering Provisions,12.11.2015,1904871810,525.49,Brake Bros Foodservice Ltd
Manchester City Council,Hospitality + Trading Services,Cleaning Equipment and Materials,12.11.2015,5100825648,849.50,Alliance Disposables Ltd
Manchester City Council,Hospitality + Trading Services,Compensation Payments,12.11.2015,1904865384,"15,300.00",Thompsons Solicitors
Manchester City Council,Hospitality + Trading Services,Data Registration,12.11.2015,1904863414,"4,893.00",HMCS Traffic EC
Manchester City Council,Hospitality + Trading Services,Electricity,12.11.2015,1904871660,"1,194.71",Scottish & Southern Energy Plc
Manchester City Council,Hospitality + Trading Services,Electricity,12.11.2015,1904871378,"1,047.54",British Gas Plc
Manchester City Council,Hospitality + Trading Services,Electricity,12.11.2015,1904871678,619.98,Scottish & Southern Energy Plc
Manchester City Council,Hospitality + Trading Services,Equipment,12.11.2015,5100825513,"1,614.00",E Jordon (Refrigeration) Ltd
Manchester City Council,Hospitality + Trading Services,Goods purchased for resale in Council outlets,12.11.2015,5100825534,710.15,Treasured Memories Ltd
Manchester City Council,Hospitality + Trading Services,Hire of Machinery,12.11.2015,5100825203,"1,038.50",R & M Developments Ltd
Manchester City Council,Hospitality + Trading Services,Internal Repairs and Maintenance for buildings,12.11.2015,5100825544,"32,611.68",Manchester Working Ltd
Manchester City Council,Hospitality + Trading Services,Machinery and equipment repairs,12.11.2015,5100825785,600.63,Fast Hire UK
Manchester City Council,Hospitality + Trading Services,Payments to Sub-Contractors,12.11.2015,5100823614,"18,788.41",Rosgal Ltd
Manchester City Council,Hospitality + Trading Services,Payments to Sub-Contractors,12.11.2015,5100823897,"9,830.70",Rosgal Ltd
Manchester City Council,Hospitality + Trading Services,Payments to Sub-Contractors,12.11.2015,5100825566,"5,205.11",Northern Marking Limited
Manchester City Council,Hospitality + Trading Services,Payments to Sub-Contractors,12.11.2015,5100824485,"5,113.80",Rosgal Ltd
Manchester City Council,Hospitality + Trading Services,Payments to Sub-Contractors,12.11.2015,5100825695,"2,395.25",Northern Marking Limited
Manchester City Council,Hospitality + Trading Services,Vehicle Hire Costs,12.11.2015,5100825763,768.00,Manchester Van Hire Ltd
Manchester City Council,Hospitality + Trading Services,Compensation Payments,12.11.2015,1904865384,"2,622.00",Thompsons Solicitors
Manchester City Council,Environment and Operations,Building Materials for direct delivery,12.11.2015,5100825538,"6,250.00",NatSol Ltd
Manchester City Council,Environment and Operations,Building Materials for direct delivery,12.11.2015,5100823443,700.00,Willfab Ltd
Manchester City Council,Environment and Operations,Construction Works,12.11.2015,5100824540,"26,339.56",GMCA
Manchester City Council,Environment and Operations,Construction Works,12.11.2015,5100823480,500.00,Transport for Greater Manchester
Manchester City Council,Environment and Operations,Electricity,12.11.2015,1904871380,"2,810.04",British Gas Plc
Manchester City Council,Environment and Operations,Electricity,12.11.2015,1904871710,858.11,Scottish & Southern Energy Plc
Manchester City Council,Environment and Operations,Electricity,12.11.2015,1904871401,765.88,Scottish & Southern Energy Plc
Manchester City Council,Environment and Operations,Electricity,12.11.2015,1904871711,539.54,Scottish & Southern Energy Plc
Manchester City Council,Environment and Operations,Equipment,12.11.2015,5100825183,"4,333.90",Amey Highways Lighting (Manchester)
Manchester City Council,Environment and Operations,Grant and subscriptions awarded,12.11.2015,5100825363,600.00,Greater Manchester Police
Manchester City Council,Environment and Operations,Professional fees,12.11.2015,5100825701,"2,358.95",Redacted Personal Information
Manchester City Council,Environment and Operations,Refuse Collection,12.11.2015,5100825462,"41,720.91",Biffa Municipal Limited
Manchester City Council,Environment and Operations,Works and associated costs for Land and Buildings,12.11.2015,5100823797,"4,923.51",Atkins Limited
Manchester City Council,Environment and Operations,Legal Fees,12.11.2015,5100825398,"1,070.00",Redacted Personal Information
Manchester City Council,Adult Social Care,Agency staff provision,12.11.2015,5100823640,"7,631.37",Barker Ross Health & Social Care
Manchester City Council,Adult Social Care,Agency staff provision,12.11.2015,5100823640,"3,967.64",Barker Ross Health & Social Care
Manchester City Council,Adult Social Care,Agency staff provision,12.11.2015,5100824762,"3,632.72",SRA Cover Staff Ltd
Manchester City Council,Adult Social Care,Agency staff provision,12.11.2015,5100825702,"3,364.34",Ashberry Recruitment Ltd
Manchester City Council,Adult Social Care,Agency staff provision,12.11.2015,5100825702,"3,290.35",Ashberry Recruitment Ltd
Manchester City Council,Adult Social Care,Agency staff provision,12.11.2015,5100823640,"2,655.22",Barker Ross Health & Social Care
Manchester City Council,Adult Social Care,Agency staff provision,12.11.2015,5100823510,"2,565.63",Search Consultancy Ltd
Manchester City Council,Adult Social Care,Agency staff provision,12.11.2015,5100825702,"2,441.68",Ashberry Recruitment Ltd
Manchester City Council,Adult Social Care,Agency staff provision,12.11.2015,5100823509,"2,408.00",Capita  Resourcing Ltd
Manchester City Council,Adult Social Care,Agency staff provision,12.11.2015,5100825702,"2,408.00",Ashberry Recruitment Ltd
Manchester City Council,Adult Social Care,Agency staff provision,12.11.2015,5100823640,"2,228.68",Barker Ross Health & Social Care
Manchester City Council,Adult Social Care,Agency staff provision,12.11.2015,5100823623,"2,146.15",Barker Ross Health & Social Care
Manchester City Council,Adult Social Care,Agency staff provision,12.11.2015,5100823623,"1,973.33",Barker Ross Health & Social Care
Manchester City Council,Adult Social Care,Agency staff provision,12.11.2015,5100823623,"1,965.83",Barker Ross Health & Social Care
Manchester City Council,Adult Social Care,Agency staff provision,12.11.2015,5100823623,"1,946.84",Barker Ross Health & Social Care
Manchester City Council,Adult Social Care,Agency staff provision,12.11.2015,5100823640,"1,788.96",Barker Ross Health & Social Care
Manchester City Council,Adult Social Care,Agency staff provision,12.11.2015,5100823509,"1,678.60",Capita  Resourcing Ltd
Manchester City Council,Adult Social Care,Agency staff provision,12.11.2015,5100823623,"1,658.48",Barker Ross Health & Social Care
Manchester City Council,Adult Social Care,Agency staff provision,12.11.2015,5100823509,"1,548.40",Capita  Resourcing Ltd
Manchester City Council,Adult Social Care,Agency staff provision,12.11.2015,5100823623,"1,180.97",Barker Ross Health & Social Care
Manchester City Council,Adult Social Care,Agency staff provision,12.11.2015,5100825702,"1,146.60",Ashberry Recruitment Ltd
Manchester City Council,Adult Social Care,Agency staff provision,12.11.2015,5100825702,"1,011.50",Ashberry Recruitment Ltd
Manchester City Council,Adult Social Care,Agency staff provision,12.11.2015,5100823509,"1,006.25",Capita  Resourcing Ltd
Manchester City Council,Adult Social Care,Agency staff provision,12.11.2015,5100824762,976.35,SRA Cover Staff Ltd
Manchester City Council,Adult Social Care,Agency staff provision,12.11.2015,5100823510,968.45,Search Consultancy Ltd
Manchester City Council,Adult Social Care,Agency staff provision,12.11.2015,5100823520,967.75,Randstad Care
Manchester City Council,Adult Social Care,Agency staff provision,12.11.2015,5100823509,937.18,Capita  Resourcing Ltd
Manchester City Council,Adult Social Care,Agency staff provision,12.11.2015,5100823640,884.76,Barker Ross Health & Social Care
Manchester City Council,Adult Social Care,Agency staff provision,12.11.2015,5100823511,809.92,HBS (UK) Cleaning Services Ltd
Manchester City Council,Adult Social Care,Agency staff provision,12.11.2015,5100823623,791.39,Barker Ross Health & Social Care
Manchester City Council,Adult Social Care,Agency staff provision,12.11.2015,5100824762,771.50,SRA Cover Staff Ltd
Manchester City Council,Adult Social Care,Agency staff provision,12.11.2015,5100825702,767.25,Ashberry Recruitment Ltd
Manchester City Council,Adult Social Care,Agency staff provision,12.11.2015,5100823510,737.80,Search Consultancy Ltd
Manchester City Council,Adult Social Care,Agency staff provision,12.11.2015,5100825702,691.98,Ashberry Recruitment Ltd
Manchester City Council,Adult Social Care,Agency staff provision,12.11.2015,5100823623,685.13,Barker Ross Health & Social Care
Manchester City Council,Adult Social Care,Agency staff provision,12.11.2015,5100823640,596.95,Barker Ross Health & Social Care
Manchester City Council,Adult Social Care,Agency staff provision,12.11.2015,5100825702,584.08,Ashberry Recruitment Ltd
Manchester City Council,Adult Social Care,Agency staff provision,12.11.2015,5100823623,583.89,Barker Ross Health & Social Care
Manchester City Council,Adult Social Care,Agency staff provision,12.11.2015,5100823640,583.89,Barker Ross Health & Social Care
Manchester City Council,Adult Social Care,Agency staff provision,12.11.2015,5100823623,537.34,Barker Ross Health & Social Care
Manchester City Council,Adult Social Care,Agency staff provision,12.11.2015,5100823640,533.44,Barker Ross Health & Social Care
Manchester City Council,Adult Social Care,Agency staff provision,12.11.2015,5100825702,505.75,Ashberry Recruitment Ltd
Manchester City Council,Adult Social Care,Bed & Breakfast Acc,12.11.2015,5100825761,"44,726.61",B & A Properties
Manchester City Council,Adult Social Care,Bed & Breakfast Acc,12.11.2015,5100825706,"12,802.15",G & A Taylor Hotels Ltd
Manchester City Council,Adult Social Care,Bed & Breakfast Acc,12.11.2015,5100825708,"7,640.00",Redacted Personal Information
Manchester City Council,Adult Social Care,Bed & Breakfast Acc,12.11.2015,5100825756,"3,990.00",346 Ltd t/a Lansdowne Hotel
Manchester City Council,Adult Social Care,Bed & Breakfast Acc,12.11.2015,5100825753,"2,975.00",346 Ltd t/a Lansdowne Hotel
Manchester City Council,Adult Social Care,Contract Cleaning External,12.11.2015,5100823909,"2,196.00",Superkids Levenshulme Ltd
Manchester City Council,Adult Social Care,Contract Cleaning Internal,12.11.2015,5100825570,"1,198.19",The Manchester College
Manchester City Council,Adult Social Care,Electricity,12.11.2015,5100825682,"2,598.72",The Manchester College
Manchester City Council,Adult Social Care,Electricity,12.11.2015,1904871718,"1,236.72",Scottish & Southern Energy Plc
Manchester City Council,Adult Social Care,Electricity,12.11.2015,1904871698,"1,000.26",Scottish & Southern Energy Plc
Manchester City Council,Adult Social Care,Electricity,12.11.2015,1904871427,969.46,Scottish & Southern Energy Plc
Manchester City Council,Adult Social Care,Electricity,12.11.2015,1904871748,921.73,Scottish & Southern Energy Plc
Manchester City Council,Adult Social Care,Electricity,12.11.2015,1904871417,840.07,Scottish & Southern Energy Plc
Manchester City Council,Adult Social Care,Electricity,12.11.2015,1904871422,836.58,Scottish & Southern Energy Plc
Manchester City Council,Adult Social Care,Electricity,12.11.2015,1904871742,822.97,Scottish & Southern Energy Plc
Manchester City Council,Adult Social Care,Electricity,12.11.2015,1904871569,758.47,Scottish & Southern Energy Plc
Manchester City Council,Adult Social Care,Electricity,12.11.2015,1904871392,707.88,Scottish & Southern Energy Plc
Manchester City Council,Adult Social Care,Electricity,12.11.2015,1904871396,703.95,Scottish & Southern Energy Plc
Manchester City Council,Adult Social Care,Electricity,12.11.2015,1904871656,669.75,Scottish & Southern Energy Plc
Manchester City Council,Adult Social Care,Electricity,12.11.2015,1904871701,634.53,Scottish & Southern Energy Plc
Manchester City Council,Adult Social Care,Electricity,12.11.2015,1904871764,580.80,Scottish & Southern Energy Plc
Manchester City Council,Adult Social Care,Electricity,12.11.2015,1904871694,521.59,Scottish & Southern Energy Plc
Manchester City Council,Adult Social Care,Equipment,12.11.2015,5100824410,"1,267.20",Frontier Therapeutics
Manchester City Council,Adult Social Care,Equipment,12.11.2015,5100825013,690.40,Drive Medical Limited
Manchester City Council,Adult Social Care,Fixtures and Fitting,12.11.2015,1904866136,"4,990.00",Barnardos Manchester Leaving Care S
Manchester City Council,Adult Social Care,Fixtures and Fitting,12.11.2015,1904863408,"2,660.00",Barnardos Manchester Leaving Care S
Manchester City Council,Adult Social Care,Gas,12.11.2015,5100825682,508.38,The Manchester College
Manchester City Council,Adult Social Care,Payments for services,12.11.2015,5100825587,"28,300.00",United Response
Manchester City Council,Adult Social Care,Payments for services,12.11.2015,5100825586,"24,277.00",United Response
Manchester City Council,Adult Social Care,Payments for services,12.11.2015,5100825585,"3,898.00",United Response
Manchester City Council,Adult Social Care,Payments for services,12.11.2015,5100808967,750.00,Action For Children
Manchester City Council,Adult Social Care,Payments for services,12.11.2015,5100808978,750.00,Action For Children
Manchester City Council,Adult Social Care,Personal needs of client,12.11.2015,5100825581,"7,337.61",Prism Medical UK Carefree Division
Manchester City Council,Adult Social Care,PNOR-Other Amenities,12.11.2015,1904863408,"2,034.30",Barnardos Manchester Leaving Care S
Manchester City Council,Adult Social Care,PNOR-Other Amenities,12.11.2015,1904866136,"1,343.80",Barnardos Manchester Leaving Care S
Manchester City Council,Adult Social Care,Professional fees,12.11.2015,1904866146,"3,850.00",Redacted Personal Information
Manchester City Council,Adult Social Care,Professional fees,12.11.2015,1904866145,"1,300.00",Redacted Personal Information
Manchester City Council,Adult Social Care,Rents,12.11.2015,5100824256,"9,060.82",Mack Residential Letting Ltd
Manchester City Council,Adult Social Care,Signers/Interpreters,12.11.2015,5100823482,885.00,Interpreter Booking Services
Manchester City Council,Adult Social Care,Stationery,12.11.2015,5100824568,"2,191.60",Northgate Public Services (UK) Ltd
Manchester City Council,Adult Social Care,Stationery,12.11.2015,5100825504,826.00,Northgate Public Services (UK) Ltd
Manchester City Council,Adult Social Care,Subsistence and Conference Expenses,12.11.2015,5100825329,"10,000.00",Just Psychology
Manchester City Council,Adult Social Care,Third party payments relating to Voluntary Organisations,12.11.2015,5100825540,"122,500.00",Manchester Alliance For
Manchester City Council,Adult Social Care,Third party payments relating to Voluntary Organisations,12.11.2015,5100825588,"8,413.00",The Shaw Centre
Manchester City Council,Adult Social Care,Third party payments relating to Voluntary Organisations,12.11.2015,5100825589,"5,983.33",The Shaw Centre
Manchester City Council,Adult Social Care,Third party payments relating to Voluntary Organisations,12.11.2015,5100825582,"5,312.50",Pure Innovations Ltd
Manchester City Council,Adult Social Care,Third party payments relating to Voluntary Organisations,12.11.2015,5100825583,"5,312.50",Pure Innovations Ltd
Manchester City Council,Adult Social Care,Third party payments relating to Voluntary Organisations,12.11.2015,5100825584,"5,312.50",Pure Innovations Ltd
Manchester City Council,Adult Social Care,Third party payments to other Local Authorities,12.11.2015,5100825105,"16,249.00",Nottinghamshire County Council
Manchester City Council,Adult Social Care,Third party payments to other Local Authorities,12.11.2015,5100825106,"5,289.00",Nottinghamshire County Council
Manchester City Council,Adult Social Care,Training and Development,12.11.2015,1904863408,"2,492.80",Barnardos Manchester Leaving Care S
Manchester City Council,Adult Social Care,Training and Development,12.11.2015,1904866136,870.00,Barnardos Manchester Leaving Care S
Manchester City Council,Adult Social Care,Training and Development,12.11.2015,5100825715,720.00,Wirral M.B.C.
Manchester City Council,Adult Social Care,Transport Coach Hire,12.11.2015,5100825707,"1,930.50",Redacted Personal Information
Manchester City Council,Adult Social Care,Transport Coach Hire,12.11.2015,5100823866,"1,530.00",Redacted Personal Information
Manchester City Council,Adult Social Care,Transport Coach Hire,12.11.2015,5100825499,525.00,APTSL
Manchester City Council,Childrens Services,Works and associated costs for Land and Buildings,12.11.2015,5100824856,"373,360.00",Laing O'Rourke Construction Ltd
Manchester City Council,Corporate Services,Electricity,12.11.2015,1904871669,"1,310.92",Scottish & Southern Energy Plc
Manchester City Council,Corporate Services,Electricity,12.11.2015,1904871513,"1,157.26",Scottish & Southern Energy Plc
Manchester City Council,Corporate Services,Electricity,12.11.2015,1904871715,"1,099.50",Scottish & Southern Energy Plc
Manchester City Council,Corporate Services,Electricity,12.11.2015,1904871400,984.76,Scottish & Southern Energy Plc
Manchester City Council,Corporate Services,Electricity,12.11.2015,1904871421,707.42,Scottish & Southern Energy Plc
Manchester City Council,Corporate Services,Electricity,12.11.2015,1904871390,653.28,Scottish & Southern Energy Plc
Manchester City Council,Corporate Services,Electricity,12.11.2015,1904871406,626.85,Scottish & Southern Energy Plc
Manchester City Council,Corporate Services,Electricity,12.11.2015,1904871732,599.50,Scottish & Southern Energy Plc
Manchester City Council,Corporate Services,Electricity,12.11.2015,1904871409,574.67,Scottish & Southern Energy Plc
Manchester City Council,Corporate Services,Electricity,12.11.2015,1904871413,555.46,Scottish & Southern Energy Plc
Manchester City Council,Corporate Services,Electricity,12.11.2015,1904871430,547.61,Scottish & Southern Energy Plc
Manchester City Council,Corporate Services,Electricity,12.11.2015,1904871418,541.53,Scottish & Southern Energy Plc
Manchester City Council,Corporate Services,Postage,12.11.2015,5100824268,"7,599.63",Royal Mail Group Plc
Manchester City Council,Corporate Services,Postage,12.11.2015,5100824269,"2,212.41",Royal Mail Group Plc
Manchester City Council,Corporate Services,Legal Fees,12.11.2015,1904871301,"5,373.00",HMCTS (Manchester)
Manchester City Council,Housing General Fund,Building Works,12.11.2015,1904871902,"5,818.00",Stannah Lift Services Ltd
Manchester City Council,Housing General Fund,Building Works,12.11.2015,1904871890,"5,446.00",Stannah Lift Services Ltd
Manchester City Council,Housing General Fund,Building Works,12.11.2015,1904871885,"4,788.05",Kier Services Ltd - Maint West
Manchester City Council,Housing General Fund,Building Works,12.11.2015,1904871884,"4,706.25",Kier Services Ltd - Maint West
Manchester City Council,Housing General Fund,Building Works,12.11.2015,1904871888,"4,635.69",Kier Services Ltd - Maint West
Manchester City Council,Housing General Fund,Building Works,12.11.2015,1904871896,"4,450.00",Stannah Lift Services Ltd
Manchester City Council,Housing General Fund,Building Works,12.11.2015,1904871898,"4,433.77",Kier Services Ltd - Maint West
Manchester City Council,Housing General Fund,Building Works,12.11.2015,1904871897,"4,400.00",Stannah Lift Services Ltd
Manchester City Council,Housing General Fund,Building Works,12.11.2015,1904871900,"4,234.00",Stannah Lift Services Ltd
Manchester City Council,Housing General Fund,Building Works,12.11.2015,1904871886,"3,973.02",Kier Services Ltd - Maint West
Manchester City Council,Housing General Fund,Building Works,12.11.2015,1904871892,"3,938.03",Kier Services Ltd - Maint West
Manchester City Council,Housing General Fund,Building Works,12.11.2015,1904871887,"3,918.44",Kier Services Ltd - Maint West
Manchester City Council,Housing General Fund,Building Works,12.11.2015,1904871899,"3,905.63",Stannah Lift Services Ltd
Manchester City Council,Housing General Fund,Building Works,12.11.2015,1904871893,"3,722.00",Kier Services Ltd - Maint West
Manchester City Council,Housing General Fund,Building Works,12.11.2015,1904871895,"3,692.00",Stannah Lift Services Ltd
Manchester City Council,Housing General Fund,Building Works,12.11.2015,1904871891,"2,007.90",Chiltern Invadex Ltd
Manchester City Council,Housing General Fund,Building Works,12.11.2015,1904871903,"1,768.55",Chiltern Invadex Ltd
Manchester City Council,Housing General Fund,Building Works,12.11.2015,1904871894,"1,575.00",Stannah Lift Services Ltd
Manchester City Council,Housing General Fund,Building Works,12.11.2015,1904871889,"1,200.00",Kier Services Ltd - Maint West
Manchester City Council,Housing General Fund,Surplus property Acquisitions,12.11.2015,1904872137,"116,000.00",Adam Solicitors
Manchester City Council,Housing General Fund,Surplus property Fees,12.11.2015,1904872137,660.00,Adam Solicitors
Manchester City Council,Housing General Fund,Works and associated costs for Land and Buildings,12.11.2015,5100825519,"1,000.00",Hyde Demolition UK Limited
Manchester City Council,Housing Revenue Account,Council Dwelling Adaptations,12.11.2015,5100825497,"46,847.24",Manchester Working Ltd
Manchester City Council,Housing Revenue Account,Council Dwelling Adaptations,12.11.2015,5100825554,"32,328.06",Warmer Energy Services Ltd
Manchester City Council,Housing Revenue Account,Council Dwelling Adaptations,12.11.2015,5100825554,"30,131.79",Warmer Energy Services Ltd
Manchester City Council,Housing Revenue Account,Council Dwelling Adaptations,12.11.2015,5100825458,"18,474.62",Manchester Working Ltd
Manchester City Council,Housing Revenue Account,Council Dwelling Adaptations,12.11.2015,5100825567,"18,474.62",Manchester Working Ltd
Manchester City Council,Housing Revenue Account,Council Dwelling Adaptations,12.11.2015,5100825562,"-18,474.62",Manchester Working Ltd
Manchester City Council,Housing Revenue Account,Electricity,12.11.2015,1904871375,"1,291.08",British Gas Plc
Manchester City Council,Housing Revenue Account,Water - Metered,12.11.2015,1904871432,509.83,United Utilities Water Plc
Manchester City Council,Chief Executives,Advertising,12.11.2015,1904871353,601.49,Facebook (CARD ONLY)
Manchester City Council,Chief Executives,Advertising,12.11.2015,1904871279,600.54,Facebook (CARD ONLY)
Manchester City Council,Chief Executives,Advertising,12.11.2015,1904871306,600.34,Facebook (CARD ONLY)
Manchester City Council,Chief Executives,Advertising,12.11.2015,1904871280,600.02,Facebook (CARD ONLY)
Manchester City Council,Chief Executives,Advertising,12.11.2015,1904871281,600.01,Facebook (CARD ONLY)
Manchester City Council,Chief Executives,Agency staff provision,12.11.2015,5100823509,"6,038.84",Capita  Resourcing Ltd
Manchester City Council,Chief Executives,Agency staff provision,12.11.2015,5100823640,"5,622.32",Barker Ross Health & Social Care
Manchester City Council,Chief Executives,Agency staff provision,12.11.2015,5100825702,"3,250.88",Ashberry Recruitment Ltd
Manchester City Council,Chief Executives,Agency staff provision,12.11.2015,5100823515,"2,737.93",PULSE
Manchester City Council,Chief Executives,Agency staff provision,12.11.2015,5100824762,661.04,SRA Cover Staff Ltd
Manchester City Council,Regeneration Finance,Building Materials for direct delivery,12.11.2015,5100825184,"1,646.03",Amey Highways Lighting (Manchester)
Manchester City Council,Regeneration Finance,Contract Cleaning External,12.11.2015,5100823126,"1,020.00",Restore Shred Limited
Manchester City Council,Regeneration Finance,Electricity,12.11.2015,1904871373,"11,031.83",British Gas Plc
Manchester City Council,Regeneration Finance,Electricity,12.11.2015,1904871374,"10,891.62",British Gas Plc
Manchester City Council,Regeneration Finance,Electricity,12.11.2015,1904871370,"9,855.10",British Gas Plc
Manchester City Council,Regeneration Finance,Electricity,12.11.2015,1904871372,"9,438.57",British Gas Plc
Manchester City Council,Regeneration Finance,Electricity,12.11.2015,1904871369,"8,733.65",British Gas Plc
Manchester City Council,Regeneration Finance,Electricity,12.11.2015,1904871371,"8,443.19",British Gas Plc
Manchester City Council,Regeneration Finance,Electricity,12.11.2015,1904871368,"8,382.45",British Gas Plc
Manchester City Council,Regeneration Finance,Electricity,12.11.2015,1904871363,"8,096.18",British Gas Plc
Manchester City Council,Regeneration Finance,Electricity,12.11.2015,1904871366,"8,050.31",British Gas Plc
Manchester City Council,Regeneration Finance,Electricity,12.11.2015,1904871365,"8,017.60",British Gas Plc
Manchester City Council,Regeneration Finance,Electricity,12.11.2015,1904871364,"7,873.91",British Gas Plc
Manchester City Council,Regeneration Finance,Electricity,12.11.2015,1904871362,"7,424.89",British Gas Plc
Manchester City Council,Regeneration Finance,Electricity,12.11.2015,1904871367,"7,393.33",British Gas Plc
Manchester City Council,Regeneration Finance,Electricity,12.11.2015,1904871649,"2,907.64",Scottish & Southern Energy Plc
Manchester City Council,Regeneration Finance,Electricity,12.11.2015,1904871670,"2,123.19",Scottish & Southern Energy Plc
Manchester City Council,Regeneration Finance,Electricity,12.11.2015,1904871387,"2,062.77",Scottish & Southern Energy Plc
Manchester City Council,Regeneration Finance,Electricity,12.11.2015,1904871691,"1,967.10",Scottish & Southern Energy Plc
Manchester City Council,Regeneration Finance,Electricity,12.11.2015,1904871770,"1,770.78",Scottish & Southern Energy Plc
Manchester City Council,Regeneration Finance,Electricity,12.11.2015,1904871424,"1,704.75",Scottish & Southern Energy Plc
Manchester City Council,Regeneration Finance,Electricity,12.11.2015,1904871402,"1,640.82",Scottish & Southern Energy Plc
Manchester City Council,Regeneration Finance,Electricity,12.11.2015,1904871394,"1,493.54",Scottish & Southern Energy Plc
Manchester City Council,Regeneration Finance,Electricity,12.11.2015,1904871665,"1,383.23",Scottish & Southern Energy Plc
Manchester City Council,Regeneration Finance,Electricity,12.11.2015,1904871731,"1,359.92",Scottish & Southern Energy Plc
Manchester City Council,Regeneration Finance,Electricity,12.11.2015,1904871730,"1,272.64",Scottish & Southern Energy Plc
Manchester City Council,Regeneration Finance,Electricity,12.11.2015,1904871657,"1,179.23",Scottish & Southern Energy Plc
Manchester City Council,Regeneration Finance,Electricity,12.11.2015,1904871776,"1,129.49",Scottish & Southern Energy Plc
Manchester City Council,Regeneration Finance,Electricity,12.11.2015,1904871664,"1,072.02",Scottish & Southern Energy Plc
Manchester City Council,Regeneration Finance,Electricity,12.11.2015,1904871772,"1,067.30",Scottish & Southern Energy Plc
Manchester City Council,Regeneration Finance,Electricity,12.11.2015,1904871414,"1,061.78",Scottish & Southern Energy Plc
Manchester City Council,Regeneration Finance,Electricity,12.11.2015,1904871695,"1,020.79",Scottish & Southern Energy Plc
Manchester City Council,Regeneration Finance,Electricity,12.11.2015,1904871655,980.62,Scottish & Southern Energy Plc
Manchester City Council,Regeneration Finance,Electricity,12.11.2015,1904871393,963.89,Scottish & Southern Energy Plc
Manchester City Council,Regeneration Finance,Electricity,12.11.2015,1904871508,923.72,Scottish & Southern Energy Plc
Manchester City Council,Regeneration Finance,Electricity,12.11.2015,1904871668,730.57,Scottish & Southern Energy Plc
Manchester City Council,Regeneration Finance,Electricity,12.11.2015,1904871673,685.99,Scottish & Southern Energy Plc
Manchester City Council,Regeneration Finance,Electricity,12.11.2015,1904871693,666.12,Scottish & Southern Energy Plc
Manchester City Council,Regeneration Finance,Electricity,12.11.2015,1904871389,632.40,Scottish & Southern Energy Plc
Manchester City Council,Regeneration Finance,Electricity,12.11.2015,1904871663,577.54,Scottish & Southern Energy Plc
Manchester City Council,Regeneration Finance,Electricity,12.11.2015,1904871674,557.92,Scottish & Southern Energy Plc
Manchester City Council,Regeneration Finance,Electricity,12.11.2015,1904871735,526.96,Scottish & Southern Energy Plc
Manchester City Council,Regeneration Finance,Electricity,12.11.2015,1904871782,519.55,Scottish & Southern Energy Plc
Manchester City Council,Regeneration Finance,Electricity,12.11.2015,1904871746,516.53,Scottish & Southern Energy Plc
Manchester City Council,Regeneration Finance,Electricity,12.11.2015,1700059297,"-3,486.12",Scottish & Southern Energy Plc
Manchester City Council,Regeneration Finance,Electricity,12.11.2015,1700059211,"-6,955.41",British Gas Plc
Manchester City Council,Regeneration Finance,Electricity,12.11.2015,1700059216,"-6,955.69",British Gas Plc
Manchester City Council,Regeneration Finance,Electricity,12.11.2015,1700059214,"-7,404.71",British Gas Plc
Manchester City Council,Regeneration Finance,Electricity,12.11.2015,1700059213,"-7,532.76",British Gas Plc
Manchester City Council,Regeneration Finance,Electricity,12.11.2015,1700059212,"-7,565.47",British Gas Plc
Manchester City Council,Regeneration Finance,Electricity,12.11.2015,1700059215,"-7,611.34",British Gas Plc
Manchester City Council,Regeneration Finance,Electricity,12.11.2015,1700059210,"-7,897.61",British Gas Plc
Manchester City Council,Regeneration Finance,Electricity,12.11.2015,1700059207,"-7,973.99",British Gas Plc
Manchester City Council,Regeneration Finance,Electricity,12.11.2015,1700059209,"-8,264.45",British Gas Plc
Manchester City Council,Regeneration Finance,Electricity,12.11.2015,1700059206,"-8,953.73",British Gas Plc
Manchester City Council,Regeneration Finance,Electricity,12.11.2015,1700059208,"-9,370.26",British Gas Plc
Manchester City Council,Regeneration Finance,Electricity,12.11.2015,1700059204,"-10,422.42",British Gas Plc
Manchester City Council,Regeneration Finance,Electricity,12.11.2015,1700059205,"-10,546.99",British Gas Plc
Manchester City Council,Regeneration Finance,Gas,12.11.2015,1904871382,965.09,Total Gas & Power
Manchester City Council,Regeneration Finance,Grant and subscriptions awarded,12.11.2015,5100825537,"12,500.00",Design Manchester Ltd
Manchester City Council,Regeneration Finance,Grant Payments,12.11.2015,5100825496,"9,167.33",Harpurhey Neighbourhood Project
Manchester City Council,Regeneration Finance,Internal Repairs and Maintenance for buildings,12.11.2015,5100825541,"1,692.66",Manchester Working Ltd
Manchester City Council,Regeneration Finance,Payments to Sub-Contractors,12.11.2015,5100825185,"2,759.00",Amey Highways Lighting (Manchester)
Manchester City Council,Regeneration Finance,Printing,12.11.2015,5100825108,"5,337.78",VIP-System Ltd
Manchester City Council,Regeneration Finance,Professional fees,12.11.2015,5100824758,"50,000.00",GVA Grimley Ltd
Manchester City Council,Regeneration Finance,Professional fees,12.11.2015,5100825437,"5,000.00",Manchester Professional
Manchester City Council,Regeneration Finance,Professional fees,12.11.2015,5100823666,715.00,Keelagher Okey Associates Ltd t/a
Manchester City Council,Regeneration Finance,Storage Costs,12.11.2015,5100824575,"1,374.80",Data Space Limited
Manchester City Council,Regeneration Finance,Subsistence and Conference Expenses,12.11.2015,5100825525,800.00,Ncfe
Manchester City Council,Regeneration Finance,Subsistence and Conference Expenses,12.11.2015,5100824887,-800.00,Ncfe
Manchester City Council,Insurance Fund,Insurance,12.11.2015,1904865376,"6,218.77",Chorlton C.E.Primary School
Manchester City Council,Insurance Fund,Insurance,12.11.2015,5100825748,637.00,Cunningham Lindsey UK
Manchester City Council,Insurance Fund,Off Indmnty Ins Prem,12.11.2015,5100825736,"2,067.00",Aon Ltd
Manchester City Council,Insurance Fund,Off Indmnty Ins Prem,12.11.2015,5100825717,"1,950.00",Aon Ltd
Manchester City Council,Insurance Fund,Off Indmnty Ins Prem,12.11.2015,5100825749,"1,950.00",Aon Ltd
Manchester City Council,GMIST (Greater Mcr Integrated),COM085 Transf Chall,12.11.2015,1904870852,"20,000.00",Bolton Mbc
Manchester City Council,Manchester Leisure,Building Materials for direct delivery,13.11.2015,5100823996,"1,540.00",Arboricultural Services Treework
Manchester City Council,Manchester Leisure,"Consumable items eg Toilet rolls, soap etc",13.11.2015,5100825980,894.00,Warrington Cultural Trust
Manchester City Council,Manchester Leisure,"Consumable items eg Toilet rolls, soap etc",13.11.2015,5100825977,"-1,384.00",Warrington Cultural Trust
Manchester City Council,Manchester Leisure,Hire of Equipment,13.11.2015,5100824619,"3,535.00",Network Audio
Manchester City Council,Manchester Leisure,Payments to Sub-Contractors,13.11.2015,5100824604,"36,432.60",S.J.M. Ltd
Manchester City Council,Manchester Leisure,Payments to Sub-Contractors,13.11.2015,5100825751,"1,285.00",Bancroft Amenities Ltd
Manchester City Council,Manchester Leisure,Professional fees,13.11.2015,5100826002,"35,990.00",Red Alligator Group
Manchester City Council,Manchester Leisure,Professional fees,13.11.2015,5100825996,"13,479.00",Prime Care Ambulance Service
Manchester City Council,Manchester Leisure,Professional fees,13.11.2015,5100825994,"6,000.00",Sport Event Solutions Ltd
Manchester City Council,Manchester Leisure,Professional fees,13.11.2015,1904860555,"5,622.00",ScreenTech (Nort East) Ltd
Manchester City Council,Manchester Leisure,Professional fees,13.11.2015,5100825036,"1,500.00",Sport Event Solutions Ltd
Manchester City Council,Manchester Leisure,Professional fees,13.11.2015,1904866231,948.80,Redacted Personal Information
Manchester City Council,Manchester Leisure,Refuse Collection,13.11.2015,1904872455,"2,979.23",Enterprise Manchester TRADE
Manchester City Council,Manchester Leisure,Refuse Collection,13.11.2015,1904872461,"2,157.48",Enterprise Manchester TRADE
Manchester City Council,Manchester Leisure,Refuse Collection,13.11.2015,1904872484,576.16,Enterprise Manchester TRADE
Manchester City Council,Libraries and Theatres,Training and Development,13.11.2015,5100824163,529.00,Numlock Ltd t/a Continuity Shop
Manchester City Council,Libraries and Theatres,Works and associated costs for Land and Buildings,13.11.2015,5100823719,"18,387.30",Turner & Townsend Project
Manchester City Council,Libraries and Theatres,Works and associated costs for Land and Buildings,13.11.2015,5100825797,"17,839.80",Turner & Townsend Project
Manchester City Council,Libraries and Theatres,Works and associated costs for Land and Buildings,13.11.2015,5100825797,547.50,Turner & Townsend Project
Manchester City Council,Libraries and Theatres,Works and associated costs for Land and Buildings,13.11.2015,5100825790,"-18,387.30",Turner & Townsend Project
Manchester City Council,Hospitality + Trading Services,Catering Provisions,13.11.2015,1904872427,"1,391.61",Brake Bros Foodservice Ltd
Manchester City Council,Hospitality + Trading Services,Catering Provisions,13.11.2015,1904872407,945.62,Brake Bros Foodservice Ltd
Manchester City Council,Hospitality + Trading Services,Catering Provisions,13.11.2015,1904872435,744.21,Brake Bros Foodservice Ltd
Manchester City Council,Hospitality + Trading Services,Catering Provisions,13.11.2015,1904872436,650.95,Brake Bros Foodservice Ltd
Manchester City Council,Hospitality + Trading Services,Catering Provisions,13.11.2015,1904872413,645.88,Brake Bros Foodservice Ltd
Manchester City Council,Hospitality + Trading Services,Catering Provisions,13.11.2015,1904872377,635.10,Brake Bros Foodservice Ltd
Manchester City Council,Hospitality + Trading Services,Catering Provisions,13.11.2015,1904872395,593.41,Brake Bros Foodservice Ltd
Manchester City Council,Hospitality + Trading Services,Catering Provisions,13.11.2015,1904872434,589.25,Brake Bros Foodservice Ltd
Manchester City Council,Hospitality + Trading Services,Catering Provisions,13.11.2015,1904872430,554.80,Brake Bros Foodservice Ltd
Manchester City Council,Hospitality + Trading Services,Funeral and coroner related services,13.11.2015,5100825889,"2,762.00",Thomas Group (Marble & Granite) Ltd
Manchester City Council,Hospitality + Trading Services,Hire of Machinery,13.11.2015,5100825837,"3,778.92",One Stop Hire Limited
Manchester City Council,Hospitality + Trading Services,Hire of Machinery,13.11.2015,5100825836,"2,486.92",One Stop Hire Limited
Manchester City Council,Hospitality + Trading Services,Hire of Machinery,13.11.2015,5100825836,"2,486.92",One Stop Hire Limited
Manchester City Council,Hospitality + Trading Services,Hire of Machinery,13.11.2015,5100825740,"1,906.86",Fast Hire UK
Manchester City Council,Hospitality + Trading Services,Hire of Machinery,13.11.2015,5100825742,"1,100.53",Fast Hire UK
Manchester City Council,Hospitality + Trading Services,Hire of Machinery,13.11.2015,5100825745,600.63,Fast Hire UK
Manchester City Council,Hospitality + Trading Services,Hire of Machinery,13.11.2015,5100825784,514.35,GHL Liftrucks Ltd
Manchester City Council,Hospitality + Trading Services,Hire of Machinery,13.11.2015,5100825782,-600.63,Fast Hire UK
Manchester City Council,Hospitality + Trading Services,Hire of Machinery,13.11.2015,5100825826,"-1,100.53",Fast Hire UK
Manchester City Council,Hospitality + Trading Services,Hire of Machinery,13.11.2015,5100825803,"-1,906.86",Fast Hire UK
Manchester City Council,Hospitality + Trading Services,Payments to Sub-Contractors,13.11.2015,5100823789,"14,113.13",Rosgal Ltd
Manchester City Council,Hospitality + Trading Services,Payments to Sub-Contractors,13.11.2015,5100823558,"8,240.50",Rosgal Ltd
Manchester City Council,Hospitality + Trading Services,Payments to Sub-Contractors,13.11.2015,5100825560,"5,926.39",Northern Marking Limited
Manchester City Council,Hospitality + Trading Services,Payments to Sub-Contractors,13.11.2015,5100825561,"4,050.00",Northern Marking Limited
Manchester City Council,Hospitality + Trading Services,Payments to Sub-Contractors,13.11.2015,5100825698,"1,999.51",Northern Marking Limited
Manchester City Council,Hospitality + Trading Services,Payments to Sub-Contractors,13.11.2015,5100825563,"1,350.00",Northern Marking Limited
Manchester City Council,Hospitality + Trading Services,Payments to Sub-Contractors,13.11.2015,5100825564,"1,350.00",Northern Marking Limited
Manchester City Council,Hospitality + Trading Services,Purchase of stores for re-distribution,13.11.2015,5100824607,650.00,P.F. Cusack (Tools Supplies) Ltd
Manchester City Council,Hospitality + Trading Services,Refuse Collection,13.11.2015,5100825604,"21,534.80",Fairfield Environmental Serv Ltd
Manchester City Council,Hospitality + Trading Services,Refuse Collection,13.11.2015,1904872464,"5,791.24",Enterprise Manchester TRADE
Manchester City Council,Hospitality + Trading Services,Refuse Collection,13.11.2015,1904872457,"3,857.00",Enterprise Manchester TRADE
Manchester City Council,Hospitality + Trading Services,Refuse Collection,13.11.2015,1904872458,"2,729.16",Enterprise Manchester TRADE
Manchester City Council,Hospitality + Trading Services,Refuse Collection,13.11.2015,1904872459,"1,068.53",Enterprise Manchester TRADE
Manchester City Council,Hospitality + Trading Services,Refuse Collection,13.11.2015,1904872460,"1,044.62",Enterprise Manchester TRADE
Manchester City Council,Hospitality + Trading Services,Refuse Collection,13.11.2015,1904872492,720.20,Enterprise Manchester TRADE
Manchester City Council,Hospitality + Trading Services,Rents,13.11.2015,1904866251,"27,307.00",CBRE Ltd
Manchester City Council,Hospitality + Trading Services,Window Cleaning,13.11.2015,5100825556,"3,950.00",Ultra Cleaning Service
Manchester City Council,Hospitality + Trading Services,Works and associated costs for Land and Buildings,13.11.2015,5100825407,"299,362.28",Russells Ltd
Manchester City Council,Environment and Operations,Building Materials for direct delivery,13.11.2015,5100824252,"1,500.00",John Martin Painting Contractors
Manchester City Council,Environment and Operations,Building Materials for direct delivery,13.11.2015,5100823980,770.00,John Martin Painting Contractors
Manchester City Council,Environment and Operations,Construction Works,13.11.2015,5100823788,"11,091.57",Virgin Media Limited
Manchester City Council,Environment and Operations,Construction Works,13.11.2015,5100825678,"3,714.56",Vodafone (Ex C&W)
Manchester City Council,Environment and Operations,Construction Works,13.11.2015,5100824482,"2,610.00",Utilities Design & Planning Ltd
Manchester City Council,Environment and Operations,Construction Works,13.11.2015,5100824088,"2,014.87",Virgin Media Limited
Manchester City Council,Environment and Operations,Hire of Machinery,13.11.2015,5100825804,"1,906.86",Fast Hire UK
Manchester City Council,Environment and Operations,Payments to Sub-Contractors,13.11.2015,5100824873,"7,950.38",Biffa Municipal Limited
Manchester City Council,Environment and Operations,Payments to Sub-Contractors,13.11.2015,5100825915,940.00,Willfab Ltd
Manchester City Council,Environment and Operations,Payments to Sub-Contractors,13.11.2015,5100825868,-940.00,Willfab Ltd
Manchester City Council,Environment and Operations,Refuse Collection,13.11.2015,5100825460,"1,276,725.50",Biffa Municipal Limited
Manchester City Council,Environment and Operations,Legal Fees,13.11.2015,5100824825,"4,266.67",Redacted Personal Information
Manchester City Council,Adult Social Care,Agency staff provision,13.11.2015,5100824747,"2,576.45",Sanctuary Social Care
Manchester City Council,Adult Social Care,Agency staff provision,13.11.2015,5100824747,"2,500.00",Sanctuary Social Care
Manchester City Council,Adult Social Care,Agency staff provision,13.11.2015,5100824747,"2,074.22",Sanctuary Social Care
Manchester City Council,Adult Social Care,Agency staff provision,13.11.2015,5100824747,"1,765.25",Sanctuary Social Care
Manchester City Council,Adult Social Care,Agency staff provision,13.11.2015,5100824747,"1,707.30",Sanctuary Social Care
Manchester City Council,Adult Social Care,Agency staff provision,13.11.2015,5100825959,"1,644.27",Eden Brown Synergy
Manchester City Council,Adult Social Care,Agency staff provision,13.11.2015,5100825940,"1,519.00",Eden Brown Synergy
Manchester City Council,Adult Social Care,Agency staff provision,13.11.2015,5100825948,"1,283.40",Eden Brown Synergy
Manchester City Council,Adult Social Care,Agency staff provision,13.11.2015,5100825937,967.75,Eden Brown Synergy
Manchester City Council,Adult Social Care,Agency staff provision,13.11.2015,5100825953,853.65,Eden Brown Synergy
Manchester City Council,Adult Social Care,Agency staff provision,13.11.2015,5100825963,853.65,Eden Brown Synergy
Manchester City Council,Adult Social Care,Agency staff provision,13.11.2015,5100825942,853.65,Eden Brown Synergy
Manchester City Council,Adult Social Care,Agency staff provision,13.11.2015,5100825949,839.30,Eden Brown Synergy
Manchester City Council,Adult Social Care,Agency staff provision,13.11.2015,5100825961,830.20,Eden Brown Synergy
Manchester City Council,Adult Social Care,Agency staff provision,13.11.2015,5100825951,817.07,Eden Brown Synergy
Manchester City Council,Adult Social Care,Agency staff provision,13.11.2015,5100825954,767.25,Eden Brown Synergy
Manchester City Council,Adult Social Care,Agency staff provision,13.11.2015,5100825957,737.80,Eden Brown Synergy
Manchester City Council,Adult Social Care,Agency staff provision,13.11.2015,5100825950,723.10,Eden Brown Synergy
Manchester City Council,Adult Social Care,Agency staff provision,13.11.2015,5100825962,723.10,Eden Brown Synergy
Manchester City Council,Adult Social Care,Agency staff provision,13.11.2015,5100825966,705.25,Eden Brown Synergy
Manchester City Council,Adult Social Care,Agency staff provision,13.11.2015,5100825960,582.77,Eden Brown Synergy
Manchester City Council,Adult Social Care,Agency staff provision,13.11.2015,5100825943,569.28,Eden Brown Synergy
Manchester City Council,Adult Social Care,Agency staff provision,13.11.2015,5100825947,538.30,Eden Brown Synergy
Manchester City Council,Adult Social Care,Agency staff provision,13.11.2015,5100824747,507.06,Sanctuary Social Care
Manchester City Council,Adult Social Care,Bed & Breakfast Acc,13.11.2015,5100825834,"3,685.00",346 Ltd t/a Lansdowne Hotel
Manchester City Council,Adult Social Care,Building Materials for direct delivery,13.11.2015,5100824984,"1,120.00",Illingworth Ingham (M/cR)
Manchester City Council,Adult Social Care,Building Materials for direct delivery,13.11.2015,5100825893,"1,120.00",Illingworth Ingham (M/cR)
Manchester City Council,Adult Social Care,Day Care Payments,13.11.2015,5100825760,"6,227.10",Age Concern Manchester
Manchester City Council,Adult Social Care,Day Care Payments,13.11.2015,5100825759,"2,641.80",Age Concern Manchester
Manchester City Council,Adult Social Care,Equipment,13.11.2015,5100824771,"1,467.90",Morris & Alexander Ltd
Manchester City Council,Adult Social Care,Equipment,13.11.2015,5100825100,"1,278.00",Invacare Limited
Manchester City Council,Adult Social Care,Equipment,13.11.2015,5100825040,720.00,NRS Healthcare
Manchester City Council,Adult Social Care,Equipment,13.11.2015,5100825042,720.00,NRS Healthcare
Manchester City Council,Adult Social Care,Equipment,13.11.2015,5100824457,600.00,Mountway Ltd
Manchester City Council,Adult Social Care,Expenditure re Internal Trading Ordered Externally,13.11.2015,5100825786,"1,760.00",The Victoria Hotel
Manchester City Council,Adult Social Care,External repairs and maintenance for buildings,13.11.2015,5100825791,"41,000.00",Manchester Working Ltd
Manchester City Council,Adult Social Care,Extra Care Sheltd HP,13.11.2015,5100823997,"23,966.81",Carewatch Care Service
Manchester City Council,Adult Social Care,Funeral and coroner related services,13.11.2015,5100824270,"4,040.17",Funeral Prtnrs t/a Michael Kennedy
Manchester City Council,Adult Social Care,Furniture,13.11.2015,5100823968,"6,915.41",The Furnishing Service Ltd
Manchester City Council,Adult Social Care,Furniture,13.11.2015,5100823983,700.28,The Furnishing Service Ltd
Manchester City Council,Adult Social Care,Furniture,13.11.2015,5100824001,601.34,The Furnishing Service Ltd
Manchester City Council,Adult Social Care,Grant and subscriptions awarded,13.11.2015,5100823707,"4,172.50",Music Stuff
Manchester City Council,Adult Social Care,Grant and subscriptions awarded,13.11.2015,5100823685,"1,573.33",The Big Life Company
Manchester City Council,Adult Social Care,Home Care ,13.11.2015,1904847082,"3,213.00",Barnardo Services Ltd
Manchester City Council,Adult Social Care,Internal Repairs and Maintenance for buildings,13.11.2015,1904870681,500.00,Redacted Personal Information
Manchester City Council,Adult Social Care,Payments for services,13.11.2015,5100825842,"19,573.38",CareConcepts Homecare Ltd
Manchester City Council,Adult Social Care,Professional fees,13.11.2015,5100825800,"16,650.00",Redacted Personal Information
Manchester City Council,Adult Social Care,Professional fees,13.11.2015,5100824703,"14,841.00",The Lesbian & Gay Foundation
Manchester City Council,Adult Social Care,Professional fees,13.11.2015,5100825927,"2,760.00",Liquid Personnel Ltd
Manchester City Council,Adult Social Care,Professional fees,13.11.2015,5100825925,"2,095.00",Liquid Personnel Ltd
Manchester City Council,Adult Social Care,Professional fees,13.11.2015,5100825799,"1,350.00",Redacted Personal Information
Manchester City Council,Adult Social Care,Professional fees,13.11.2015,5100825788,875.01,Greater Manchester Police Sports &
Manchester City Council,Adult Social Care,Refuse Collection,13.11.2015,1904872470,720.20,Enterprise Manchester TRADE
Manchester City Council,Adult Social Care,Refuse Collection,13.11.2015,1904872473,586.32,Enterprise Manchester TRADE
Manchester City Council,Adult Social Care,Refuse Collection,13.11.2015,1904872469,576.16,Enterprise Manchester TRADE
Manchester City Council,Adult Social Care,Refuse Collection,13.11.2015,1904872465,513.11,Enterprise Manchester TRADE
Manchester City Council,Adult Social Care,Stationery,13.11.2015,5100825956,"2,259.08",Eden Brown Synergy
Manchester City Council,Adult Social Care,Stationery,13.11.2015,5100825938,579.25,Eden Brown Synergy
Manchester City Council,Adult Social Care,Supporting People Payments,13.11.2015,5100823803,"30,183.00",Action For Children
Manchester City Council,Adult Social Care,Supporting People Payments,13.11.2015,5100825710,"4,441.19",Tung Sing (Orient) Housing Assoc.Lt
Manchester City Council,Adult Social Care,Supporting People Payments,13.11.2015,5100825693,"1,003.81",Manchester & District Housing Assoc
Manchester City Council,Adult Social Care,Supporting People Payments,13.11.2015,5100825693,"1,003.51",Manchester & District Housing Assoc
Manchester City Council,Adult Social Care,Supporting People Payments,13.11.2015,5100825693,760.13,Manchester & District Housing Assoc
Manchester City Council,Adult Social Care,Supporting People Payments,13.11.2015,5100825805,"-30,183.00",Action For Children
Manchester City Council,Adult Social Care,Third party payments relating to Voluntary Organisations,13.11.2015,5100824263,"109,469.50",Lifeline Project Limited
Manchester City Council,Adult Social Care,Third party payments relating to Voluntary Organisations,13.11.2015,5100824265,"47,236.75",Lifeline Project Limited
Manchester City Council,Adult Social Care,Third party payments relating to Voluntary Organisations,13.11.2015,5100825549,"18,550.00",Riverside ECHG
Manchester City Council,Adult Social Care,Third party payments relating to Voluntary Organisations,13.11.2015,5100825308,"8,410.50",People First Housing Association
Manchester City Council,Adult Social Care,Third party payments relating to Voluntary Organisations,13.11.2015,5100825835,"2,532.00",Federation of Jewish Services
Manchester City Council,Adult Social Care,Third party payments relating to Voluntary Organisations,13.11.2015,5100825838,"1,028.00",Federation of Jewish Services
Manchester City Council,Adult Social Care,Third party payments to Health Authority,13.11.2015,5100825882,"426,023.00",Manchester Mental Health & Social C
Manchester City Council,Adult Social Care,Third party payments to Health Authority,13.11.2015,5100826003,"310,613.00",Manchester Mental Health & Social C
Manchester City Council,Adult Social Care,Third party payments to Health Authority,13.11.2015,5100826003,"123,228.23",Manchester Mental Health & Social C
Manchester City Council,Adult Social Care,Third party payments to Health Authority,13.11.2015,5100826003,"14,538.42",Manchester Mental Health & Social C
Manchester City Council,Adult Social Care,Third party payments to Health Authority,13.11.2015,5100826003,"11,763.25",Manchester Mental Health & Social C
Manchester City Council,Adult Social Care,Third party payments to Health Authority,13.11.2015,5100826003,"11,378.31",Manchester Mental Health & Social C
Manchester City Council,Adult Social Care,Third party payments to Health Authority,13.11.2015,5100826003,"5,583.33",Manchester Mental Health & Social C
Manchester City Council,Adult Social Care,Third party payments to Health Authority,13.11.2015,5100826003,"3,779.08",Manchester Mental Health & Social C
Manchester City Council,Adult Social Care,Transport Coach Hire,13.11.2015,5100823367,"11,983.00",T/A TC Travel Svs Ltd
Manchester City Council,Adult Social Care,Legal Fees,13.11.2015,5100825857,"3,375.00",Redacted Personal Information
Manchester City Council,Adult Social Care,Legal Fees,13.11.2015,5100825978,575.00,Redacted Personal Information
Manchester City Council,Childrens Services,Building Works,13.11.2015,5100826042,"177,796.79",United Learning Trust
Manchester City Council,Childrens Services,Works and associated costs for Land and Buildings,13.11.2015,5100824445,"462,884.49",Laing O'Rourke Construction Ltd
Manchester City Council,Corporate Services,Long Term Debtors,13.11.2015,5100825714,"712,469.89",LQ Developments Limited
Manchester City Council,Corporate Services,Training and Development,13.11.2015,5100825866,"3,672.00",Common Purpose UK
Manchester City Council,Corporate Services,Works and associated costs for Land and Buildings,13.11.2015,5100825794,"22,800.00",Manchester Working Ltd
Manchester City Council,Corporate Services,Works and associated costs for Land and Buildings,13.11.2015,5100825783,"-12,920.00",Manchester Working Ltd
Manchester City Council,Housing General Fund,Works and associated costs for Land and Buildings,13.11.2015,5100825527,"8,575.00",LK Pollution Response Ltd
Manchester City Council,Chief Executives,Advertising,13.11.2015,5100826027,"8,846.90",Trinity Mirror NW2 Ltd
Manchester City Council,Chief Executives,Advertising,13.11.2015,5100826027,"4,357.60",Trinity Mirror NW2 Ltd
Manchester City Council,Chief Executives,Advertising,13.11.2015,5100825364,"1,479.75",The Skinny
Manchester City Council,Chief Executives,Agency staff provision,13.11.2015,5100824747,"9,614.69",Sanctuary Social Care
Manchester City Council,Chief Executives,Agency staff provision,13.11.2015,5100823902,"5,000.00",Rullion Resource Limited
Manchester City Council,Chief Executives,Agency staff provision,13.11.2015,5100825965,"4,515.05",Eden Brown Synergy
Manchester City Council,Chief Executives,Agency staff provision,13.11.2015,5100825969,"2,615.71",Eden Brown Synergy
Manchester City Council,Chief Executives,Agency staff provision,13.11.2015,5100824511,"2,061.30",Eyears
Manchester City Council,Chief Executives,Catering,13.11.2015,5100825981,882.40,Manchester Central
Manchester City Council,Chief Executives,Funeral and coroner related services,13.11.2015,5100825917,"2,562.28",Kane Funeral Services
Manchester City Council,Chief Executives,Funeral and coroner related services,13.11.2015,5100825916,722.00,Johnston Brothers Funeral Service
Manchester City Council,Chief Executives,Funeral and coroner related services,13.11.2015,5100825975,646.00,Johnston Brothers Funeral Service
Manchester City Council,Chief Executives,Hire of Premises,13.11.2015,5100825820,"1,560.00",Liberata
Manchester City Council,Chief Executives,I T Provision,13.11.2015,5100826100,"-8,000.00",Canon (Uk) Ltd
Manchester City Council,Chief Executives,Infrastructure Fees,13.11.2015,5100823883,"2,155.00",Rullion Resource Limited
Manchester City Council,Chief Executives,Infrastructure Fees,13.11.2015,5100823902,"2,155.00",Rullion Resource Limited
Manchester City Council,Chief Executives,Infrastructure Fees,13.11.2015,5100825240,"-2,155.00",Rullion Resource Limited
Manchester City Council,Chief Executives,Postage,13.11.2015,5100825314,"21,747.81",Royal Mail Group Plc
Manchester City Council,Chief Executives,Publications,13.11.2015,5100825849,762.67,John Smith & Son (Glasgow) Ltd T/A
Manchester City Council,Regeneration Finance,Agency staff provision,13.11.2015,5100825944,"1,009.73",Eden Brown Synergy
Manchester City Council,Regeneration Finance,Grant Payments,13.11.2015,5100825780,"12,300.00",4CT Limited
Manchester City Council,Regeneration Finance,Grant Payments,13.11.2015,1904860805,"4,500.00",Youth on Solid Ground
Manchester City Council,Regeneration Finance,Professional fees,13.11.2015,5100824260,"7,600.00",Colliers International
Manchester City Council,Regeneration Finance,Professional fees,13.11.2015,5100825765,"4,205.00",Airborne Environmental Consultants
Manchester City Council,Regeneration Finance,Professional fees,13.11.2015,5100825768,"3,002.00",Airborne Environmental Consultants
Manchester City Council,Regeneration Finance,Professional fees,13.11.2015,5100825772,"1,712.00",Airborne Environmental Consultants
Manchester City Council,Regeneration Finance,Professional fees,13.11.2015,5100823689,"1,050.00",Crowdfund UK
Manchester City Council,Regeneration Finance,Refuse Collection,13.11.2015,1904872475,"4,822.77",Enterprise Manchester TRADE
Manchester City Council,Regeneration Finance,Refuse Collection,13.11.2015,1904872478,716.31,Enterprise Manchester TRADE
Manchester City Council,Regeneration Finance,Refuse Collection,13.11.2015,1904872481,610.55,Enterprise Manchester TRADE
Manchester City Council,Insurance Fund,Off Indmnty Ins Prem,13.11.2015,5100825775,"2,809.00",Aon Ltd
Manchester City Council,Insurance Fund,Off Indmnty Ins Prem,13.11.2015,5100825770,"1,950.00",Aon Ltd
Manchester City Council,GMIST (Greater Mcr Integrated),Hire of Premises,13.11.2015,5100826025,"1,200.00",Manchester Central
Manchester City Council,Manchester Leisure,Agency staff provision,16.11.2015,5100825194,761.76,4Social Work Ltd
Manchester City Council,Manchester Leisure,Building Materials for direct delivery,16.11.2015,5100825093,"3,400.00",Arboricultural Services Treework
Manchester City Council,Manchester Leisure,Building Materials for direct delivery,16.11.2015,5100824865,"1,175.00",A P Broome Landscapes Ltd
Manchester City Council,Manchester Leisure,Equipment,16.11.2015,5100824859,"3,175.00",Groundwork & Leisure Services Ltd
Manchester City Council,Manchester Leisure,Expenditure re Internal Trading Ordered Externally,16.11.2015,5100826302,"1,500.00",HS Sports Ltd
Manchester City Council,Manchester Leisure,Goods purchased for resale in Council outlets,16.11.2015,1904874610,652.00,Studio Roof
Manchester City Council,Manchester Leisure,Grant Payments,16.11.2015,5100825124,"2,250.00",The Ambassador Theatre Group Ltd
Manchester City Council,Manchester Leisure,Library Materials Acquisition,16.11.2015,1904865862,"7,290.00",ProQuest
Manchester City Council,Manchester Leisure,Payments to Sub-Contractors,16.11.2015,5100824552,"14,900.00",Arboricultural Services Treework
Manchester City Council,Manchester Leisure,Payments to Sub-Contractors,16.11.2015,5100824605,"1,164.00",Arboricultural Services Treework
Manchester City Council,Manchester Leisure,Payments to Sub-Contractors,16.11.2015,5100825027,"1,015.00",Groundwork Landscapes Ltd
Manchester City Council,Manchester Leisure,Professional fees,16.11.2015,5100826260,"9,696.96",Great Big Events (International)
Manchester City Council,Manchester Leisure,Professional fees,16.11.2015,5100826292,"8,000.00",Manchester BMX Club
Manchester City Council,Manchester Leisure,Professional fees,16.11.2015,5100826286,"6,137.00",Rockfield Media Ltd
Manchester City Council,Manchester Leisure,Professional fees,16.11.2015,5100826294,"4,823.00",Horizon Software Systems Limited
Manchester City Council,Manchester Leisure,Professional fees,16.11.2015,5100826283,"2,500.00",Rockfield Media Ltd
Manchester City Council,Manchester Leisure,Professional fees,16.11.2015,5100826278,"2,170.00",Sport Taekwondo UK Limited
Manchester City Council,Manchester Leisure,Professional fees,16.11.2015,5100826289,"2,100.00",PMC 4 Europe Limited t/a DPI
Manchester City Council,Manchester Leisure,Professional fees,16.11.2015,5100826282,"1,651.00",Rockfield Media Ltd
Manchester City Council,Manchester Leisure,Professional fees,16.11.2015,5100826264,"1,427.60",Table Linen Company Ltd
Manchester City Council,Manchester Leisure,Professional fees,16.11.2015,5100826281,563.00,Rockfield Media Ltd
Manchester City Council,Manchester Leisure,Professional fees,16.11.2015,5100826132,"-27,500.00",British Cycling Federation
Manchester City Council,Manchester Leisure,Subsistence and Conference Expenses,16.11.2015,1904874623,"4,166.67",HILTON
Manchester City Council,Manchester Leisure,Subsistence and Conference Expenses,16.11.2015,1904874624,"4,166.67",HILTON
Manchester City Council,Manchester Leisure,Subsistence and Conference Expenses,16.11.2015,1904874625,"4,166.67",HILTON
Manchester City Council,Manchester Leisure,Subsistence and Conference Expenses,16.11.2015,1904874621,833.33,HILTON
Manchester City Council,Manchester Leisure,Subsistence and Conference Expenses,16.11.2015,1904874622,833.33,HILTON
Manchester City Council,Manchester Leisure,Subsistence and Conference Expenses,16.11.2015,1904874626,833.33,HILTON
Manchester City Council,Manchester Leisure,Variation Orders,16.11.2015,5100824715,550.00,Willfab Ltd
Manchester City Council,Libraries and Theatres,Car Parking Permits,16.11.2015,5100826108,"1,043.33",National Car Parks Ltd Season Ticke
Manchester City Council,Libraries and Theatres,Subsistence and Conference Expenses,16.11.2015,5100824965,"14,000.00",College of Policing Ltd
Manchester City Council,Hospitality + Trading Services,Agency staff provision,16.11.2015,5100825340,750.00,Taskmaster Resources Ltd
Manchester City Council,Hospitality + Trading Services,Building Materials for direct delivery,16.11.2015,1904873495,"2,686.40",Benchmark Building Supplies Ltd
Manchester City Council,Hospitality + Trading Services,Building Materials for direct delivery,16.11.2015,5100825007,"2,140.90",Rediweld Rubber & Plastics Ltd
Manchester City Council,Hospitality + Trading Services,Building Materials for direct delivery,16.11.2015,5100825512,"1,943.80",TARMAC
Manchester City Council,Hospitality + Trading Services,Building Materials for direct delivery,16.11.2015,5100825511,"1,121.07",TARMAC
Manchester City Council,Hospitality + Trading Services,Building Materials for direct delivery,16.11.2015,1904873493,925.04,Benchmark Building Supplies Ltd
Manchester City Council,Hospitality + Trading Services,Building Materials for direct delivery,16.11.2015,1904873500,730.96,Benchmark Building Supplies Ltd
Manchester City Council,Hospitality + Trading Services,Building Materials for direct delivery,16.11.2015,1904873503,633.92,Benchmark Building Supplies Ltd
Manchester City Council,Hospitality + Trading Services,Building Materials for direct delivery,16.11.2015,1904873596,565.60,Ecomix Concrete Ltd
Manchester City Council,Hospitality + Trading Services,Building Materials for direct delivery,16.11.2015,1904873497,536.48,Benchmark Building Supplies Ltd
Manchester City Council,Hospitality + Trading Services,Catering Provisions,16.11.2015,1904873548,797.50,Brake Bros Foodservice Ltd
Manchester City Council,Hospitality + Trading Services,Catering Provisions,16.11.2015,1904873594,699.03,Brake Bros Foodservice Ltd
Manchester City Council,Hospitality + Trading Services,Catering Provisions,16.11.2015,1904873582,690.89,Brake Bros Foodservice Ltd
Manchester City Council,Hospitality + Trading Services,Catering Provisions,16.11.2015,1904873521,570.13,Brake Bros Foodservice Ltd
Manchester City Council,Hospitality + Trading Services,Equipment,16.11.2015,5100824542,"1,179.00",Reward Manufacturing Co Ltd
Manchester City Council,Hospitality + Trading Services,Equipment,16.11.2015,5100824488,589.50,Reward Manufacturing Co Ltd
Manchester City Council,Hospitality + Trading Services,Hire of Machinery,16.11.2015,5100825743,"13,624.80",Fast Hire UK
Manchester City Council,Hospitality + Trading Services,Payments to Sub-Contractors,16.11.2015,5100824444,"8,398.37",Rosgal Ltd
Manchester City Council,Hospitality + Trading Services,Payments to Sub-Contractors,16.11.2015,5100825680,"2,597.50",Northern Marking Limited
Manchester City Council,Hospitality + Trading Services,Payments to Sub-Contractors,16.11.2015,5100823667,"2,250.00",Utilities Design & Planning Ltd
Manchester City Council,Hospitality + Trading Services,Purchase of stores for re-distribution,16.11.2015,5100825178,728.00,F T Factors
Manchester City Council,Hospitality + Trading Services,Purchase of stores for re-distribution,16.11.2015,5100825119,589.10,P.F. Cusack (Tools Supplies) Ltd
Manchester City Council,Hospitality + Trading Services,Vehicle Fuel Costs,16.11.2015,5100825815,"15,245.84",Carlton Fuels Ltd
Manchester City Council,Hospitality + Trading Services,Vehicle Fuel Costs,16.11.2015,5100825427,"15,151.48",Carlton Fuels Ltd
Manchester City Council,Hospitality + Trading Services,Vehicle Hire Costs,16.11.2015,5100826122,"2,878.80",Fleet Dynamic Consultancy Ltd
Manchester City Council,Hospitality + Trading Services,Vehicle Hire Costs,16.11.2015,5100826223,"1,400.00",John Martin Devine Ltd
Manchester City Council,Hospitality + Trading Services,Vehicle Hire Costs,16.11.2015,5100826227,"1,008.00",John Martin Devine Ltd
Manchester City Council,Hospitality + Trading Services,Vehicle Hire Costs,16.11.2015,5100826233,918.00,John Martin Devine Ltd
Manchester City Council,Hospitality + Trading Services,Vehicle Repairs,16.11.2015,5100826273,"1,541.88",Advanced Vehicle Technicians Ltd
Manchester City Council,Hospitality + Trading Services,Vehicle Repairs,16.11.2015,5100826272,"1,241.50",Advanced Vehicle Technicians Ltd
Manchester City Council,Hospitality + Trading Services,Vehicle Repairs,16.11.2015,5100826250,940.74,Advanced Vehicle Technicians Ltd
Manchester City Council,Hospitality + Trading Services,Vehicle Repairs,16.11.2015,5100826238,558.39,Advanced Vehicle Technicians Ltd
Manchester City Council,Hospitality + Trading Services,Vehicle Repairs,16.11.2015,5100826242,541.00,Advanced Vehicle Technicians Ltd
Manchester City Council,Hospitality + Trading Services,Vehicle Repairs,16.11.2015,5100826232,500.00,Advanced Vehicle Technicians Ltd
Manchester City Council,Environment and Operations,Building Materials for direct delivery,16.11.2015,5100824480,"13,550.00",Groundwork Landscapes Ltd
Manchester City Council,Environment and Operations,Building Materials for direct delivery,16.11.2015,5100824863,"1,999.00",A P Broome Landscapes Ltd
Manchester City Council,Environment and Operations,Building Materials for direct delivery,16.11.2015,5100824466,"1,885.00",Groundwork Landscapes Ltd
Manchester City Council,Environment and Operations,Building Materials for direct delivery,16.11.2015,5100824449,"1,355.00",Groundwork Landscapes Ltd
Manchester City Council,Environment and Operations,Building Materials for direct delivery,16.11.2015,5100824481,"-13,550.00",Groundwork Landscapes Ltd
Manchester City Council,Environment and Operations,ClothsUniformLaundry,16.11.2015,5100826046,"1,469.00",Arco Group Ltd
Manchester City Council,Environment and Operations,ClothsUniformLaundry,16.11.2015,5100826050,"-1,469.00",Arco Group Ltd
Manchester City Council,Environment and Operations,Construction Works,16.11.2015,5100825109,"61,870.88",Verizon UK Ltd
Manchester City Council,Environment and Operations,Construction Works,16.11.2015,5100826036,"29,487.52",Aggregate Industries T/A Kennedy As
Manchester City Council,Environment and Operations,Construction Works,16.11.2015,5100826044,"26,500.00",Aggregate Industries T/A Kennedy As
Manchester City Council,Environment and Operations,Construction Works,16.11.2015,5100826086,"21,551.44",Aggregate Industries T/A Kennedy As
Manchester City Council,Environment and Operations,Equipment,16.11.2015,5100824981,"2,943.00",Solon Security Ltd
Manchester City Council,Environment and Operations,External repairs and maintenance for buildings,16.11.2015,5100824576,940.00,The Fountain Company Ltd
Manchester City Council,Environment and Operations,Grant and subscriptions awarded,16.11.2015,5100824903,"6,626.75",Coaching Inside and Out
Manchester City Council,Environment and Operations,Grant Payments,16.11.2015,5100826322,"15,500.00",Cheshire & Greater Manchester
Manchester City Council,Environment and Operations,Grounds Maintenance,16.11.2015,5100824620,990.00,Groundwork Landscapes Ltd
Manchester City Council,Environment and Operations,Grounds Maintenance,16.11.2015,5100824618,850.00,Groundwork Landscapes Ltd
Manchester City Council,Adult Social Care,Agency staff provision,16.11.2015,5100825141,"15,400.00",Penna PLC
Manchester City Council,Adult Social Care,Agency staff provision,16.11.2015,5100824510,"7,941.15",Gatenby Sanderson
Manchester City Council,Adult Social Care,Agency staff provision,16.11.2015,5100824532,"2,167.20",Capita  Resourcing Ltd
Manchester City Council,Adult Social Care,Agency staff provision,16.11.2015,5100825194,"1,741.95",4Social Work Ltd
Manchester City Council,Adult Social Care,Agency staff provision,16.11.2015,5100826008,"1,288.74",Manchester Mental Health & Social C
Manchester City Council,Adult Social Care,Agency staff provision,16.11.2015,5100824287,967.75,Semester Recruitment Ltd
Manchester City Council,Adult Social Care,Agency staff provision,16.11.2015,5100825608,967.75,Semester Recruitment Ltd
Manchester City Council,Adult Social Care,Agency staff provision,16.11.2015,5100824532,839.30,Capita  Resourcing Ltd
Manchester City Council,Adult Social Care,Agency staff provision,16.11.2015,5100824307,637.14,Semester Recruitment Ltd
Manchester City Council,Adult Social Care,Agency staff provision,16.11.2015,5100825610,637.14,Semester Recruitment Ltd
Manchester City Council,Adult Social Care,Catering,16.11.2015,5100826173,943.56,Manchester Central
Manchester City Council,Adult Social Care,Catering,16.11.2015,5100822190,-943.56,Manchester Central
Manchester City Council,Adult Social Care,Day Care Payments,16.11.2015,5100826214,"4,512.00",Stockport Metropolitan Borough
Manchester City Council,Adult Social Care,Equipment,16.11.2015,5100825136,"4,950.00",Mangar International Ltd
Manchester City Council,Adult Social Care,Equipment,16.11.2015,5100825081,"1,566.50",Invacare Limited
Manchester City Council,Adult Social Care,Equipment,16.11.2015,5100825104,"1,221.95",Aidapt Bathrooms Ltd
Manchester City Council,Adult Social Care,Equipment,16.11.2015,5100824595,"1,200.00",Ultimate Healthcare
Manchester City Council,Adult Social Care,Equipment,16.11.2015,5100825082,690.40,Drive Medical Limited
Manchester City Council,Adult Social Care,Equipment,16.11.2015,5100825428,648.90,Sidhil Ltd
Manchester City Council,Adult Social Care,Equipment,16.11.2015,5100826295,638.00,Drive Medical Limited
Manchester City Council,Adult Social Care,Equipment,16.11.2015,5100825102,549.70,Aidapt Bathrooms Ltd
Manchester City Council,Adult Social Care,Extra Care Sheltd HP,16.11.2015,5100826328,"20,582.24",Carewest Limited
Manchester City Council,Adult Social Care,Extra Care Sheltd HP,16.11.2015,5100825115,"14,172.73",DH Homecare Ltd (Direct Health)
Manchester City Council,Adult Social Care,Funeral and coroner related services,16.11.2015,5100825222,"2,211.00",Funeral Prtnrs t/a Michael Kennedy
Manchester City Council,Adult Social Care,Funeral and coroner related services,16.11.2015,5100825221,"1,222.00",Funeral Prtnrs t/a Michael Kennedy
Manchester City Council,Adult Social Care,Grant and subscriptions awarded,16.11.2015,5100824177,"10,916.16",Manchester Young Lives
Manchester City Council,Adult Social Care,Grant and subscriptions awarded,16.11.2015,5100826315,"2,289.00",Ofsted
Manchester City Council,Adult Social Care,Grant and subscriptions awarded,16.11.2015,5100823279,"1,414.50",Barlow Moor Community Association
Manchester City Council,Adult Social Care,Grant and subscriptions awarded,16.11.2015,5100823278,"1,401.15",Barlow Moor Community Association
Manchester City Council,Adult Social Care,Grant and subscriptions awarded,16.11.2015,5100824801,"1,333.33",N-Gage Project
Manchester City Council,Adult Social Care,Grant and subscriptions awarded,16.11.2015,5100824494,"1,166.66",Wythenshawe Community Initiative
Manchester City Council,Adult Social Care,Grant and subscriptions awarded,16.11.2015,5100824816,699.00,N-Gage Project
Manchester City Council,Adult Social Care,Payments for services,16.11.2015,5100826217,"207,185.83",Future Directions CIC
Manchester City Council,Adult Social Care,Payments for services,16.11.2015,5100826222,"16,973.00",Future Directions CIC
Manchester City Council,Adult Social Care,Payments for services,16.11.2015,5100825006,"10,678.32",Penarth Group School
Manchester City Council,Adult Social Care,Payments for services,16.11.2015,5100826219,"7,971.00",Future Directions CIC
Manchester City Council,Adult Social Care,Payments for services,16.11.2015,5100824467,"2,390.60",IndePendent Business Services Ltd
Manchester City Council,Adult Social Care,Payments for services,16.11.2015,5100824768,"1,749.00",Prime Care Ambulance Service
Manchester City Council,Adult Social Care,Payments for services,16.11.2015,5100824723,"1,605.56",Illy Computer Systems Ltd
Manchester City Council,Adult Social Care,Payments for services,16.11.2015,5100824491,607.05,IndePendent Business Services Ltd
Manchester City Council,Adult Social Care,Personal needs of client,16.11.2015,5100825094,680.00,Mangar International Ltd
Manchester City Council,Adult Social Care,Private Finance and Public Private partnership initiatives,16.11.2015,5100823276,"73,621.68",NU3PS
Manchester City Council,Adult Social Care,Professional fees,16.11.2015,5100826093,"1,750.00",Action First iPeople Ltd
Manchester City Council,Adult Social Care,Professional fees,16.11.2015,5100825445,"1,100.00",Index Software Ltd
Manchester City Council,Adult Social Care,Professional fees,16.11.2015,1904828966,978.80,Redacted Personal Information
Manchester City Council,Adult Social Care,Professional fees,16.11.2015,5100826120,855.00,British Youth Council
Manchester City Council,Adult Social Care,Professional fees,16.11.2015,5100826094,700.00,Action First iPeople Ltd
Manchester City Council,Adult Social Care,Professional fees,16.11.2015,5100824032,500.00,Police and Crime Commissioner
Manchester City Council,Adult Social Care,Respite Care Costs,16.11.2015,5100826214,"2,440.20",Stockport Metropolitan Borough
Manchester City Council,Adult Social Care,Signers/Interpreters,16.11.2015,1904844854,569.40,Language Line Ltd
Manchester City Council,Adult Social Care,Signers/Interpreters,16.11.2015,1904844854,548.75,Language Line Ltd
Manchester City Council,Adult Social Care,Supported Accommodation,16.11.2015,5100826214,"3,397.70",Stockport Metropolitan Borough
Manchester City Council,Adult Social Care,Supporting People Payments,16.11.2015,5100824907,"27,873.55",North West Community Services Ltd
Manchester City Council,Adult Social Care,Supporting People Payments,16.11.2015,5100824911,"25,988.83",North West Community Services Ltd
Manchester City Council,Adult Social Care,Supporting People Payments,16.11.2015,5100824996,"11,272.16",People First Housing Association
Manchester City Council,Adult Social Care,Supporting People Payments,16.11.2015,5100825874,"10,867.50",Chapter 1
Manchester City Council,Adult Social Care,Supporting People Payments,16.11.2015,5100825000,"4,592.24",People First Housing Association
Manchester City Council,Adult Social Care,Supporting People Payments,16.11.2015,5100824907,"3,931.08",North West Community Services Ltd
Manchester City Council,Adult Social Care,Supporting People Payments,16.11.2015,5100824911,"3,931.08",North West Community Services Ltd
Manchester City Council,Adult Social Care,Supporting People Payments,16.11.2015,5100824907,"3,385.41",North West Community Services Ltd
Manchester City Council,Adult Social Care,Supporting People Payments,16.11.2015,5100824911,"3,385.41",North West Community Services Ltd
Manchester City Council,Adult Social Care,Supporting People Payments,16.11.2015,5100824907,"2,647.48",North West Community Services Ltd
Manchester City Council,Adult Social Care,Supporting People Payments,16.11.2015,5100824911,"2,647.48",North West Community Services Ltd
Manchester City Council,Adult Social Care,Supporting People Payments,16.11.2015,5100824907,"1,414.38",North West Community Services Ltd
Manchester City Council,Adult Social Care,Supporting People Payments,16.11.2015,5100824911,"1,414.38",North West Community Services Ltd
Manchester City Council,Adult Social Care,Supporting People Payments,16.11.2015,5100826040,758.33,Albert Kennedy Trust
Manchester City Council,Adult Social Care,Supporting People Payments,16.11.2015,5100826035,578.06,Southway Housing Trust
Manchester City Council,Adult Social Care,Supporting People Payments,16.11.2015,5100826038,578.06,Southway Housing Trust
Manchester City Council,Adult Social Care,Third party payments relating to Voluntary Organisations,16.11.2015,5100826330,"76,656.00",Barnardo's North West
Manchester City Council,Adult Social Care,Third party payments relating to Voluntary Organisations,16.11.2015,5100825676,"6,395.50",Manchester Mind
Manchester City Council,Adult Social Care,Third party payments relating to Voluntary Organisations,16.11.2015,5100825675,"5,373.25",Manchester Mind
Manchester City Council,Adult Social Care,Third party payments relating to Voluntary Organisations,16.11.2015,5100824881,"3,075.00",Assist
Manchester City Council,Adult Social Care,Third party payments relating to Voluntary Organisations,16.11.2015,5100824817,"2,523.10",St Lukes PCC St Lukes Art Project
Manchester City Council,Adult Social Care,Third party payments relating to Voluntary Organisations,16.11.2015,5100825354,"2,416.00",Burnage Good Neighbours
Manchester City Council,Adult Social Care,Third party payments relating to Voluntary Organisations,16.11.2015,5100826099,"2,175.00",Burnage Good Neighbours
Manchester City Council,Adult Social Care,Third party payments relating to Voluntary Organisations,16.11.2015,5100823387,"1,650.00",Barlow Moor Community Association
Manchester City Council,Adult Social Care,Third party payments relating to Voluntary Organisations,16.11.2015,5100824843,"1,500.00",Ladybarn Community Association
Manchester City Council,Adult Social Care,Third party payments relating to Voluntary Organisations,16.11.2015,5100824054,"1,197.55",Manchester Young Lives
Manchester City Council,Adult Social Care,Third party payments relating to Voluntary Organisations,16.11.2015,5100824067,"1,197.55",Manchester Young Lives
Manchester City Council,Adult Social Care,Third party payments relating to Voluntary Organisations,16.11.2015,5100824086,"1,197.55",Manchester Young Lives
Manchester City Council,Adult Social Care,Third party payments relating to Voluntary Organisations,16.11.2015,5100824091,"1,197.55",Manchester Young Lives
Manchester City Council,Adult Social Care,Third party payments relating to Voluntary Organisations,16.11.2015,5100824027,951.29,Manchester Young Lives
Manchester City Council,Adult Social Care,Third party payments relating to Voluntary Organisations,16.11.2015,5100824249,765.00,Afro Carribean Care Group
Manchester City Council,Adult Social Care,Third party payments relating to Voluntary Organisations,16.11.2015,5100823670,600.00,Manchester Black Health Forum
Manchester City Council,Adult Social Care,Third party payments relating to Voluntary Organisations,16.11.2015,5100826326,"-58,118.00",Barnardo's North West
Manchester City Council,Adult Social Care,Third party payments relating to Voluntary Organisations,16.11.2015,5100826325,"-76,656.00",Barnardo's North West
Manchester City Council,Adult Social Care,Third party payments to Health Authority,16.11.2015,1904872541,"2,028.00",Virgin Care Blackpool LLP
Manchester City Council,Adult Social Care,Third party payments to Health Authority,16.11.2015,1904870851,555.20,Newcastle upon Tyne NHS FT
Manchester City Council,Adult Social Care,Third party payments to other Local Authorities,16.11.2015,5100821137,"5,289.00",Nottinghamshire County Council
